Workbook

Sheet Notes
A1: ReflexTrendflex.xlsm; Traders Tip spreadsheet created for the February 2020 Issue
A2: Coded beginning 2019-December-05 by Ronald McAllister (rpmac_xltt@sprynet.com)
A4: This Workbook demonstrates an EXCEL version of the ideas presented
A5: by John Ehlers in an article titled "Reflex: A New Zero-Lag Indicator"
A6: which originally appeared in the February 2020 issue of
A7: "Technical Analysis of Stocks and Commodities" magazine.
A9: To replicate the charts three and 4 as used in the article:
A10: Retrieve data for symbol SPY
A11: And then plot dates 12/7/2018 thru 12/6/2019.
A13: Note: The MS_RI and MS_TI calculations are EMAs.
A14: The coefficients provided in the article equate to a standard EMA (alpha = 2/(n+1)) using a period length of 49.
A16: * * * * * * * * * * * * * * * *
A18: Data Retrieval Bug Fix 6/14/2019
A19: On or about Saturday, June 08, 2019, Yahoo Finance introduced web page changes that
A20: removed the "crumbstore" from the surface of all pages retrieved when using a
A21: Windows Internet Explorer 11 "User-Agent" string.
A23: By trial and error, today I determined that requests using a Windows Chrome "User-Agent' string will retrieve pages
A24: containing the expected crumb store and, oh by the way, one additional crumb store with a different crumb value.
A26: Using a Windows Chrome user agent string can get my recent spread sheets back on the air, at least temporarily.
A28: I say temporarily as I believe that the folks at Yahoo Finance will be propogating similar changes
A29: to all of the supported browser types over time.
A31: The following bug fix instructions are applicable to spreadsheets as old as "WeeklyDailyStochastics.xlsm",
A32: the September of 2018 traders tip, where I first introduced the “DataViaWinHTTP” module.
A34: For spreadsheets older than September of 2018 replacing the User-Agent string "may" turn out to be helpful.
A35: I have tried this successfully with a few of the earlier 2018 spreadsheets. But I make no guarantees as to earlier spreadsheets.
A36: You will most likely only find one instance of the User-Agent" spec, in a different module, instead of the 4 instances described below.
A38: How to apply this bug fix to your copy of these older spreadsheets.
A40: You will need to get into the VBA editor (ALT-F11) and then open a FIND (Ctrl-F) dialog box.
A42: Make sure the "Current Project" radio button is selected in the Search box.
A44: What you want to find: .SetRequestHeader statements with the "User-Agent", specification.
A46: There should be 4 occurrences, all in module “DataViaWinHTTP”.
A48: Replace each of these user-agent statements with the one provided below
A50: .SetRequestHeader _
A51: "User-Agent", _
A52: "Mozilla/5.0 (Windows NT 10.0; Win64; x64) " & _
A53: "AppleWebKit/537.36 (KHTML, like Gecko) Chrome/60.0.3112.90 Safari/537.36"
A55: General Construction Notes
A57: One can replicate the chart in Figure 1 of the article by retrieving data for symbol SPY.
A58: Next, on the CalculationsAndCharts tab, set cell B26 to 01/03/2018 and cell B27 to 03/08/2019.
A59: Then Click on the "I would like to chart these dates" button.
A62: Development Notes:
C63: This workbook contains and uses VBA macros and may use VBA Class structures.
C64: Input Data
C65: The data in this workbook is sorted date descending (most recent date at the top). All formulas and
C66: VBA routines are built accordingly.
A68: 2019-06-04 Set price chart vertical axis to show tick marks and labels at each 1/10th of the vertical price spread
A70: 2019-04-04 Finally came up with a mechanism to align the left location and overall length of the cursor scroll bar so that the left most and right most
A71: scroll bar thumb positions visually align reasonably well with the left and right ends of the price chart horizontal axis.
A72: Makes it a little easier to visually align the Thumb and thus the cursor with points of interest on the charts.
A74: Older:
B75: My sincere apologies to our Macintosh based readers: Neither MSXML nor WinHttpRequest are supported in your environment. So as it stands this version of the spreadsheet will not work for you.
B76: See "Why this approach does not work for Macintosh" below.
B77: I am investigating cURL as a non-Querytable based approach for the Macintosh environment.
A79: The new Yahoo Finance history download interface has changed rather radically. The biggest hurdle being a pseudo-security requirement of adding a
B80: crumb character string to any URL requesting any type of history download. That crumb must match up (by way of some sort of hash algorithm) with
B81: the Yahoo Finance cookie that must also be sent with any request to the new Yahoo History down load interface.
B83: A crumb value is returned, buried in the HTML for any of what I call the "entry level" Yahoo Finance web pages (no crumb security requirement for entry level pages).
B84: A crumb may come with other Yahoo Finance pages. A crumb may even accompany some of the secured pages as well. I have not checked.
B86: Entry level pages are the top level pages of the various Yahoo Finance dialogs and include: Quote Lookup, Stock Summary Quote, and any of the pages
B87: with links in the horizontal row with the "Summary" link on the quote summary page such as Options, Historical Data, and the rest.
B89: To date I have found no way to get at this crumb value using any native EXCEL capabilities.
B91: So this crumb requirement effectively shuts out any solution that attempts to exclusively use built-in facilities of EXCEL, which is to say a purely Querytables solution.
B93: The approach built for this Traders Tip spreadsheet uses a combination of MSXML and EXCEL Querytable calls to Load the InputPriceData worksheet.
B95: First I call MSXML to get the HTML text for the Yahoo Summary Quote page using the requested symbol. From this HTML text I extract the full company name,
B96: the market it trades, the market status and time stamp, and finally the associated crumb string. There is a bunch of other useful bits buried in this HTML
B97: text that do not necessarily appear on the web page your browser presents. Perhaps some day I will go after and build a worksheet with these other bits.
B99: Next I add the freshly extracted crumb string to the URLs I use in three separate Querytable calls to retrieve Price history, Split history, and Dividend history respectively.
B101: From there VBA code proceeds as in the past to fill in the cell formulas and formatting that make the "prettied up" InputPriceData sheet.
A103: Why this approach works for Windows:
B104: First, MSXML shares the permanent Internet Explorer web cache where cookies are maintained. Both IE and MSXML automatically
B105: update this cache when a "set cookie" header accompanies a web response. And they both automatically search this shared cache for
B106: cookies and add any "appropriate" cookies to the headers of any web requests they send out.
B107: This cookie handling automation means that even if the response to our MSXML call for the Summary web page includes a new version of
B108: the Yahoo Finance cookie, the imbedded Crumb value will always match the cookie newly installed in the cache!
B110: Second, in the Windows environment the EXCEL Querytable mechanism leans heavily on bits from Internet Explorer. This means that cookie
B111: handling is also automated from the shared cache for Querytable calls. We can count on any appropriate cookies being added to any Querytable call.
B112: We only need to do our part by adding the corresponding Crumb value to complete the security for the Querytable to access Yahoo History downloads.
A114: Why this approach does not work for Macintosh:
B115: For what it is worth, the Macintosh version of the MS Office suite of products do in fact maintain a special, shared amongst themselves only, cookie cache.
B116: They automate cookie handling into and from this cache JUST for the Office products and any Querytable activity they might originate.
B118: This cache is not tied to, nor shared with, any browser that might be installed on the MAC. And I have not found anything with HTTP capabilities similar to
B119: MSXML that can work with that Office product cookie cache.
B121: When working in the MAC EXCEL environment, without that MSXML like capability against the office shared cache, l have no mechanism
B122: to obtain a crumb value that would be a valid match to the Yahoo Finance cookie that will be automatically attached to a Querytable call.
B123: This missing facility pretty much eliminates the use of Mac environment Querytables to access the new Yahoo Finance history download interface.
A125: One very low probability potential "Gottcha" for any Querytables approach.
B126: Yahoo Finance cookies typically have an assigned expiration that is a year out (to the second) from the time they are issued.
B127: Further, these cookies are unique. Yours will not match mine.
B129: If for testing purposes, instead of MSXML, you use a fresh instance of Winhttp (Fresh instance = empty cache = no cookie to automatically send)
B130: every time you call an entry level page, the Yahoo server says "What? Entry level page? With no inbound cookie? Get them a cookie!!"
B131: and will send you a new, unique cookie and will imbed the matching crumb value in the response HTML text for each of these "no cookie attached" calls.
B133: The Gottcha: Lets say that the Yahoo Finance cookie presently in the IE cache has an expiration date and time that just happens
B134: to fall between our MSXML call to the summary page to fetch our crumb and our first (or second, or third) Querytable call.
B135: The Querytable call after the cookie expiration may fail with a cookie and crumb validation error.
B137: Querytable error reporting is atrocious. So we will not get any sort of helpful message here. Just a very generalized message like "failed to connect".
B139: The workaround is to simply go to the InputPriceData tab and click the download button.
B140: This second time through the retrieval process should not fail on a mismatch.
B141: After all, you now have a year before the new cookie that just got put into the cache expires!
A143: Calculation and Chart Worksheet Usage Comments:
C144: In General, Items in Bolded BLUE are items you may freely change to play what-if games.
C145: Be sure to have a backup copy of the spreadsheet before you alter anything else.
A147: Features carried forward from the June 2016 version of my T-Tips Template
A148: Added a pair of buttons near cell F12 that will allow the user to step the charting window forward or backward one bar for each click.
A149: I find this to be a good way to test my understanding of the author's ideas as I step through the evolution of the price behavior and the indicators.
B151: First: In the "Help! I would like to plot data" area.
B152: Added button to resolve #NA problems by locating the bar in the input data with a slightly more recent date than what the user actually requested.
B153: I find this particularly useful when I have a general idea of where I want to be date wise. Now I can pick a set of dates "out of the air".
B154: If either (or both) of my date specifications fall between dates that are available in the price history,
B155: this button will resolve them to the dates of the nearest, slightly more recent input bars.
B156: I can then refine my data interval search as necessary from there.
B157: Really great when working with Weekly or Monthly studies!
C158: 2016Jun11 - added logic to the "I would like to chart.." button to detect #N/A values and terminate
C159: gracefully with a message instead of blowing up in the charting logic.
B161: Second: In the "Price Chart Windowing Controls" area. (A11 and A12)
B162: When retrieving data for a new symbol or when changing from daily to weekly or monthly data, there was the possibility that the
B163: residual settings in A11 and A12 would fall outside of the number bars available on the input data tab after the new data retrieval.
B164: In certain combinations, this could create a serious error in the chart sizing logic and crash the spreadsheet.
B165: I have taken this opportunity to update the validity checking logic used in the chart sizing macros
B166: to adjust these values as necessary so that they fall within the boundaries of the newly retrieved input data.
A167: Features carried forward from the October 2015 Traders Tips Template
B168: Improved automation: changes to any of the following will automatically initiate calculations appropriate to reflect a change.
C169: Changing either of cells A11 (pan) or A12 (zoom) will automatically initiate the same chart sizing macros that the manual
C170: "Set Chart" button uses.

Sheet InputPriceData
A1: SPDR S&P 500 ETF Trust (SPY) -NYSEArca (Daily)
IJ2: 241.79
A3: Request Online Yahoo History for: | F3: Market State == > | G3: As of | H3: 11:58:00 | I3: EST. Market open.
A4: Symbol | B4: SPY | D4: Valid | I4: =OFFSET(I4,-2,0,1,1) -> 0
A5: From | B5: 1950-01-01 | D5: Data | AD5: Trailing 12 Div return (Cur Close)
A6: To | B6: =NOW() -> 2019-12-16T14:28:05.070 | D6: Types | E6: =VLOOKUP(B7,D7:E10,2,FALSE) -> d
A7: Data Type | B7: Daily | D7: Daily | E7: d
A8: Crumb | B8: rveozifFXPS | D8: Weekly | E8: w
A9: Available Data | D9: Monthly | E9: m
A10: Bar Count: | B10: 6770 | AD10: =OFFSET(AC15,1,0,1,1)/OFFSET(N15,1,0,1,1) -> 0.01713589351
A11: From: | B11: =IF(B10<=0,"",OFFSET(B15,B10,IF(HistReqDataType="v",1,0),1,1)) -> 1993-01-29 | W11: Trailing 12 Month Dividend Returns
A12: To: | B12: =IF(B10<=0,"",IF(HistReqDataType="v",OFFSET(B15,2,1,1,1),OFFSET(B15,1,0,1,1))) -> 2019-12-16 | W12: Raw Close price on Dividend date | X12: Div Year and Month | Y12: Looking for year ago Div Year and Month | Z12: Year ago Div Date we found | AA12: row offset to year ago div Date | AB12: Same month flag | AC12: Trailing 12 Div Total | AD12: Trailing 12 Div return
Q13: Split History | S13: 0 | T13: Running | U13: Dividend History
B14: Raw Data Values | H14: Adjusted | I14: Price Adjust | J14: Vol Adjust | K14: Adjusted Values | P14: Last | Q14: Effective | R14: Shares | T14: Vol Adjust | V14: 111
A15: RelRow | B15: Date | C15: Open | D15: High | E15: Low | F15: Close | G15: Volume | H15: Close | I15: Factor | J15: Factor | K15: Open | L15: High | M15: Low | N15: Close | O15: Volume | P15: Trade | Q15: 43816 | R15: New | S15: Old | T15: 1 | U15: Date | V15: $ / Share
A16: 1 | B16: 2019-12-16 | C16: 319.220001 | D16: 320.059998 | E16: 319.179993 | F16: 320.029999 | G16: 31976034 | H16: 320.029999 | I16: =IF(F16=0,1,H16/F16) -> 1 | J16: =INDEX(OFFSET($T$15,0,0,$S$13+1,1),MATCH(B16,OFFSET($Q$15,0,0,$S$13+1,1),-1)) -> 1 | K16: =ROUND($I16*C16,2) -> 319.22 | L16: =ROUND($I16*D16,2) -> 320.06 | M16: 319.18 | N16: 320.03 | O16: =G16*J16 -> 31976034 | U16: 2019-09-20 | V16: 1.384 | W16: =(INDEX(OFFSET($F$15,1,0,$B$10,1),MATCH(U16,OFFSET($B$15,1,0,$B$10,1),-1))) -> 298.279999 | X16: =YEAR(U16)&RIGHT("0"&MONTH(U16),2) -> 201909 | Y16: =YEAR(U16)-1&RIGHT("0"&MONTH(U16),2) -> 201809 | Z16: =OFFSET(U15,AA16,0,1,1) -> 2018-09-21 | AA16: =MATCH(Y16,OFFSET($X$15,A16,0,$V$14+1-A16,1),-1) -> 5 | AB16: =IF(OR(AND(YEAR(U16)=YEAR(Z16),MONTH(U16)=MONTH(Z16)),MONTH(U16)=MONTH(Z16)),1,0) -> 1 | AC16: =(V16+IF(AA16-AB16=0,0,IFERROR(SUM(OFFSET(V16,1,0,AA16-AB16-1,1)),0))) -> 5.484 | AD16: =AC16/(INDEX(OFFSET($F$15,1,0,$B$10,1),MATCH(U16,OFFSET($B$15,1,0,$B$10,1),-1))) -> 0.01838540974
A17: 2 | B17: 2019-12-13 | C17: 316.869995 | D17: 318.670013 | E17: 316.019989 | F17: 317.320007 | G17: 81503900 | H17: 317.320007 | I17: =IF(F17=0,1,H17/F17) -> 1 | J17: =INDEX(OFFSET($T$15,0,0,$S$13+1,1),MATCH(B17,OFFSET($Q$15,0,0,$S$13+1,1),-1)) -> 1 | K17: =ROUND($I17*C17,2) -> 316.87 | L17: =ROUND($I17*D17,2) -> 318.67 | M17: =ROUND($I17*E17,2) -> 316.02 | N17: =ROUND($I17*F17,2) -> 317.32 | O17: =G17*J17 -> 81503900 | U17: 2019-06-21 | V17: 1.432 | W17: =(INDEX(OFFSET($F$15,1,0,$B$10,1),MATCH(U17,OFFSET($B$15,1,0,$B$10,1),-1))) -> 294 | X17: =YEAR(U17)&RIGHT("0"&MONTH(U17),2) -> 201906 | Y17: =YEAR(U17)-1&RIGHT("0"&MONTH(U17),2) -> 201806 | Z17: =OFFSET(U16,AA17,0,1,1) -> 2018-06-15 | AA17: =MATCH(Y17,OFFSET($X$15,A17,0,$V$14+1-A17,1),-1) -> 5 | AB17: =IF(OR(AND(YEAR(U17)=YEAR(Z17),MONTH(U17)=MONTH(Z17)),MONTH(U17)=MONTH(Z17)),1,0) -> 1 | AC17: =(V17+IF(AA17-AB17=0,0,IFERROR(SUM(OFFSET(V17,1,0,AA17-AB17-1,1)),0))) -> 5.423 | AD17: =AC17/(INDEX(OFFSET($F$15,1,0,$B$10,1),MATCH(U17,OFFSET($B$15,1,0,$B$10,1),-1))) -> 0.01844557823
A18: 3 | B18: 2019-12-12 | C18: 314.429993 | D18: 317.98999 | E18: 314.170013 | F18: 317.130005 | G18: 96389600 | H18: 317.130005 | I18: 1 | J18: 1 | K18: 314.43 | L18: 317.99 | M18: 314.17 | N18: 317.13 | O18: 96389600 | U18: 2019-03-15 | V18: 1.233 | W18: 281.309998 | X18: 201903 | Y18: 201803 | Z18: 2018-03-16 | AA18: 5 | AB18: 1 | AC18: 5.237 | AD18: 0.01861647306
A19: 4 | B19: 2019-12-11 | C19: 314.029999 | D19: 314.700012 | E19: 313.440002 | F19: 314.420013 | G19: 53429100 | H19: 314.420013 | I19: 1 | J19: 1 | K19: 314.03 | L19: 314.7 | M19: 313.44 | N19: 314.42 | O19: 53429100 | U19: 2018-12-21 | V19: 1.435 | W19: 240.699997 | X19: 201812 | Y19: 201712 | Z19: 2017-12-15 | AA19: 5 | AB19: 1 | AC19: 5.101 | AD19: 0.02119235589
A20: 5 | B20: 2019-12-10 | C20: 313.820007 | D20: 314.549988 | E20: 312.809998 | F20: 313.529999 | G20: 52649800 | H20: 313.529999 | I20: 1 | J20: 1 | K20: 313.82 | L20: 314.55 | M20: 312.81 | N20: 313.53 | O20: 52649800 | U20: 2018-09-21 | V20: 1.323 | W20: 291.98999 | X20: 201809 | Y20: 201709 | Z20: 2017-09-15 | AA20: 5 | AB20: 1 | AC20: 5.017 | AD20: 0.01718209587
A21: 6 | B21: 2019-12-09 | C21: 314.440002 | D21: 315.179993 | E21: 313.799988 | F21: 313.880005 | G21: 34838500 | H21: 313.880005 | I21: 1 | J21: 1 | K21: 314.44 | L21: 315.18 | M21: 313.8 | N21: 313.88 | O21: 34838500 | U21: 2018-06-15 | V21: 1.246 | W21: 277.130005 | X21: 201806 | Y21: 201706 | Z21: 2017-06-16 | AA21: 5 | AB21: 1 | AC21: 4.929 | AD21: 0.01778587634
A22: 7 | B22: 2019-12-06 | C22: 314.119995 | D22: 315.309998 | E22: 314.109985 | F22: 314.869995 | G22: 48927000 | H22: 314.869995 | I22: 1 | J22: 1 | K22: 314.12 | L22: 315.31 | M22: 314.11 | N22: 314.87 | O22: 48927000 | U22: 2018-03-16 | V22: 1.097 | W22: 274.200012 | X22: 201803 | Y22: 201703 | Z22: 2017-03-17 | AA22: 5 | AB22: 1 | AC22: 4.866 | AD22: 0.0177461699
A23: 8 | B23: 2019-12-05 | C23: 312.230011 | D23: 312.25 | E23: 310.579987 | F23: 312.019989 | G23: 40709000 | H23: 312.019989 | I23: 1 | J23: 1 | K23: 312.23 | L23: 312.25 | M23: 310.58 | N23: 312.02 | O23: 40709000 | U23: 2017-12-15 | V23: 1.351 | W23: 266.51001 | X23: 201712 | Y23: 201612 | Z23: 2016-12-16 | AA23: 5 | AB23: 1 | AC23: 4.802 | AD23: 0.01801808495
A24: 9 | B24: 2019-12-04 | C24: 310.700012 | D24: 312.119995 | E24: 310.320007 | F24: 311.459991 | G24: 49080000 | H24: 311.459991 | I24: 1 | J24: 1 | K24: 310.7 | L24: 312.12 | M24: 310.32 | N24: 311.46 | O24: 49080000 | U24: 2017-09-15 | V24: 1.235 | W24: 249.190002 | X24: 201709 | Y24: 201609 | Z24: 2016-09-16 | AA24: 5 | AB24: 1 | AC24: 4.78 | AD24: 0.01918215001
A25: 10 | B25: 2019-12-03 | C25: 308.649994 | D25: 309.640015 | E25: 307.130005 | F25: 309.549988 | G25: 73941700 | H25: 309.549988 | I25: 1 | J25: 1 | K25: 308.65 | L25: 309.64 | M25: 307.13 | N25: 309.55 | O25: 73941700 | U25: 2017-06-16 | V25: 1.183 | W25: 242.639999 | X25: 201706 | Y25: 201606 | Z25: 2016-06-17 | AA25: 5 | AB25: 1 | AC25: 4.627 | AD25: 0.01906940331
A26: 11 | B26: 2019-12-02 | C26: 314.589996 | D26: 314.660004 | E26: 311.170013 | F26: 311.640015 | G26: 75767800 | H26: 311.640015 | I26: 1 | J26: 1 | K26: 314.59 | L26: 314.66 | M26: 311.17 | N26: 311.64 | O26: 75767800 | U26: 2017-03-17 | V26: 1.033 | W26: 237.029999 | X26: 201703 | Y26: 201603 | Z26: 2016-03-18 | AA26: 5 | AB26: 1 | AC26: 4.522 | AD26: 0.01907775395
A27: 12 | B27: 2019-11-29 | C27: 314.859985 | D27: 315.130005 | E27: 314.059998 | F27: 314.309998 | G27: 36592700 | H27: 314.309998 | I27: 1 | J27: 1 | K27: 314.86 | L27: 315.13 | M27: 314.06 | N27: 314.31 | O27: 36592700 | U27: 2016-12-16 | V27: 1.329 | W27: 225.039993 | X27: 201612 | Y27: 201512 | Z27: 2015-12-18 | AA27: 5 | AB27: 1 | AC27: 4.539 | AD27: 0.02016974823
A28: 13 | B28: 2019-11-27 | C28: 314.609985 | D28: 315.480011 | E28: 314.369995 | F28: 315.480011 | G28: 44444600 | H28: 315.480011 | I28: 1 | J28: 1 | K28: 314.61 | L28: 315.48 | M28: 314.37 | N28: 315.48 | O28: 44444600 | U28: 2016-09-16 | V28: 1.082 | W28: 213.369995 | X28: 201609 | Y28: 201509 | Z28: 2015-09-18 | AA28: 5 | AB28: 1 | AC28: 4.422 | AD28: 0.02072456345
A29: 14 | B29: 2019-11-26 | C29: 313.410004 | D29: 314.279999 | E29: 313.059998 | F29: 314.079987 | G29: 37569000 | H29: 314.079987 | I29: 1 | J29: 1 | K29: 313.41 | L29: 314.28 | M29: 313.06 | N29: 314.08 | O29: 37569000 | U29: 2016-06-17 | V29: 1.078 | W29: 206.520004 | X29: 201606 | Y29: 201506 | Z29: 2015-06-19 | AA29: 5 | AB29: 1 | AC29: 4.373 | AD29: 0.02117470422
A30: 15 | B30: 2019-11-25 | C30: 311.980011 | D30: 313.369995 | E30: 311.980011 | F30: 313.369995 | G30: 48647200 | H30: 313.369995 | I30: 1 | J30: 1 | K30: 311.98 | L30: 313.37 | M30: 311.98 | N30: 313.37 | O30: 48647200 | U30: 2016-03-18 | V30: 1.05 | W30: 204.380005 | X30: 201603 | Y30: 201503 | Z30: 2015-03-20 | AA30: 5 | AB30: 1 | AC30: 4.325 | AD30: 0.02116156128
A31: 16 | B31: 2019-11-22 | C31: 311.089996 | D31: 311.23999 | E31: 309.850006 | F31: 310.959991 | G31: 44850200 | H31: 310.959991 | I31: 1 | J31: 1 | K31: 311.09 | L31: 311.24 | M31: 309.85 | N31: 310.96 | O31: 44850200 | U31: 2015-12-18 | V31: 1.212 | W31: 200.020004 | X31: 201512 | Y31: 201412 | Z31: 2014-12-19 | AA31: 5 | AB31: 1 | AC31: 4.206 | AD31: 0.02102789679
A32: 17 | B32: 2019-11-21 | C32: 310.890015 | D32: 311.01001 | E32: 309.390015 | F32: 310.269989 | G32: 54664700 | H32: 310.269989 | I32: 1 | J32: 1 | K32: 310.89 | L32: 311.01 | M32: 309.39 | N32: 310.27 | O32: 54664700 | U32: 2015-09-18 | V32: 1.033 | W32: 195.449997 | X32: 201509 | Y32: 201409 | Z32: 2014-09-19 | AA32: 5 | AB32: 1 | AC32: 4.129 | AD32: 0.0211256079
A33: 18 | B33: 2019-11-20 | C33: 311.279999 | D33: 311.850006 | E33: 309.059998 | F33: 310.769989 | G33: 79406200 | H33: 310.769989 | I33: 1 | J33: 1 | K33: 311.28 | L33: 311.85 | M33: 309.06 | N33: 310.77 | O33: 79406200 | U33: 2015-06-19 | V33: 1.03 | W33: 210.809998 | X33: 201506 | Y33: 201406 | Z33: 2014-06-20 | AA33: 5 | AB33: 1 | AC33: 4.035 | AD33: 0.01914045841
A34: 19 | B34: 2019-11-19 | C34: 312.679993 | D34: 312.690002 | E34: 311.220001 | F34: 311.929993 | G34: 67804700 | H34: 311.929993 | I34: 1 | J34: 1 | K34: 312.68 | L34: 312.69 | M34: 311.22 | N34: 311.93 | O34: 67804700 | U34: 2015-03-20 | V34: 0.931 | W34: 210.410004 | X34: 201503 | Y34: 201403 | Z34: 2014-03-21 | AA34: 5 | AB34: 1 | AC34: 3.942 | AD34: 0.01873485065
A35: 20 | B35: 2019-11-18 | C35: 311.529999 | D35: 312.279999 | E35: 311.029999 | F35: 312.019989 | G35: 49228000 | H35: 312.019989 | I35: 1 | J35: 1 | K35: 311.53 | L35: 312.28 | M35: 311.03 | N35: 312.02 | O35: 49228000 | U35: 2014-12-19 | V35: 1.135 | W35: 206.520004 | X35: 201412 | Y35: 201312 | Z35: 2013-12-20 | AA35: 5 | AB35: 1 | AC35: 3.836 | AD35: 0.01857447185
A36: 21 | B36: 2019-11-15 | C36: 311.019989 | D36: 311.839996 | E36: 310.26001 | F36: 311.790009 | G36: 62023600 | H36: 311.790009 | I36: 1 | J36: 1 | K36: 311.02 | L36: 311.84 | M36: 310.26 | N36: 311.79 | O36: 62023600 | U36: 2014-09-19 | V36: 0.939 | W36: 200.699997 | X36: 201409 | Y36: 201309 | Z36: 2013-09-20 | AA36: 5 | AB36: 1 | AC36: 3.681 | AD36: 0.01834080745
A37: 22 | B37: 2019-11-14 | C37: 308.790009 | D37: 309.640015 | E37: 308.089996 | F37: 309.549988 | G37: 51219900 | H37: 309.549988 | I37: 1 | J37: 1 | K37: 308.79 | L37: 309.64 | M37: 308.09 | N37: 309.55 | O37: 51219900 | U37: 2014-06-20 | V37: 0.937 | W37: 195.940002 | X37: 201406 | Y37: 201306 | Z37: 2013-06-21 | AA37: 5 | AB37: 1 | AC37: 3.58 | AD37: 0.01827089907
A38: 23 | B38: 2019-11-13 | C38: 307.910004 | D38: 309.540009 | E38: 307.660004 | F38: 309.100006 | G38: 53917700 | H38: 309.100006 | I38: 1 | J38: 1 | K38: 307.91 | L38: 309.54 | M38: 307.66 | N38: 309.1 | O38: 53917700 | U38: 2014-03-21 | V38: 0.825 | W38: 186.199997 | X38: 201403 | Y38: 201303 | Z38: 2013-03-15 | AA38: 5 | AB38: 1 | AC38: 3.482 | AD38: 0.01870032254
A39: 24 | B39: 2019-11-12 | C39: 308.75 | D39: 309.98999 | E39: 308.149994 | F39: 309 | G39: 46484600 | H39: 309 | I39: 1 | J39: 1 | K39: 308.75 | L39: 309.99 | M39: 308.15 | N39: 309 | O39: 46484600 | U39: 2013-12-20 | V39: 0.98 | W39: 181.559998 | X39: 201312 | Y39: 201212 | Z39: 2012-12-21 | AA39: 5 | AB39: 1 | AC39: 3.351 | AD39: 0.01845670873
A40: 25 | B40: 2019-11-11 | C40: 307.420013 | D40: 308.540009 | E40: 307.269989 | F40: 308.350006 | G40: 35797300 | H40: 308.350006 | I40: 1 | J40: 1 | K40: 307.42 | L40: 308.54 | M40: 307.27 | N40: 308.35 | O40: 35797300 | U40: 2013-09-20 | V40: 0.838 | W40: 170.720001 | X40: 201309 | Y40: 201209 | Z40: 2012-09-21 | AA40: 5 | AB40: 1 | AC40: 3.393 | AD40: 0.01987464843
A41: 26 | B41: 2019-11-08 | C41: 307.799988 | D41: 309 | E41: 307.029999 | F41: 308.940002 | G41: 49032100 | H41: 308.940002 | I41: 1 | J41: 1 | K41: 307.8 | L41: 309 | M41: 307.03 | N41: 308.94 | O41: 49032100 | U41: 2013-06-21 | V41: 0.839 | W41: 159.070007 | X41: 201306 | Y41: 201206 | Z41: 2012-06-15 | AA41: 5 | AB41: 1 | AC41: 3.334 | AD41: 0.02095932516
A42: 27 | B42: 2019-11-07 | C42: 308.570007 | D42: 309.649994 | E42: 307.660004 | F42: 308.179993 | G42: 54272300 | H42: 308.179993 | I42: 1 | J42: 1 | K42: 308.57 | L42: 309.65 | M42: 307.66 | N42: 308.18 | O42: 54272300 | U42: 2013-03-15 | V42: 0.694 | W42: 155.830002 | X42: 201303 | Y42: 201203 | Z42: 2012-03-16 | AA42: 5 | AB42: 1 | AC42: 3.183 | AD42: 0.02042610511
A43: 28 | B43: 2019-11-06 | C43: 307.029999 | D43: 307.399994 | E43: 306.059998 | F43: 307.100006 | G43: 46487100 | H43: 307.100006 | I43: 1 | J43: 1 | K43: 307.03 | L43: 307.4 | M43: 306.06 | N43: 307.1 | O43: 46487100 | U43: 2012-12-21 | V43: 1.022 | W43: 142.789993 | X43: 201212 | Y43: 201112 | Z43: 2011-12-16 | AA43: 5 | AB43: 1 | AC43: 3.103 | AD43: 0.02173121474
A44: 29 | B44: 2019-11-05 | C44: 307.589996 | D44: 307.920013 | E44: 306.709991 | F44: 307.029999 | G44: 42933200 | H44: 307.029999 | I44: 1 | J44: 1 | K44: 307.59 | L44: 307.92 | M44: 306.71 | N44: 307.03 | O44: 42933200 | U44: 2012-09-21 | V44: 0.779 | W44: 145.869995 | X44: 201209 | Y44: 201109 | Z44: 2011-09-16 | AA44: 5 | AB44: 1 | AC44: 2.851 | AD44: 0.01954480083
A45: 30 | B45: 2019-11-04 | C45: 307.850006 | D45: 308 | E45: 306.959991 | F45: 307.369995 | G45: 60606900 | H45: 307.369995 | I45: 1 | J45: 1 | K45: 307.85 | L45: 308 | M45: 306.96 | N45: 307.37 | O45: 60606900 | U45: 2012-06-15 | V45: 0.688 | W45: 134.139999 | X45: 201206 | Y45: 201106 | Z45: 2011-06-17 | AA45: 5 | AB45: 1 | AC45: 2.697 | AD45: 0.0201058597
A46: 31 | B46: 2019-11-01 | C46: 304.920013 | D46: 306.190002 | E46: 304.73999 | F46: 306.140015 | G46: 71141500 | H46: 306.140015 | I46: 1 | J46: 1 | K46: 304.92 | L46: 306.19 | M46: 304.74 | N46: 306.14 | O46: 71141500 | U46: 2012-03-16 | V46: 0.614 | W46: 140.300003 | X46: 201203 | Y46: 201103 | Z46: 2011-03-18 | AA46: 5 | AB46: 1 | AC46: 2.637 | AD46: 0.01879543794
A47: 32 | B47: 2019-10-31 | C47: 304.130005 | D47: 304.130005 | E47: 301.730011 | F47: 303.329987 | G47: 69053800 | H47: 303.329987 | I47: 1 | J47: 1 | K47: 304.13 | L47: 304.13 | M47: 301.73 | N47: 303.33 | O47: 69053800 | U47: 2011-12-16 | V47: 0.77 | W47: 121.589996 | X47: 201112 | Y47: 201012 | Z47: 2010-12-17 | AA47: 5 | AB47: 1 | AC47: 2.576 | AD47: 0.02118595349
A48: 33 | B48: 2019-10-30 | C48: 303.429993 | D48: 304.549988 | E48: 301.98999 | F48: 304.140015 | G48: 49643900 | H48: 304.140015 | I48: 1 | J48: 1 | K48: 303.43 | L48: 304.55 | M48: 301.99 | N48: 304.14 | O48: 49643900 | U48: 2011-09-16 | V48: 0.625 | W48: 121.519997 | X48: 201109 | Y48: 201009 | Z48: 2010-09-17 | AA48: 5 | AB48: 1 | AC48: 2.459 | AD48: 0.0202353527
A49: 34 | B49: 2019-10-29 | C49: 303 | D49: 304.230011 | E49: 302.859985 | F49: 303.209991 | G49: 44284900 | H49: 303.209991 | I49: 1 | J49: 1 | K49: 303 | L49: 304.23 | M49: 302.86 | N49: 303.21 | O49: 44284900 | U49: 2011-06-17 | V49: 0.628 | W49: 127.050003 | X49: 201106 | Y49: 201006 | Z49: 2010-06-18 | AA49: 5 | AB49: 1 | AC49: 2.436 | AD49: 0.01917355327
A50: 35 | B50: 2019-10-28 | C50: 302.940002 | D50: 303.850006 | E50: 302.910004 | F50: 303.299988 | G50: 42147000 | H50: 303.299988 | I50: 1 | J50: 1 | K50: 302.94 | L50: 303.85 | M50: 302.91 | N50: 303.3 | O50: 42147000 | U50: 2011-03-18 | V50: 0.553 | W50: 127.760002 | X50: 201103 | Y50: 201003 | Z50: 2010-03-19 | AA50: 5 | AB50: 1 | AC50: 2.339 | AD50: 0.01830776427
A51: 36 | B51: 2019-10-25 | C51: 299.73999 | D51: 302.200012 | E51: 299.679993 | F51: 301.600006 | G51: 45205400 | H51: 301.600006 | I51: 1 | J51: 1 | K51: 299.74 | L51: 302.2 | M51: 299.68 | N51: 301.6 | O51: 45205400 | U51: 2010-12-17 | V51: 0.653 | W51: 124.300003 | X51: 201012 | Y51: 200912 | Z51: 2009-12-18 | AA51: 5 | AB51: 1 | AC51: 2.266 | AD51: 0.01823008806
A52: 37 | B52: 2019-10-24 | C52: 300.910004 | D52: 301.070007 | E52: 299.459991 | F52: 300.369995 | G52: 35453100 | H52: 300.369995 | I52: 1 | J52: 1 | K52: 300.91 | L52: 301.07 | M52: 299.46 | N52: 300.37 | O52: 35453100 | U52: 2010-09-17 | V52: 0.602 | W52: 112.489998 | X52: 201009 | Y52: 200909 | Z52: 2009-09-18 | AA52: 5 | AB52: 1 | AC52: 2.203 | AD52: 0.01958396337
A53: 38 | B53: 2019-10-23 | C53: 298.730011 | D53: 299.940002 | E53: 298.5 | F53: 299.880005 | G53: 34352200 | H53: 299.880005 | I53: 1 | J53: 1 | K53: 298.73 | L53: 299.94 | M53: 298.5 | N53: 299.88 | O53: 34352200 | U53: 2010-06-18 | V53: 0.531 | W53: 111.730003 | X53: 201006 | Y53: 200906 | Z53: 2009-06-19 | AA53: 5 | AB53: 1 | AC53: 2.109 | AD53: 0.01887586094
A54: 39 | B54: 2019-10-22 | C54: 300.579987 | D54: 300.899994 | E54: 298.910004 | F54: 299.01001 | G54: 48594700 | H54: 299.01001 | I54: 1 | J54: 1 | K54: 300.58 | L54: 300.9 | M54: 298.91 | N54: 299.01 | O54: 48594700 | U54: 2010-03-19 | V54: 0.48 | W54: 115.970001 | X54: 201003 | Y54: 200903 | Z54: 2009-03-20 | AA54: 5 | AB54: 1 | AC54: 2.096 | AD54: 0.01807363958
A55: 40 | B55: 2019-10-21 | C55: 299.420013 | D55: 300.209991 | E55: 298.940002 | F55: 299.98999 | G55: 39048600 | H55: 299.98999 | I55: 1 | J55: 1 | K55: 299.42 | L55: 300.21 | M55: 298.94 | N55: 299.99 | O55: 39048600 | U55: 2009-12-18 | V55: 0.59 | W55: 110.209999 | X55: 200912 | Y55: 200812 | Z55: 2008-12-19 | AA55: 5 | AB55: 1 | AC55: 2.177 | AD55: 0.01975319862
A56: 41 | B56: 2019-10-18 | C56: 298.690002 | D56: 299.399994 | E56: 297.029999 | F56: 297.970001 | G56: 64304000 | H56: 297.970001 | I56: 1 | J56: 1 | K56: 298.69 | L56: 299.4 | M56: 297.03 | N56: 297.97 | O56: 64304000 | U56: 2009-09-18 | V56: 0.508 | W56: 106.720001 | X56: 200909 | Y56: 200809 | Z56: 2008-09-19 | AA56: 5 | AB56: 1 | AC56: 2.306 | AD56: 0.02160794582
A57: 42 | B57: 2019-10-17 | C57: 299.679993 | D57: 300.23999 | E57: 298.519989 | F57: 299.279999 | G57: 45736600 | H57: 299.279999 | I57: 1 | J57: 1 | K57: 299.68 | L57: 300.24 | M57: 298.52 | N57: 299.28 | O57: 45736600 | U57: 2009-06-19 | V57: 0.518 | W57: 92.040001 | X57: 200906 | Y57: 200806 | Z57: 2008-06-20 | AA57: 5 | AB57: 1 | AC57: 2.489 | AD57: 0.02704258988
A58: 43 | B58: 2019-10-16 | C58: 298.369995 | D58: 299.160004 | E58: 297.920013 | F58: 298.399994 | G58: 48928200 | H58: 298.399994 | I58: 1 | J58: 1 | K58: 298.37 | L58: 299.16 | M58: 297.92 | N58: 298.4 | O58: 48928200 | U58: 2009-03-20 | V58: 0.561 | W58: 76.709999 | X58: 200903 | Y58: 200803 | Z58: 2008-03-20 | AA58: 5 | AB58: 1 | AC58: 2.64 | AD58: 0.03441533091
A59: 44 | B59: 2019-10-15 | C59: 297.100006 | D59: 299.700012 | E59: 296.970001 | F59: 298.880005 | G59: 46754500 | H59: 298.880005 | I59: 1 | J59: 1 | K59: 297.1 | L59: 299.7 | M59: 296.97 | N59: 298.88 | O59: 46754500 | U59: 2008-12-19 | V59: 0.719 | W59: 88.190002 | X59: 200812 | Y59: 200712 | Z59: 2007-12-21 | AA59: 5 | AB59: 1 | AC59: 2.721 | AD59: 0.0308538376
A60: 45 | B60: 2019-10-14 | C60: 295.929993 | D60: 296.670013 | E60: 295.570007 | F60: 295.950012 | G60: 40394800 | H60: 295.950012 | I60: 1 | J60: 1 | K60: 295.93 | L60: 296.67 | M60: 295.57 | N60: 295.95 | O60: 40394800 | U60: 2008-09-19 | V60: 0.691 | W60: 124.120003 | X60: 200809 | Y60: 200709 | Z60: 2007-09-21 | AA60: 5 | AB60: 1 | AC60: 2.777 | AD60: 0.02237350897
A61: 46 | B61: 2019-10-11 | C61: 296.269989 | D61: 298.73999 | E61: 296.140015 | F61: 296.279999 | G61: 98720400 | H61: 296.279999 | I61: 1 | J61: 1 | K61: 296.27 | L61: 298.74 | M61: 296.14 | N61: 296.28 | O61: 98720400 | U61: 2008-06-20 | V61: 0.669 | W61: 131.580002 | X61: 200806 | Y61: 200706 | Z61: 2007-06-15 | AA61: 5 | AB61: 1 | AC61: 2.805 | AD61: 0.02131782913
A62: 47 | B62: 2019-10-10 | C62: 291.179993 | D62: 294.209991 | E62: 291 | F62: 293.23999 | G62: 55296300 | H62: 293.23999 | I62: 1 | J62: 1 | K62: 291.18 | L62: 294.21 | M62: 291 | N62: 293.24 | O62: 55296300 | U62: 2008-03-20 | V62: 0.642 | W62: 132.080002 | X62: 200803 | Y62: 200703 | Z62: 2007-03-16 | AA62: 5 | AB62: 1 | AC62: 2.792 | AD62: 0.0211387035
A63: 48 | B63: 2019-10-09 | C63: 290.75 | D63: 292.299988 | E63: 290.059998 | F63: 291.269989 | G63: 62359400 | H63: 291.269989 | I63: 1 | J63: 1 | K63: 290.75 | L63: 292.3 | M63: 290.06 | N63: 291.27 | O63: 62359400 | U63: 2007-12-21 | V63: 0.775 | W63: 148.130005 | X63: 200712 | Y63: 200612 | Z63: 2006-12-15 | AA63: 5 | AB63: 1 | AC63: 2.701 | AD63: 0.01823398305
A64: 49 | B64: 2019-10-08 | C64: 291.040009 | D64: 291.850006 | E64: 288.48999 | F64: 288.529999 | G64: 95708100 | H64: 288.529999 | I64: 1 | J64: 1 | K64: 291.04 | L64: 291.85 | M64: 288.49 | N64: 288.53 | O64: 95708100 | U64: 2007-09-21 | V64: 0.719 | W64: 151.970001 | X64: 200709 | Y64: 200609 | Z64: 2006-09-15 | AA64: 5 | AB64: 1 | AC64: 2.719 | AD64: 0.01789168903
A65: 50 | B65: 2019-10-07 | C65: 293.470001 | D65: 295.26001 | E65: 292.769989 | F65: 293.079987 | G65: 59610500 | H65: 293.079987 | I65: 1 | J65: 1 | K65: 293.47 | L65: 295.26 | M65: 292.77 | N65: 293.08 | O65: 59610500 | U65: 2007-06-15 | V65: 0.656 | W65: 153.070007 | X65: 200706 | Y65: 200606 | Z65: 2006-06-16 | AA65: 5 | AB65: 1 | AC65: 2.579 | AD65: 0.01684849992
A66: 51 | B66: 2019-10-04 | C66: 291.140015 | D66: 294.630005 | E66: 291.079987 | F66: 294.350006 | G66: 65091200 | H66: 294.350006 | I66: 1 | J66: 1 | K66: 291.14 | L66: 294.63 | M66: 291.08 | N66: 294.35 | O66: 65091200 | U66: 2007-03-16 | V66: 0.551 | W66: 138.529999 | X66: 200703 | Y66: 200603 | Z66: 2006-03-17 | AA66: 5 | AB66: 1 | AC66: 2.478 | AD66: 0.01788782226
A67: 52 | B67: 2019-10-03 | C67: 287.809998 | D67: 290.450012 | E67: 284.820007 | F67: 290.420013 | G67: 85278800 | H67: 290.420013 | I67: 1 | J67: 1 | K67: 287.81 | L67: 290.45 | M67: 284.82 | N67: 290.42 | O67: 85278800 | U67: 2006-12-15 | V67: 0.793 | W67: 142.339996 | X67: 200612 | Y67: 200512 | Z67: 2005-12-16 | AA67: 5 | AB67: 1 | AC67: 2.446 | AD67: 0.01718420731
A68: 53 | B68: 2019-10-02 | C68: 291.5 | D68: 291.51001 | E68: 286.640015 | F68: 288.059998 | G68: 122539500 | H68: 288.059998 | I68: 1 | J68: 1 | K68: 291.5 | L68: 291.51 | M68: 286.64 | N68: 288.06 | O68: 122539500 | U68: 2006-09-15 | V68: 0.579 | W68: 131.960007 | X68: 200609 | Y68: 200509 | Z68: 2005-09-16 | AA68: 5 | AB68: 1 | AC68: 2.325 | AD68: 0.01761897451
A69: 54 | B69: 2019-10-01 | C69: 297.73999 | D69: 298.459991 | E69: 293 | F69: 293.23999 | G69: 88242400 | H69: 293.23999 | I69: 1 | J69: 1 | K69: 297.74 | L69: 298.46 | M69: 293 | N69: 293.24 | O69: 88242400 | U69: 2006-06-16 | V69: 0.555 | W69: 124.650002 | X69: 200606 | Y69: 200506 | Z69: 2005-06-17 | AA69: 5 | AB69: 1 | AC69: 2.268 | AD69: 0.01819494556
A70: 55 | B70: 2019-09-30 | C70: 295.970001 | D70: 297.549988 | E70: 295.920013 | F70: 296.769989 | G70: 51662400 | H70: 296.769989 | I70: 1 | J70: 1 | K70: 295.97 | L70: 297.55 | M70: 295.92 | N70: 296.77 | O70: 51662400 | U70: 2006-03-17 | V70: 0.519 | W70: 130.619995 | X70: 200603 | Y70: 200503 | Z70: 2005-03-18 | AA70: 5 | AB70: 1 | AC70: 2.201 | AD70: 0.0168504064
A71: 56 | B71: 2019-09-27 | C71: 297.829987 | D71: 297.950012 | E71: 293.690002 | F71: 295.399994 | G71: 84746600 | H71: 295.399994 | I71: 1 | J71: 1 | K71: 297.83 | L71: 297.95 | M71: 293.69 | N71: 295.4 | O71: 84746600 | U71: 2005-12-16 | V71: 0.672 | W71: 126.360001 | X71: 200512 | Y71: 200412 | Z71: 2004-12-17 | AA71: 5 | AB71: 1 | AC71: 2.149 | AD71: 0.01700696409
A72: 57 | B72: 2019-09-26 | C72: 297.630005 | D72: 297.859985 | E72: 295.450012 | F72: 297 | G72: 56179700 | H72: 297 | I72: 1 | J72: 1 | K72: 297.63 | L72: 297.86 | M72: 295.45 | N72: 297 | O72: 56179700 | U72: 2005-09-16 | V72: 0.522 | W72: 123.5 | X72: 200509 | Y72: 200409 | Z72: 2004-09-17 | AA72: 6 | AB72: 1 | AC72: 2.396 | AD72: 0.01940080972
A73: 58 | B73: 2019-09-25 | C73: 295.959991 | D73: 298.109985 | E73: 294.329987 | F73: 297.619995 | G73: 71854000 | H73: 297.619995 | I73: 1 | J73: 1 | K73: 295.96 | L73: 298.11 | M73: 294.33 | N73: 297.62 | O73: 71854000 | U73: 2005-06-17 | V73: 0.488 | W73: 121.360001 | X73: 200506 | Y73: 200406 | Z73: 2004-06-18 | AA73: 6 | AB73: 1 | AC73: 2.343 | AD73: 0.01930619628
A74: 59 | B74: 2019-09-24 | C74: 299.410004 | D74: 299.839996 | E74: 294.809998 | F74: 295.869995 | G74: 94869400 | H74: 295.869995 | I74: 1 | J74: 1 | K74: 299.41 | L74: 299.84 | M74: 294.81 | N74: 295.87 | O74: 94869400 | U74: 2005-03-18 | V74: 0.467 | W74: 118.540001 | X74: 200503 | Y74: 200403 | Z74: 2004-03-19 | AA74: 6 | AB74: 1 | AC74: 2.269 | AD74: 0.01914121799
A75: 60 | B75: 2019-09-23 | C75: 297.549988 | D75: 299 | E75: 297.269989 | F75: 298.209991 | G75: 43476800 | H75: 298.209991 | I75: 1 | J75: 1 | K75: 297.55 | L75: 299 | M75: 297.27 | N75: 298.21 | O75: 43476800 | U75: 2004-12-17 | V75: 0.568 | W75: 119.440002 | X75: 200412 | Y75: 200312 | Z75: 2003-12-19 | AA75: 6 | AB75: 1 | AC75: 2.197 | AD75: 0.0183941725
A76: 61 | B76: 2019-09-20 | C76: 300.359985 | D76: 300.670013 | E76: 297.410004 | F76: 298.279999 | G76: 89565000 | H76: 298.279999 | I76: 1 | J76: 1 | K76: 300.36 | L76: 300.67 | M76: 297.41 | N76: 298.28 | O76: 89565000 | U76: 2004-11-15 | V76: 0.351 | W76: 118.730003 | X76: 200411 | Y76: 200311 | Z76: 2003-12-19 | AA76: 5 | AB76: 0 | AC76: 2.145 | AD76: 0.01806620017
A77: 62 | B77: 2019-09-19 | C77: 301.529999 | D77: 302.630005 | E77: 300.709991 | F77: 301.079987 | G77: 76560500 | H77: 299.695984 | I77: 0.9954032049 | J77: 1 | K77: 300.14 | L77: 301.24 | M77: 299.33 | N77: 299.7 | O77: 76560500 | U77: 2004-09-17 | V77: 0.469 | W77: 113.150002 | X77: 200409 | Y77: 200309 | Z77: 2003-09-19 | AA77: 5 | AB77: 1 | AC77: 1.794 | AD77: 0.01585505938
A78: 63 | B78: 2019-09-18 | C78: 300.48999 | D78: 301.220001 | E78: 298.23999 | F78: 301.100006 | G78: 73375800 | H78: 299.715912 | I78: 0.9954032083 | J78: 1 | K78: 299.11 | L78: 299.84 | M78: 296.87 | N78: 299.72 | O78: 73375800 | U78: 2004-06-18 | V78: 0.414 | W78: 113.629997 | X78: 200406 | Y78: 200306 | Z78: 2003-06-20 | AA78: 5 | AB78: 1 | AC78: 1.725 | AD78: 0.01518085053
A79: 64 | B79: 2019-09-17 | C79: 299.940002 | D79: 301.019989 | E79: 299.75 | F79: 300.920013 | G79: 41475500 | H79: 299.536743 | I79: 0.9954031971 | J79: 1 | K79: 298.56 | L79: 299.64 | M79: 298.37 | N79: 299.54 | O79: 41475500 | U79: 2004-03-19 | V79: 0.395 | W79: 111.059998 | X79: 200403 | Y79: 200303 | Z79: 2003-03-21 | AA79: 5 | AB79: 1 | AC79: 1.671 | AD79: 0.01504592139
A80: 65 | B80: 2019-09-16 | C80: 299.839996 | D80: 301.140015 | E80: 299.450012 | F80: 300.160004 | G80: 58191200 | H80: 298.780243 | I80: 0.9954032483 | J80: 1 | K80: 298.46 | L80: 299.76 | M80: 298.07 | N80: 298.78 | O80: 58191200 | U80: 2003-12-19 | V80: 0.516 | W80: 108.900002 | X80: 200312 | Y80: 200212 | Z80: 2002-12-20 | AA80: 5 | AB80: 1 | AC80: 1.63 | AD80: 0.01496786015
A81: 66 | B81: 2019-09-13 | C81: 301.779999 | D81: 302.170013 | E81: 300.679993 | F81: 301.089996 | G81: 62104800 | H81: 299.705963 | I81: =IF(F81=0,1,H81/F81) -> 0.9954032581 | J81: =INDEX(OFFSET($T$15,0,0,$S$13+1,1),MATCH(B81,OFFSET($Q$15,0,0,$S$13+1,1),-1)) -> 1 | K81: =ROUND($I81*C81,2) -> 300.39 | L81: =ROUND($I81*D81,2) -> 300.78 | M81: =ROUND($I81*E81,2) -> 299.3 | N81: =ROUND($I81*F81,2) -> 299.71 | O81: =G81*J81 -> 62104800 | U81: 2003-09-19 | V81: 0.4 | W81: =(INDEX(OFFSET($F$15,1,0,$B$10,1),MATCH(U81,OFFSET($B$15,1,0,$B$10,1),-1))) -> 103.669998 | X81: =YEAR(U81)&RIGHT("0"&MONTH(U81),2) -> 200309 | Y81: =YEAR(U81)-1&RIGHT("0"&MONTH(U81),2) -> 200209 | Z81: =OFFSET(U80,AA81,0,1,1) -> 2002-09-20 | AA81: =MATCH(Y81,OFFSET($X$15,A81,0,$V$14+1-A81,1),-1) -> 5 | AB81: =IF(OR(AND(YEAR(U81)=YEAR(Z81),MONTH(U81)=MONTH(Z81)),MONTH(U81)=MONTH(Z81)),1,0) -> 1 | AC81: =(V81+IF(AA81-AB81=0,0,IFERROR(SUM(OFFSET(V81,1,0,AA81-AB81-1,1)),0))) -> 1.55 | AD81: =AC81/(INDEX(OFFSET($F$15,1,0,$B$10,1),MATCH(U81,OFFSET($B$15,1,0,$B$10,1),-1))) -> 0.01495128803
A82: 67 | B82: 2019-09-12 | C82: 301.25 | D82: 302.459991 | E82: 300.410004 | F82: 301.290009 | G82: 72908700 | H82: 299.90506 | I82: 0.9954032694 | J82: 1 | K82: 299.87 | L82: 301.07 | M82: 299.03 | N82: 299.91 | O82: 72908700 | U82: 2003-06-20 | V82: 0.36 | W82: 99.440002 | X82: 200306 | Y82: 200206 | Z82: 2002-06-21 | AA82: 5 | AB82: 1 | AC82: 1.528 | AD82: 0.01536604957
A83: 68 | B83: 2019-09-11 | C83: 298.470001 | D83: 300.339996 | E83: 297.75 | F83: 300.25 | G83: 68821100 | H83: 298.869812 | I83: 0.995403204 | J83: 1 | K83: 297.1 | L83: 298.96 | M83: 296.38 | N83: 298.87 | O83: 68821100 | U83: 2003-03-21 | V83: 0.354 | W83: 89.669998 | X83: 200303 | Y83: 200203 | Z83: 2002-03-15 | AA83: 5 | AB83: 1 | AC83: 1.521 | AD83: 0.01696219509
A84: 69 | B84: 2019-09-10 | C84: 297.359985 | D84: 298.200012 | E84: 295.970001 | F84: 298.130005 | G84: 57947100 | H84: 296.759583 | I84: 0.9954032738 | J84: 1 | K84: 295.99 | L84: 296.83 | M84: 294.61 | N84: 296.76 | O84: 57947100 | U84: 2002-12-20 | V84: 0.436 | W84: 89.989998 | X84: 200212 | Y84: 200112 | Z84: 2001-12-21 | AA84: 5 | AB84: 1 | AC84: 1.498 | AD84: 0.0166462944
A85: 70 | B85: 2019-09-09 | C85: 299.140015 | D85: 299.23999 | E85: 297.160004 | F85: 298.200012 | G85: 51260300 | H85: 296.829254 | I85: 0.9954032262 | J85: 1 | K85: 297.76 | L85: 297.86 | M85: 295.79 | N85: 296.83 | O85: 51260300 | U85: 2002-09-20 | V85: 0.378 | W85: 84.349998 | X85: 200209 | Y85: 200109 | Z85: 2001-09-21 | AA85: 5 | AB85: 1 | AC85: 1.455 | AD85: 0.01724955583
A86: 71 | B86: 2019-09-06 | C86: 298.170013 | D86: 298.76001 | E86: 297.420013 | F86: 298.049988 | G86: 49584300 | H86: 296.679932 | I86: 0.9954032677 | J86: 1 | K86: 296.8 | L86: 297.39 | M86: 296.05 | N86: 296.68 | O86: 49584300 | U86: 2002-06-21 | V86: 0.353 | W86: 99.279999 | X86: 200206 | Y86: 200106 | Z86: 2001-06-15 | AA86: 5 | AB86: 1 | AC86: 1.446 | AD86: 0.01456486719
A87: 72 | B87: 2019-09-05 | C87: 296.790009 | D87: 298.829987 | E87: 294 | F87: 297.820007 | G87: 83258100 | H87: 296.450989 | I87: 0.9954032034 | J87: 1 | K87: 295.43 | L87: 297.46 | M87: 292.65 | N87: 296.45 | O87: 83258100 | U87: 2002-03-15 | V87: 0.331 | W87: 116.650002 | X87: 200203 | Y87: 200103 | Z87: 2001-03-16 | AA87: 5 | AB87: 1 | AC87: 1.439 | AD87: 0.0123360478
A88: 73 | B88: 2019-09-04 | C88: 293.140015 | D88: 294.059998 | E88: 292.309998 | F88: 294.040009 | G88: 46887300 | H88: 292.688385 | I88: 0.995403265 | J88: 1 | K88: 291.79 | L88: 292.71 | M88: 290.97 | N88: 292.69 | O88: 46887300 | U88: 2001-12-21 | V88: 0.393 | W88: 114.949997 | X88: 200112 | Y88: 200012 | Z88: 2000-12-27 | AA88: 5 | AB88: 1 | AC88: 1.424 | AD88: 0.0123879951
A89: 74 | B89: 2019-09-03 | C89: 290.570007 | D89: 291.579987 | E89: 289.269989 | F89: 290.73999 | G89: 69101400 | H89: 289.403534 | I89: 0.9954032605 | J89: 1 | K89: 289.23 | L89: 290.24 | M89: 287.94 | N89: 289.4 | O89: 69101400 | U89: 2001-09-21 | V89: 0.369 | W89: 97.279999 | X89: 200109 | Y89: 200009 | Z89: 2000-09-15 | AA89: 6 | AB89: 1 | AC89: 1.442 | AD89: 0.01482319094
A90: 75 | B90: 2019-08-30 | C90: 294.220001 | D90: 294.23999 | E90: 291.420013 | F90: 292.450012 | G90: 62901200 | H90: 291.105682 | I90: 0.9954032144 | J90: 1 | K90: 292.87 | L90: 292.89 | M90: 290.08 | N90: 291.11 | O90: 62901200 | U90: 2001-06-15 | V90: 0.346 | W90: 121.849998 | X90: 200106 | Y90: 200006 | Z90: 2000-06-16 | AA90: 7 | AB90: 1 | AC90: 1.448 | AD90: 0.01188346347
A91: 76 | B91: 2019-08-29 | C91: 291.720001 | D91: 293.160004 | E91: 290.609985 | F91: 292.579987 | G91: 57899400 | H91: 291.235077 | I91: 0.9954032741 | J91: 1 | K91: 290.38 | L91: 291.81 | M91: 289.27 | N91: 291.24 | O91: 57899400 | U91: 2001-03-16 | V91: 0.316 | W91: 115.010002 | X91: 200103 | Y91: 200003 | Z91: 2000-03-17 | AA91: 7 | AB91: 1 | AC91: 1.45 | AD91: 0.01260759912
A92: 77 | B92: 2019-08-28 | C92: 286.140015 | D92: 289.070007 | E92: 285.25 | F92: 288.890015 | G92: 59696700 | H92: 287.562042 | I92: 0.9954031883 | J92: 1 | K92: 284.82 | L92: 287.74 | M92: 283.94 | N92: 287.56 | O92: 59696700 | U92: 2000-12-27 | V92: 0 | W92: 133.3125 | X92: 200012 | Y92: 199912 | Z92: 1999-12-17 | AA92: 7 | AB92: 1 | AC92: 1.505 | AD92: 0.01128926395
A93: 78 | B93: 2019-08-27 | C93: 289.540009 | D93: 289.950012 | E93: 286.029999 | F93: 286.869995 | G93: 66668900 | H93: 285.551331 | I93: 0.9954032697 | J93: 1 | K93: 288.21 | L93: 288.62 | M93: 284.72 | N93: 285.55 | O93: 66668900 | U93: 2000-12-15 | V93: 0.411 | W93: 130.96875 | X93: 200012 | Y93: 199912 | Z93: 1999-12-17 | AA93: 6 | AB93: 1 | AC93: 1.505 | AD93: 0.01149129086
A94: 79 | B94: 2019-08-26 | C94: 287.269989 | D94: 288 | E94: 285.579987 | F94: 288 | G94: 72423800 | H94: 286.676117 | I94: 0.995403184 | J94: 1 | K94: 285.95 | L94: 286.68 | M94: 284.27 | N94: 286.68 | O94: 72423800 | U94: 2000-09-15 | V94: 0.375 | W94: 146 | X94: 200009 | Y94: 199909 | Z94: 1999-09-17 | AA94: 6 | AB94: 1 | AC94: 1.442 | AD94: 0.009876712329
A95: 80 | B95: 2019-08-23 | C95: 290.920013 | D95: 292.76001 | E95: 283.470001 | F95: 284.850006 | G95: 149161500 | H95: 283.540619 | I95: 0.9954032404 | J95: 1 | K95: 289.58 | L95: 291.41 | M95: 282.17 | N95: 283.54 | O95: 149161500 | U95: 2000-09-14 | V95: 0 | W95: 149.640625 | X95: 200009 | Y95: 199909 | Z95: 1999-09-17 | AA95: 5 | AB95: 1 | AC95: 1.067 | AD95: 0.007130416623
A96: 81 | B96: 2019-08-22 | C96: 293.230011 | D96: 293.929993 | E96: 290.399994 | F96: 292.359985 | G96: 51666400 | H96: 291.016083 | I96: 0.9954032629 | J96: 1 | K96: 291.88 | L96: 292.58 | M96: 289.07 | N96: 291.02 | O96: 51666400 | U96: 2000-06-16 | V96: 0.348 | W96: 146.59375 | X96: 200006 | Y96: 199906 | Z96: 1999-06-18 | AA96: 5 | AB96: 1 | AC96: 1.439 | AD96: 0.009816243871
A97: 82 | B97: 2019-08-21 | C97: 292.480011 | D97: 292.859985 | E97: 291.720001 | F97: 292.450012 | G97: 49524700 | H97: 291.105682 | I97: 0.9954032144 | J97: 1 | K97: 291.14 | L97: 291.51 | M97: 290.38 | N97: 291.11 | O97: 49524700 | U97: 2000-03-17 | V97: 0.371 | W97: 146.9375 | X97: 200003 | Y97: 199903 | Z97: 1999-03-19 | AA97: 5 | AB97: 1 | AC97: 1.496 | AD97: 0.01018119949
A98: 83 | B98: 2019-08-20 | C98: 291.769989 | D98: 292.359985 | E98: 289.950012 | F98: 290.089996 | G98: 51596400 | H98: 288.756531 | I98: 0.9954032713 | J98: 1 | K98: 290.43 | L98: 291.02 | M98: 288.62 | N98: 288.76 | O98: 51596400 | U98: 1999-12-17 | V98: 0.348 | W98: 142.6875 | X98: 199912 | Y98: 199812 | Z98: 1998-12-18 | AA98: 5 | AB98: 1 | AC98: 1.445 | AD98: 0.01012702584
A99: 84 | B99: 2019-08-19 | C99: 292.190002 | D99: 293.079987 | E99: 291.440002 | F99: 292.329987 | G99: 53571800 | H99: 290.986206 | I99: 0.9954032051 | J99: 1 | K99: 290.85 | L99: 291.73 | M99: 290.1 | N99: 290.99 | O99: 53571800 | U99: 1999-09-17 | V99: 0.372 | W99: 133.75 | X99: 199909 | Y99: 199809 | Z99: 1998-09-18 | AA99: 5 | AB99: 1 | AC99: 1.489 | AD99: 0.01113271028
A100: 85 | B100: 2019-08-16 | C100: 286.480011 | D100: 289.329987 | E100: 284.709991 | F100: 288.850006 | G100: 83018300 | H100: 287.522217 | I100: 0.9954031886 | J100: 1 | K100: 285.16 | L100: 288 | M100: 283.4 | N100: 287.52 | O100: 83018300 | U100: 1999-06-18 | V100: 0.405 | W100: 134.3125 | X100: 199906 | Y100: 199806 | Z100: 1998-06-19 | AA100: 5 | AB100: 1 | AC100: 1.476 | AD100: 0.01098929735
A101: 86 | B101: 2019-08-15 | C101: 284.880005 | D101: 285.640015 | E101: 282.390015 | F101: 284.649994 | G101: 99556600 | H101: 283.341522 | I101: 0.9954032249 | J101: 1 | K101: 283.57 | L101: 284.33 | M101: 281.09 | N101: 283.34 | O101: 99556600 | U101: 1999-03-19 | V101: 0.32 | W101: 129.6875 | X101: 199903 | Y101: 199803 | Z101: 1998-03-20 | AA101: 5 | AB101: 1 | AC101: 1.423 | AD101: 0.01097253012
A102: 87 | B102: 2019-08-14 | C102: 288.070007 | D102: 288.73999 | E102: 283.76001 | F102: 283.899994 | G102: 135622100 | H102: 282.594971 | I102: 0.9954032299 | J102: 1 | K102: 286.75 | L102: 287.41 | M102: 282.46 | N102: 282.59 | O102: 135622100 | U102: 1998-12-18 | V102: 0.392 | W102: 118.5 | X102: 199812 | Y102: 199712 | Z102: 1997-12-19 | AA102: 5 | AB102: 1 | AC102: 1.416 | AD102: 0.01194936709
A103: 88 | B103: 2019-08-13 | C103: 287.73999 | D103: 294.149994 | E103: 287.359985 | F103: 292.549988 | G103: 94299800 | H103: 291.2052 | I103: 0.9954032198 | J103: 1 | K103: 286.42 | L103: 292.8 | M103: 286.04 | N103: 291.21 | O103: 94299800 | U103: 1998-09-18 | V103: 0.359 | W103: 102.09375 | X103: 199809 | Y103: 199709 | Z103: 1997-09-19 | AA103: 5 | AB103: 1 | AC103: 1.404 | AD103: 0.01375206612
A104: 89 | B104: 2019-08-12 | C104: 289.959991 | D104: 291.609985 | E104: 287.019989 | F104: 288.070007 | G104: 62629500 | H104: 286.745819 | I104: 0.9954032424 | J104: 1 | K104: 288.63 | L104: 290.27 | M104: 285.7 | N104: 286.75 | O104: 62629500 | U104: 1998-06-19 | V104: 0.352 | W104: 110.0625 | X104: 199806 | Y104: 199706 | Z104: 1997-06-20 | AA104: 5 | AB104: 1 | AC104: 1.393 | AD104: 0.0126564452
A105: 90 | B105: 2019-08-09 | C105: 292.579987 | D105: 293.23999 | E105: 289.649994 | F105: 291.619995 | G105: 93730000 | H105: 290.27948 | I105: 0.995403213 | J105: 1 | K105: 291.24 | L105: 291.89 | M105: 288.32 | N105: 290.28 | O105: 93730000 | U105: 1998-03-20 | V105: 0.313 | W105: 109.875 | X105: 199803 | Y105: 199703 | Z105: 1997-03-21 | AA105: 5 | AB105: 1 | AC105: 1.391 | AD105: 0.01265984073
A106: 91 | B106: 2019-08-08 | C106: 289.619995 | D106: 293.619995 | E106: 289.01001 | F106: 293.619995 | G106: 87713900 | H106: 292.270294 | I106: 0.9954032388 | J106: 1 | K106: 288.29 | L106: 292.27 | M106: 287.68 | N106: 292.27 | O106: 87713900 | U106: 1997-12-19 | V106: 0.38 | W106: 94.78125 | X106: 199712 | Y106: 199612 | Z106: 1996-12-20 | AA106: 5 | AB106: 1 | AC106: 1.377 | AD106: 0.01452818991
A107: 92 | B107: 2019-08-07 | C107: 284.399994 | D107: 288.820007 | E107: 282.040009 | F107: 287.970001 | G107: 140572300 | H107: 286.646271 | I107: 0.9954032365 | J107: 1 | K107: 283.09 | L107: 287.49 | M107: 280.74 | N107: 286.65 | O107: 140572300 | U107: 1997-09-19 | V107: 0.348 | W107: 95.03125 | X107: 199709 | Y107: 199609 | Z107: 1996-09-20 | AA107: 5 | AB107: 1 | AC107: 1.364 | AD107: 0.0143531733
A108: 93 | B108: 2019-08-06 | C108: 285.910004 | D108: 288.040009 | E108: 284.279999 | F108: 287.799988 | G108: 120711700 | H108: 286.477051 | I108: 0.9954032764 | J108: 1 | K108: 284.6 | L108: 286.72 | M108: 282.97 | N108: 286.48 | O108: 120711700 | U108: 1997-06-20 | V108: 0.35 | W108: 89.578125 | X108: 199706 | Y108: 199606 | Z108: 1996-06-21 | AA108: 5 | AB108: 1 | AC108: 1.368 | AD108: 0.01527158556
A109: 94 | B109: 2019-08-05 | C109: 288.089996 | D109: 288.209991 | E109: 281.720001 | F109: 283.820007 | G109: 178745400 | H109: 282.51535 | I109: 0.995403224 | J109: 1 | K109: 286.77 | L109: 286.89 | M109: 280.42 | N109: 282.52 | O109: 178745400 | U109: 1997-03-21 | V109: 0.299 | W109: 78.4375 | X109: 199703 | Y109: 199603 | Z109: 1996-03-15 | AA109: 5 | AB109: 1 | AC109: 1.369 | AD109: 0.01745338645
A110: 95 | B110: 2019-08-02 | C110: 293.850006 | D110: 294.119995 | E110: 290.899994 | F110: 292.619995 | G110: 116749700 | H110: 291.274902 | I110: 0.9954032772 | J110: 1 | K110: 292.5 | L110: 292.77 | M110: 289.56 | N110: 291.27 | O110: 116749700 | U110: 1996-12-20 | V110: 0.367 | W110: 74.84375 | X110: 199612 | Y110: 199512 | Z110: 1995-12-15 | AA110: 5 | AB110: 1 | AC110: 1.355 | AD110: 0.01810438413
A111: 96 | B111: 2019-08-01 | C111: 297.600006 | D111: 300.869995 | E111: 293.959991 | F111: 294.839996 | G111: 142646600 | H111: 293.48468 | I111: 0.9954032152 | J111: 1 | K111: 296.23 | L111: 299.49 | M111: 292.61 | N111: 293.48 | O111: 142646600 | U111: 1996-09-20 | V111: 0.352 | W111: 68.640625 | X111: 199609 | Y111: 199509 | Z111: 1995-09-15 | AA111: 5 | AB111: 1 | AC111: 1.37 | AD111: 0.01995902572
A112: 97 | B112: 2019-07-31 | C112: 300.98999 | D112: 301.200012 | E112: 295.200012 | F112: 297.429993 | G112: 104245200 | H112: 296.062775 | I112: 0.9954032275 | J112: 1 | K112: 299.61 | L112: 299.82 | M112: 293.84 | N112: 296.06 | O112: 104245200 | U112: 1996-06-21 | V112: 0.351 | W112: 66.8125 | X112: 199606 | Y112: 199506 | Z112: 1995-06-16 | AA112: 5 | AB112: 1 | AC112: 1.33 | AD112: 0.01990645463
A113: 98 | B113: 2019-07-30 | C113: 299.910004 | D113: 301.170013 | E113: 299.48999 | F113: 300.720001 | G113: 45849000 | H113: 299.337646 | I113: 0.9954031824 | J113: 1 | K113: 298.53 | L113: 299.79 | M113: 298.11 | N113: 299.34 | O113: 45849000 | U113: 1996-03-15 | V113: 0.285 | W113: 64.125 | X113: 199603 | Y113: 199503 | Z113: 1995-03-17 | AA113: 5 | AB113: 1 | AC113: 1.295 | AD113: 0.02019493177
A114: 99 | B114: 2019-07-29 | C114: 301.880005 | D114: 302.01001 | E114: 300.850006 | F114: 301.459991 | G114: 38126500 | H114: 300.074249 | I114: 0.9954032308 | J114: 1 | K114: 300.49 | L114: 300.62 | M114: 299.47 | N114: 300.07 | O114: 38126500 | U114: 1995-12-15 | V114: 0.382 | W114: 61.8125 | X114: 199512 | Y114: 199412 | Z114: 1994-12-16 | AA114: 5 | AB114: 1 | AC114: 1.278 | AD114: 0.02067542973
A115: 100 | B115: 2019-07-26 | C115: 300.76001 | D115: 302.230011 | E115: 300.619995 | F115: 302.01001 | G115: 45084100 | H115: 300.621735 | I115: 0.9954032153 | J115: 1 | K115: 299.38 | L115: 300.84 | M115: 299.24 | N115: 300.62 | O115: 45084100 | U115: 1995-09-15 | V115: 0.312 | W115: 58.4375 | X115: 199509 | Y115: 199409 | Z115: 1994-09-19 | AA115: 5 | AB115: 1 | AC115: 1.259 | AD115: 0.02154438503
A116: 101 | B116: 2019-07-25 | C116: 300.940002 | D116: 301 | E116: 299.109985 | F116: 300 | G116: 55394100 | H116: 298.620972 | I116: 0.99540324 | J116: 1 | K116: 299.56 | L116: 299.62 | M116: 297.74 | N116: 298.62 | O116: 55394100 | U116: 1995-06-16 | V116: 0.316 | W116: 53.96875 | X116: 199506 | Y116: 199406 | Z116: 1994-06-17 | AA116: 6 | AB116: 1 | AC116: 1.235 | AD116: 0.0228836132
A117: 102 | B117: 2019-07-24 | C117: 299.190002 | D117: 301.440002 | E117: 299.089996 | F117: 301.440002 | G117: 47213200 | H117: 300.054352 | I117: 0.9954032312 | J117: 1 | K117: 297.81 | L117: 300.05 | M117: 297.72 | N117: 300.05 | O117: 47213200 | U117: 1995-03-17 | V117: 0.268 | W117: 49.5625 | X117: 199503 | Y117: 199403 | Z117: 1994-03-18 | AA117: 6 | AB117: 1 | AC117: 1.224 | AD117: 0.02469609079
A118: 103 | B118: 2019-07-23 | C118: 299.140015 | D118: 300.029999 | E118: 298.220001 | F118: 300.029999 | G118: 44564500 | H118: 298.650818 | I118: 0.9954031897 | J118: 1 | K118: 297.76 | L118: 298.65 | M118: 296.85 | N118: 298.65 | O118: 44564500 | U118: 1994-12-16 | V118: 0.363 | W118: 45.75 | X118: 199412 | Y118: 199312 | Z118: 1993-12-17 | AA118: 6 | AB118: 1 | AC118: 1.227 | AD118: 0.02681967213
A119: 104 | B119: 2019-07-22 | C119: 297.609985 | D119: 298.5 | E119: 297.040009 | F119: 297.899994 | G119: 43638100 | H119: 296.530609 | I119: 0.9954032057 | J119: 1 | K119: 296.24 | L119: 297.13 | M119: 295.67 | N119: 296.53 | O119: 43638100 | U119: 1994-09-19 | V119: 0 | W119: 47.0625 | X119: 199409 | Y119: 199309 | Z119: 1993-09-17 | AA119: 6 | AB119: 1 | AC119: 1.181 | AD119: 0.02509428951
A120: 105 | B120: 2019-07-19 | C120: 300.040009 | D120: 300.070007 | E120: 296.980011 | F120: 297.170013 | G120: 58678600 | H120: 295.803986 | I120: 0.9954032138 | J120: 1 | K120: 298.66 | L120: 298.69 | M120: 295.61 | N120: 295.8 | O120: 58678600 | U120: 1994-09-16 | V120: 0.288 | W120: 47.015625 | X120: 199409 | Y120: 199309 | Z120: 1993-09-17 | AA120: 5 | AB120: 1 | AC120: 1.181 | AD120: 0.02511930874
A121: 106 | B121: 2019-07-18 | C121: 297.190002 | D121: 299.25 | E121: 296.700012 | F121: 298.829987 | G121: 51392600 | H121: 297.456329 | I121: 0.9954032123 | J121: 1 | K121: 295.82 | L121: 297.87 | M121: 295.34 | N121: 297.46 | O121: 51392600 | U121: 1994-06-17 | V121: 0.305 | W121: 45.875 | X121: 199406 | Y121: 199306 | Z121: 1993-06-18 | AA121: 5 | AB121: 1 | AC121: 1.179 | AD121: 0.02570027248
A122: 107 | B122: 2019-07-17 | C122: 299.75 | D122: 299.929993 | E122: 297.73999 | F122: 297.73999 | G122: 36036300 | H122: 296.371338 | I122: 0.9954031973 | J122: 1 | K122: 298.37 | L122: 298.55 | M122: 296.37 | N122: 296.37 | O122: 36036300 | U122: 1994-03-18 | V122: 0.271 | W122: 46.96875 | X122: 199403 | Y122: 199303 | Z122: 1993-03-19 | AA122: 5 | AB122: 1 | AC122: 1.192 | AD122: 0.02537857618
A123: 108 | B123: 2019-07-16 | C123: 300.649994 | D123: 300.880005 | E123: 299.440002 | F123: 299.779999 | G123: 36650100 | H123: 298.401978 | I123: 0.9954032257 | J123: 1 | K123: 299.27 | L123: 299.5 | M123: 298.06 | N123: 298.4 | O123: 36650100 | U123: 1993-12-17 | V123: 0.317 | W123: 46.5625 | X123: 199312 | Y123: 199212 | Z123: 1993-03-19 | AA123: 4 | AB123: 0 | AC123: 1.134 | AD123: 0.02435436242
A124: 109 | B124: 2019-07-15 | C124: 301.130005 | D124: 301.130005 | E124: 300.190002 | F124: 300.75 | G124: 33900000 | H124: 299.367523 | I124: 0.9954032352 | J124: 1 | K124: 299.75 | L124: 299.75 | M124: 298.81 | N124: 299.37 | O124: 33900000 | U124: 1993-09-17 | V124: 0.286 | W124: 45.8125 | X124: 199309 | Y124: 199209 | Z124: 1993-03-19 | AA124: 3 | AB124: 0 | AC124: 0.817 | AD124: 0.01783356071
A125: 110 | B125: 2019-07-12 | C125: 299.850006 | D125: 300.730011 | E125: 299.51001 | F125: 300.649994 | G125: 40326000 | H125: 299.267975 | I125: 0.9954032296 | J125: 1 | K125: 298.47 | L125: 299.35 | M125: 298.13 | N125: 299.27 | O125: 40326000 | U125: 1993-06-18 | V125: 0.318 | W125: 44.5 | X125: 199306 | Y125: 199206 | Z125: 1993-03-19 | AA125: 2 | AB125: 0 | AC125: 0.531 | AD125: 0.01193258427
A126: 111 | B126: 2019-07-11 | C126: 299.320007 | D126: 299.579987 | E126: 298.200012 | F126: 299.309998 | G126: 50826100 | H126: 297.934143 | I126: 0.9954032441 | J126: 1 | K126: 297.94 | L126: 298.2 | M126: 296.83 | N126: 297.93 | O126: 50826100 | U126: 1993-03-19 | V126: 0.213 | W126: 45.03125 | X126: 199303 | Y126: 199203 | Z126: 1993-03-19 | AA126: 1 | AB126: 1 | AC126: 0.213 | AD126: 0.004730048577
A127: 112 | B127: 2019-07-10 | C127: 298.369995 | D127: 299.660004 | E127: 297.779999 | F127: 298.609985 | G127: 58448500 | H127: 297.237335 | I127: 0.9954032013 | J127: 1 | K127: 297 | L127: 298.28 | M127: 296.41 | N127: 297.24 | O127: 58448500
A128: 113 | B128: 2019-07-09 | C128: 295.540009 | D128: 297.519989 | E128: 295.480011 | F128: 297.190002 | G128: 41101300 | H128: 295.823883 | I128: 0.9954032135 | J128: 1 | K128: 294.18 | L128: 296.15 | M128: 294.12 | N128: 295.82 | O128: 41101300
A129: 114 | B129: 2019-07-08 | C129: 297.01001 | D129: 298.26001 | E129: 296.220001 | F129: 296.820007 | G129: 45841800 | H129: 295.455597 | I129: 0.9954032411 | J129: 1 | K129: 295.64 | L129: 296.89 | M129: 294.86 | N129: 295.46 | O129: 45841800
A130: 115 | B130: 2019-07-05 | C130: 297.440002 | D130: 298.640015 | E130: 296.01001 | F130: 298.459991 | G130: 51677300 | H130: 297.088043 | I130: 0.9954032432 | J130: 1 | K130: 296.07 | L130: 297.27 | M130: 294.65 | N130: 297.09 | O130: 51677300
A131: 116 | B131: 2019-07-03 | C131: 297.179993 | D131: 298.820007 | E131: 297.019989 | F131: 298.799988 | G131: 40898900 | H131: 297.426483 | I131: 0.9954032629 | J131: 1 | K131: 295.81 | L131: 297.45 | M131: 295.65 | N131: 297.43 | O131: 40898900
A132: 117 | B132: 2019-07-02 | C132: 295.609985 | D132: 296.48999 | E132: 294.679993 | F132: 296.429993 | G132: 61504500 | H132: 295.067383 | I132: 0.9954032654 | J132: 1 | K132: 294.25 | L132: 295.13 | M132: 293.33 | N132: 295.07 | O132: 61504500
A133: 118 | B133: 2019-07-01 | C133: 296.679993 | D133: 296.920013 | E133: 294.329987 | F133: 295.660004 | G133: 79107500 | H133: 294.300934 | I133: 0.9954032673 | J133: 1 | K133: 295.32 | L133: 295.56 | M133: 292.98 | N133: 294.3 | O133: 79107500
A134: 119 | B134: 2019-06-28 | C134: 292.579987 | D134: 293.549988 | E134: 292.01001 | F134: 293 | G134: 59350900 | H134: 291.653137 | I134: 0.995403198 | J134: 1 | K134: 291.24 | L134: 292.2 | M134: 290.67 | N134: 291.65 | O134: 59350900
A135: 120 | B135: 2019-06-27 | C135: 291.309998 | D135: 292.059998 | E135: 290.890015 | F135: 291.5 | G135: 40355200 | H135: 290.160034 | I135: 0.9954032041 | J135: 1 | K135: 289.97 | L135: 290.72 | M135: 289.55 | N135: 290.16 | O135: 40355200
A136: 121 | B136: 2019-06-26 | C136: 291.75 | D136: 292.309998 | E136: 290.350006 | F136: 290.470001 | G136: 51584900 | H136: 289.134766 | I136: 0.9954031914 | J136: 1 | K136: 290.41 | L136: 290.97 | M136: 289.02 | N136: 289.13 | O136: 51584900
A137: 122 | B137: 2019-06-25 | C137: 293.700012 | D137: 293.730011 | E137: 290.640015 | F137: 290.76001 | G137: 82028700 | H137: 289.423462 | I137: 0.9954032606 | J137: 1 | K137: 292.35 | L137: 292.38 | M137: 289.3 | N137: 289.42 | O137: 82028700
A138: 123 | B138: 2019-06-24 | C138: 294.230011 | D138: 294.579987 | E138: 293.470001 | F138: 293.640015 | G138: 47582700 | H138: 292.290222 | I138: 0.9954032389 | J138: 1 | K138: 292.88 | L138: 293.23 | M138: 292.12 | N138: 292.29 | O138: 47582700
A139: 124 | B139: 2019-06-21 | C139: 294.130005 | D139: 295.519989 | E139: 293.76001 | F139: 294 | G139: 83309500 | H139: 292.64856 | I139: 0.9954032653 | J139: 1 | K139: 292.78 | L139: 294.16 | M139: 292.41 | N139: 292.65 | O139: 83309500
A140: 125 | B140: 2019-06-20 | C140: 296.040009 | D140: 296.309998 | E140: 293.130005 | F140: 295.859985 | G140: 116570000 | H140: 293.074585 | I140: 0.9905854115 | J140: 1 | K140: 293.25 | L140: 293.52 | M140: 290.37 | N140: 293.07 | O140: 116570000
A141: 126 | B141: 2019-06-19 | C141: 292.549988 | D141: 293.649994 | E141: 291.470001 | F141: 293.059998 | G141: 78674400 | H141: 290.300934 | I141: 0.9905853272 | J141: 1 | K141: 289.8 | L141: 290.89 | M141: 288.73 | N141: 290.3 | O141: 78674400
A142: 127 | B142: 2019-06-18 | C142: 291.390015 | D142: 293.570007 | E142: 290.98999 | F142: 292.399994 | G142: 85434800 | H142: 289.647156 | I142: 0.9905853692 | J142: 1 | K142: 288.65 | L142: 290.81 | M142: 288.25 | N142: 289.65 | O142: 85434800
A143: 128 | B143: 2019-06-17 | C143: 289.519989 | D143: 290.220001 | E143: 289.179993 | F143: 289.369995 | G143: 39205700 | H143: 286.64566 | I143: 0.9905852886 | J143: 1 | K143: 286.79 | L143: 287.49 | M143: 286.46 | N143: 286.65 | O143: 39205700
A144: 129 | B144: 2019-06-14 | C144: 289.26001 | D144: 289.929993 | E144: 288.410004 | F144: 289.26001 | G144: 52314300 | H144: 286.536743 | I144: 0.990585401 | J144: 1 | K144: 286.54 | L144: 287.2 | M144: 285.69 | N144: 286.54 | O144: 52314300
A145: 130 | B145: 2019-06-13 | C145: 289.399994 | D145: 289.980011 | E145: 288.619995 | F145: 289.579987 | G145: 48945200 | H145: 286.853668 | I145: =IF(F145=0,1,H145/F145) -> 0.9905852644 | J145: =INDEX(OFFSET($T$15,0,0,$S$13+1,1),MATCH(B145,OFFSET($Q$15,0,0,$S$13+1,1),-1)) -> 1 | K145: =ROUND($I145*C145,2) -> 286.68 | L145: =ROUND($I145*D145,2) -> 287.25 | M145: =ROUND($I145*E145,2) -> 285.9 | N145: =ROUND($I145*F145,2) -> 286.85 | O145: =G145*J145 -> 48945200
A146: 131 | B146: 2019-06-12 | C146: 288.640015 | D146: 289.26001 | E146: 287.820007 | F146: 288.390015 | G146: 46984700 | H146: 285.674927 | I146: 0.9905853606 | J146: 1 | K146: 285.92 | L146: 286.54 | M146: 285.11 | N146: 285.67 | O146: 46984700
A147: 132 | B147: 2019-06-11 | C147: 290.98999 | D147: 291.399994 | E147: 288.179993 | F147: 288.899994 | G147: 58641300 | H147: 286.180115 | I147: 0.9905853961 | J147: 1 | K147: 288.25 | L147: 288.66 | M147: 285.47 | N147: 286.18 | O147: 58641300
A148: 133 | B148: 2019-06-10 | C148: 289.369995 | D148: 290.820007 | E148: 288.869995 | F148: 288.970001 | G148: 60799100 | H148: 286.249451 | I148: 0.9905853549 | J148: 1 | K148: 286.65 | L148: 288.08 | M148: 286.15 | N148: 286.25 | O148: 60799100
A149: 134 | B149: 2019-06-07 | C149: 285.929993 | D149: 288.850006 | E149: 285.73999 | F149: 287.649994 | G149: 74272200 | H149: 284.941864 | I149: 0.9905853292 | J149: 1 | K149: 283.24 | L149: 286.13 | M149: 283.05 | N149: 284.94 | O149: 74272200
A150: 135 | B150: 2019-06-06 | C150: 283.290009 | D150: 285.549988 | E150: 282.570007 | F150: 284.799988 | G150: 69430400 | H150: 282.118683 | I150: 0.9905853051 | J150: 1 | K150: 280.62 | L150: 282.86 | M150: 279.91 | N150: 282.12 | O150: 69430400
A151: 136 | B151: 2019-06-05 | C151: 282.329987 | D151: 282.98999 | E151: 280.320007 | F151: 282.959991 | G151: 71169700 | H151: 280.296021 | I151: 0.9905853475 | J151: 1 | K151: 279.67 | L151: 280.33 | M151: 277.68 | N151: 280.3 | O151: 71169700
A152: 137 | B152: 2019-06-04 | C152: 277.119995 | D152: 280.679993 | E152: 276.619995 | F152: 280.529999 | G152: 77231900 | H152: 277.888916 | I152: 0.9905853812 | J152: 1 | K152: 274.51 | L152: 278.04 | M152: 274.02 | N152: 277.89 | O152: 77231900
A153: 138 | B153: 2019-06-03 | C153: 275.309998 | D153: 276.549988 | E153: 273.089996 | F153: 274.570007 | G153: 96428000 | H153: 271.985016 | I153: 0.9905853118 | J153: 1 | K153: 272.72 | L153: 273.95 | M153: 270.52 | N153: 271.99 | O153: 96428000
A154: 139 | B154: 2019-05-31 | C154: 276.200012 | D154: 277.119995 | E154: 275.23999 | F154: 275.269989 | G154: 86862800 | H154: 272.678406 | I154: 0.990585305 | J154: 1 | K154: 273.6 | L154: 274.51 | M154: 272.65 | N154: 272.68 | O154: 86862800
A155: 140 | B155: 2019-05-30 | C155: 279.109985 | D155: 280.040009 | E155: 277.809998 | F155: 279.029999 | G155: 62523800 | H155: 276.403046 | I155: 0.9905854101 | J155: 1 | K155: 276.48 | L155: 277.4 | M155: 275.19 | N155: 276.4 | O155: 62523800
A156: 141 | B156: 2019-05-29 | C156: 278.910004 | D156: 279.359985 | E156: 276.709991 | F156: 278.269989 | G156: 104972900 | H156: 275.650177 | I156: 0.9905853592 | J156: 1 | K156: 276.28 | L156: 276.73 | M156: 274.1 | N156: 275.65 | O156: 104972900
A157: 142 | B157: 2019-05-28 | C157: 283.089996 | D157: 284.149994 | E157: 280.130005 | F157: 280.149994 | G157: 70029400 | H157: 277.512482 | I157: 0.9905853576 | J157: 1 | K157: 280.42 | L157: 281.47 | M157: 277.49 | N157: 277.51 | O157: 70029400
A158: 143 | B158: 2019-05-24 | C158: 283.73999 | D158: 284.200012 | E158: 282.089996 | F158: 282.779999 | G158: 55268100 | H158: 280.117737 | I158: 0.990585395 | J158: 1 | K158: 281.07 | L158: 281.52 | M158: 279.43 | N158: 280.12 | O158: 55268100
A159: 144 | B159: 2019-05-23 | C159: 283.160004 | D159: 283.209991 | E159: 280.570007 | F159: 282.140015 | G159: 98733800 | H159: 279.483765 | I159: 0.9905853482 | J159: 1 | K159: 280.49 | L159: 280.54 | M159: 277.93 | N159: 279.48 | O159: 98733800
A160: 145 | B160: 2019-05-22 | C160: 285.450012 | D160: 286.690002 | E160: 285.100006 | F160: 285.630005 | G160: 49482500 | H160: 282.940887 | I160: 0.9905853098 | J160: 1 | K160: 282.76 | L160: 283.99 | M160: 282.42 | N160: 282.94 | O160: 49482500
A161: 146 | B161: 2019-05-21 | C161: 285.829987 | D161: 286.929993 | E161: 285.549988 | F161: 286.51001 | G161: 46847100 | H161: 283.812622 | I161: 0.9905853621 | J161: 1 | K161: 283.14 | L161: 284.23 | M161: 282.86 | N161: 283.81 | O161: 46847100
A162: 147 | B162: 2019-05-20 | C162: 284.059998 | D162: 285.959991 | E162: 283.119995 | F162: 283.950012 | G162: 62877600 | H162: 281.276703 | I162: 0.990585283 | J162: 1 | K162: 281.39 | L162: 283.27 | M162: 280.45 | N162: 281.28 | O162: 62877600
A163: 148 | B163: 2019-05-17 | C163: 285.140015 | D163: 288.600006 | E163: 285.119995 | F163: 285.839996 | G163: 100353000 | H163: 283.148926 | I163: 0.9905853973 | J163: 1 | K163: 282.46 | L163: 285.88 | M163: 282.44 | N163: 283.15 | O163: 100353000
A164: 149 | B164: 2019-05-16 | C164: 285.839996 | D164: 289.209991 | E164: 285.76001 | F164: 287.700012 | G164: 76749600 | H164: 284.991425 | I164: 0.9905853775 | J164: 1 | K164: 283.15 | L164: 286.49 | M164: 283.07 | N164: 284.99 | O164: 76749600
A165: 150 | B165: 2019-05-15 | C165: 281.589996 | D165: 285.769989 | E165: 281.359985 | F165: 285.059998 | G165: 73956400 | H165: 282.376251 | I165: 0.9905853258 | J165: 1 | K165: 278.94 | L165: 283.08 | M165: 278.71 | N165: 282.38 | O165: 73956400
A166: 151 | B166: 2019-05-14 | C166: 281.98999 | D166: 285.100006 | E166: 281.850006 | F166: 283.399994 | G166: 77003200 | H166: 280.731873 | I166: 0.9905853174 | J166: 1 | K166: 279.34 | L166: 282.42 | M166: 279.2 | N166: 280.73 | O166: 77003200
A167: 152 | B167: 2019-05-13 | C167: 282.420013 | D167: 283.48999 | E167: 279.929993 | F167: 280.859985 | G167: 127290500 | H167: 278.21579 | I167: 0.9905853623 | J167: 1 | K167: 279.76 | L167: 280.82 | M167: 277.29 | N167: 278.22 | O167: 127290500
A168: 153 | B168: 2019-05-10 | C168: 285.619995 | D168: 288.940002 | E168: 282.299988 | F168: 288.100006 | G168: 112429300 | H168: 285.387634 | I168: 0.9905853109 | J168: 1 | K168: 282.93 | L168: 286.22 | M168: 279.64 | N168: 285.39 | O168: 112429300
A169: 154 | B169: 2019-05-09 | C169: 285.230011 | D169: 287.329987 | E169: 283.299988 | F169: 286.660004 | G169: 103471100 | H169: 283.961182 | I169: 0.9905852858 | J169: 1 | K169: 282.54 | L169: 284.62 | M169: 280.63 | N169: 283.96 | O169: 103471100
A170: 155 | B170: 2019-05-08 | C170: 287.529999 | D170: 289.429993 | E170: 286.869995 | F170: 287.529999 | G170: 91568300 | H170: 284.822998 | I170: 0.9905853267 | J170: 1 | K170: 284.82 | L170: 286.71 | M170: 284.17 | N170: 284.82 | O170: 91568300
A171: 156 | B171: 2019-05-07 | C171: 290.149994 | D171: 290.809998 | E171: 285.809998 | F171: 287.929993 | G171: 144729900 | H171: 285.219238 | I171: 0.9905853677 | J171: 1 | K171: 287.42 | L171: 288.07 | M171: 283.12 | N171: 285.22 | O171: 144729900
A172: 157 | B172: 2019-05-06 | C172: 289.25 | D172: 293.309998 | E172: 288.899994 | F172: 292.820007 | G172: 107198100 | H172: 290.063202 | I172: 0.9905853257 | J172: 1 | K172: 286.53 | L172: 290.55 | M172: 286.18 | N172: 290.06 | O172: 107198100
A173: 158 | B173: 2019-05-03 | C173: 292.820007 | D173: 294.339996 | E173: 291.299988 | F173: 294.029999 | G173: 56543700 | H173: 291.26181 | I173: 0.9905853518 | J173: 1 | K173: 290.06 | L173: 291.57 | M173: 288.56 | N173: 291.26 | O173: 56543700
A174: 159 | B174: 2019-05-02 | C174: 291.679993 | D174: 292.700012 | E174: 289.519989 | F174: 291.179993 | G174: 65030200 | H174: 288.438629 | I174: 0.9905853284 | J174: 1 | K174: 288.93 | L174: 289.94 | M174: 286.79 | N174: 288.44 | O174: 65030200
A175: 160 | B175: 2019-05-01 | C175: 294.720001 | D175: 294.950012 | E175: 291.799988 | F175: 291.809998 | G175: 71671900 | H175: 289.062714 | I175: 0.9905853671 | J175: 1 | K175: 291.95 | L175: 292.17 | M175: 289.05 | N175: 289.06 | O175: 71671900
A176: 161 | B176: 2019-04-30 | C176: 293.48999 | D176: 294.339996 | E176: 291.920013 | F176: 294.019989 | G176: 81111700 | H176: 291.251892 | I176: 0.9905853442 | J176: 1 | K176: 290.73 | L176: 291.57 | M176: 289.17 | N176: 291.25 | O176: 81111700
A177: 162 | B177: 2019-04-29 | C177: 293.51001 | D177: 294.450012 | E177: 293.410004 | F177: 293.869995 | G177: 57197700 | H177: 291.103302 | I177: 0.9905853165 | J177: 1 | K177: 290.75 | L177: 291.68 | M177: 290.65 | N177: 291.1 | O177: 57197700
A178: 163 | B178: 2019-04-26 | C178: 292.100006 | D178: 293.48999 | E178: 291.23999 | F178: 293.410004 | G178: 50916400 | H178: 290.647675 | I178: 0.9905854301 | J178: 1 | K178: 289.35 | L178: 290.73 | M178: 288.5 | N178: 290.65 | O178: 50916400
A179: 164 | B179: 2019-04-25 | C179: 292.119995 | D179: 292.779999 | E179: 290.730011 | F179: 292.049988 | G179: 57770900 | H179: 289.300415 | I179: 0.9905852658 | J179: 1 | K179: 289.37 | L179: 290.02 | M179: 287.99 | N179: 289.3 | O179: 57770900
A180: 165 | B180: 2019-04-24 | C180: 292.790009 | D180: 293.160004 | E180: 292.070007 | F180: 292.230011 | G180: 50392900 | H180: 289.47876 | I180: 0.9905853236 | J180: 1 | K180: 290.03 | L180: 290.4 | M180: 289.32 | N180: 289.48 | O180: 50392900
A181: 166 | B181: 2019-04-23 | C181: 290.679993 | D181: 293.140015 | E181: 290.420013 | F181: 292.880005 | G181: 52246600 | H181: 290.12262 | I181: 0.990585274 | J181: 1 | K181: 287.94 | L181: 290.38 | M181: 287.69 | N181: 290.12 | O181: 52246600
A182: 167 | B182: 2019-04-22 | C182: 289.170013 | D182: 290.440002 | E182: 289.070007 | F182: 290.269989 | G182: 40160100 | H182: 287.537201 | I182: 0.9905853581 | J182: 1 | K182: 286.45 | L182: 287.71 | M182: 286.35 | N182: 287.54 | O182: 40160100
A183: 168 | B183: 2019-04-18 | C183: 290.100006 | D183: 290.320007 | E183: 288.660004 | F183: 290.019989 | G183: 68708500 | H183: 287.289551 | I183: 0.9905853455 | J183: 1 | K183: 287.37 | L183: 287.59 | M183: 285.94 | N183: 287.29 | O183: 68708500
A184: 169 | B184: 2019-04-17 | C184: 291.399994 | D184: 291.429993 | E184: 288.98999 | F184: 289.450012 | G184: 58268300 | H184: 286.724945 | I184: 0.9905853623 | J184: 1 | K184: 288.66 | L184: 288.69 | M184: 286.27 | N184: 286.72 | O184: 58268300
A185: 170 | B185: 2019-04-16 | C185: 290.950012 | D185: 291.01001 | E185: 289.5 | F185: 290.160004 | G185: 52153200 | H185: 287.428253 | I185: 0.9905853634 | J185: 1 | K185: 288.21 | L185: 288.27 | M185: 286.77 | N185: 287.43 | O185: 52153200
A186: 171 | B186: 2019-04-15 | C186: 290.23999 | D186: 290.350006 | E186: 289.079987 | F186: 289.970001 | G186: 49596700 | H186: 287.240051 | I186: 0.9905854054 | J186: 1 | K186: 287.51 | L186: 287.62 | M186: 286.36 | N186: 287.24 | O186: 49596700
A187: 172 | B187: 2019-04-12 | C187: 290 | D187: 290.470001 | E187: 288.26001 | F187: 290.160004 | G187: 69727800 | H187: 287.428253 | I187: 0.9905853634 | J187: 1 | K187: 287.27 | L187: 287.74 | M187: 285.55 | N187: 287.43 | O187: 69727800
A188: 173 | B188: 2019-04-11 | C188: 288.829987 | D188: 288.839996 | E188: 287.579987 | F188: 288.209991 | G188: 55093100 | H188: 285.496613 | I188: 0.9905854131 | J188: 1 | K188: 286.11 | L188: 286.12 | M188: 284.87 | N188: 285.5 | O188: 55093100
A189: 174 | B189: 2019-04-10 | C189: 287.769989 | D189: 288.390015 | E189: 287.309998 | F189: 288.290009 | G189: 52601500 | H189: 285.575867 | I189: 0.9905853761 | J189: 1 | K189: 285.06 | L189: 285.67 | M189: 284.61 | N189: 285.58 | O189: 52601500
A190: 175 | B190: 2019-04-09 | C190: 287.720001 | D190: 288.079987 | E190: 286.700012 | F190: 287.309998 | G190: 66142300 | H190: 284.605072 | I190: 0.9905853398 | J190: 1 | K190: 285.01 | L190: 285.37 | M190: 284 | N190: 284.61 | O190: 66142300
A191: 176 | B191: 2019-04-08 | C191: 288.100006 | D191: 288.910004 | E191: 287.369995 | F191: 288.790009 | G191: 53566300 | H191: 286.071136 | I191: 0.9905852941 | J191: 1 | K191: 285.39 | L191: 286.19 | M191: 284.66 | N191: 286.07 | O191: 53566300
A192: 177 | B192: 2019-04-05 | C192: 287.920013 | D192: 288.630005 | E192: 287.600006 | F192: 288.570007 | G192: 58621700 | H192: 285.853241 | I192: 0.990585418 | J192: 1 | K192: 285.21 | L192: 285.91 | M192: 284.89 | N192: 285.85 | O192: 58621700
A193: 178 | B193: 2019-04-04 | C193: 286.779999 | D193: 287.459991 | E193: 286.01001 | F193: 287.179993 | G193: 48997500 | H193: 284.476288 | I193: 0.9905853295 | J193: 1 | K193: 284.08 | L193: 284.75 | M193: 283.32 | N193: 284.48 | O193: 48997500
A194: 179 | B194: 2019-04-03 | C194: 287.320007 | D194: 287.76001 | E194: 285.75 | F194: 286.420013 | G194: 68243200 | H194: 283.72345 | I194: 0.9905852843 | J194: 1 | K194: 284.61 | L194: 285.05 | M194: 283.06 | N194: 283.72 | O194: 68243200
A195: 180 | B195: 2019-04-02 | C195: 286.040009 | D195: 286.230011 | E195: 285.089996 | F195: 285.970001 | G195: 40070400 | H195: 283.277679 | I195: 0.9905852992 | J195: 1 | K195: 283.35 | L195: 283.54 | M195: 282.41 | N195: 283.28 | O195: 40070400
A196: 181 | B196: 2019-04-01 | C196: 284.700012 | D196: 286.160004 | E196: 284.399994 | F196: 285.829987 | G196: 77617900 | H196: 283.138977 | I196: 0.9905852775 | J196: 1 | K196: 282.02 | L196: 283.47 | M196: 281.72 | N196: 283.14 | O196: 77617900
A197: 182 | B197: 2019-03-29 | C197: 282.390015 | D197: 282.839996 | E197: 281.140015 | F197: 282.480011 | G197: 82186800 | H197: 279.820557 | I197: 0.9905853374 | J197: 1 | K197: 279.73 | L197: 280.18 | M197: 278.49 | N197: 279.82 | O197: 82186800
A198: 183 | B198: 2019-03-28 | C198: 280.350006 | D198: 281.209991 | E198: 279.070007 | F198: 280.709991 | G198: 56238500 | H198: 278.06723 | I198: 0.9905854402 | J198: 1 | K198: 277.71 | L198: 278.56 | M198: 276.44 | N198: 278.07 | O198: 56238500
A199: 184 | B199: 2019-03-27 | C199: 281.109985 | D199: 281.76001 | E199: 277.929993 | F199: 279.649994 | G199: 72224700 | H199: 277.017181 | I199: 0.9905853279 | J199: 1 | K199: 278.46 | L199: 279.11 | M199: 275.31 | N199: 277.02 | O199: 72224700
A200: 185 | B200: 2019-03-26 | C200: 280.98999 | D200: 282.179993 | E200: 279.559998 | F200: 281.119995 | G200: 68125900 | H200: 278.473358 | I200: 0.9905853833 | J200: 1 | K200: 278.34 | L200: 279.52 | M200: 276.93 | N200: 278.47 | O200: 68125900
... 4300 more rows

Sheet CalculationsAndCharts
A1: ReflexTrendflex.xlsm
A2: =InputPriceData!A1 -> SPDR S&P 500 ETF Trust (SPY) -NYSEArca (Daily) | R2: Clutter Control
A4: User Charting Controls | E4: Click to Shift Chart One Bar: | R4: 3
A5: Data Control | C5: TRUE
A6: =InputPriceData!$B$10 -> 6770 | B6: Available Input Data Rows | E6: Earliest: | F6: =OFFSET(InputPriceData!B15,CalculationsAndCharts!A6,0,1,1) -> 1993-01-29
A7: =MAX(A33:A60000) -> 1132 | B7: Available Calculation Rows | E7: Latest: | F7: =OFFSET(InputPriceData!B15,1,0,1,1) -> 2019-12-16
A8: =MIN(AvailableInputRows-DataPanRows,A7) -> 1132 | B8: Logically Available for Calc / Plot | E8: $ Change: | F8: =G33-G34 -> 2.71
A10: Historical Price Windowing Specifications | F10: Click to Shift
A11: 0 | B11: Input Data Offset (Pan) | F11: Points to Plot
A12: 258 | B12: Data Points to Plot (Zoom)
B13: First: | C13: =OFFSET(B32,A12,0,1,1) -> 2018-12-07
B14: ="Last: " & IF(OFFSET(InputPriceData!P15,1+A11,0,1,1)="","",TEXT(OFFSET(InputPriceData!P15,1+A11,0,1,1),"H:MM AM/PM")) -> Last: | C14: =B33 -> 2019-12-16
A15: User Controls
A16: 20 | B16: Length
A17: Precalculated Coefficients | B17: =" Super Smoother Coefficients for Length = " & A16 & ". Used in Filt." -> Super Smoother Coefficients for Length = 20. Used in Filt.
C18: a1: | D18: =EXP(-1.414*PI()/(0.5*$A$16)) -> 0.6413235436
C19: b1: | D19: =2*$D$18*COS(RADIANS(1.414*180/(0.5*$A$16))) -> 1.158160584
C20: c1: | D20: =1-$D$21-$D$22 -> 0.2531353032
C21: c2: | D21: =$D$19 -> 1.158160584
C22: c3: | D22: =-$D$18*$D$18 -> -0.4112958876 | AV22: =10^AV24 -> 255345600
B23: =A16*(A16+1)/2 -> 210 | C23: ="<== Sum of numbers 1 to "&A16&"." -> <== Sum of numbers 1 to 20.
C24: Used in re-factored Sum_RI. | AV24: =LOG10(AV32) -> 8.407128379
A25: Help! I would like to plot data
A26: From | B26: 2018-12-07 | C26: =OFFSET(InputPriceData!$A$15,MATCH(B26,OFFSET(InputPriceData!B15,1,0,InputPriceData!$B$10,1),0),0,1,1)-C27 -> 252 | E26: 118
A27: To | B27: 2019-12-06 | C27: =OFFSET(InputPriceData!$A$15,MATCH(B27,OFFSET(InputPriceData!$B$15,1,0,InputPriceData!$B$10,1),0),0,1,1)-1 -> 6 | E27: =$A$12-$E$26+1 -> 141
H28: @ Cursor => | I28: =OFFSET(A32,$E$27,0,1,1)&"(RR)" -> 141(RR) | J28: =OFFSET($B$32,E27,0,1,1) -> 2019-05-29 | K28: =TEXT(OFFSET(D32,$E$27,0,1,1),"#,##0.00")&"(o)" -> 276.28(o) | L28: =TEXT(OFFSET(E32,$E$27,0,1,1),"#,##0.00")&"(h)" -> 276.73(h) | M28: =TEXT(OFFSET(F32,$E$27,0,1,1),"#,##0.00")&"(l)" -> 274.10(l) | N28: =TEXT(OFFSET(G32,$E$27,0,1,1),"#,##0.00")&"(c)" -> 275.65(c)
E29: Cursor ==> | AU29: Work Area For Chart Cursors
A31: Rel Row | P31: Reflex Color Bands | R31: Trendflex Color Bands | T31: Price Color Bands | AP31: Used To Color Vol Bars
B32: Date | C32: Volume | D32: Open | E32: High | F32: Low | G32: Close | H32: Filt | I32: Slope | J32: Sum_RI | K32: MS_RI | L32: ="Reflex("&$A$16 & ")" -> Reflex(20) | M32: Sum_TI | N32: MS_TI | O32: ="Trendflex("&$A$16&")" -> Trendflex(20) | P32: Long | Q32: Short | R32: Long | S32: Short | T32: Long | U32: Short | AP32: Up Vol | AQ32: Dn Vol | AU32: Volume Cursor | AV32: =MAX(OFFSET(C33,0,0,A12,1)) -> 255345600 | AW32: TRENDFLEX Cursor | AY32: Price Chart Cursor | BA32: REFLEX Cursor
A33: 1 | B33: =IF(A33>$A$8,"",OFFSET(InputPriceData!B$15,$A33+$A$11,0,1,1)) -> 2019-12-16 | C33: =IF(A33>$A$8,"",OFFSET(InputPriceData!G$15,CalculationsAndCharts!$A33+$A$11,IF($C$5,8,0),1,1)) -> 31976034 | D33: =IF(A33>$A$8,"",OFFSET(InputPriceData!C$15,CalculationsAndCharts!$A33+$A$11,IF($C$5,8,0),1,1)) -> 319.22 | E33: =IF(A33>$A$8,"",OFFSET(InputPriceData!D$15,CalculationsAndCharts!$A33+$A$11,IF($C$5,8,0),1,1)) -> 320.06 | F33: =IF(A33>$A$8,"",OFFSET(InputPriceData!E$15,CalculationsAndCharts!$A33+$A$11,IF($C$5,8,0),1,1)) -> 319.18 | G33: =IF(A33>$A$8,"",OFFSET(InputPriceData!F$15,CalculationsAndCharts!$A33+$A$11,IF($C$5,8,0),1,1)) -> 320.03 | H33: =IF(A33>LogicallyAvailableRows-1,0,$D$20*(G33+G34)/2+$D$21*H34+$D$22*H35) -> 316.6311454 | I33: =(OFFSET(H33,$A$16,0,1,1)-H33)/$A$16 -> -0.3543159797 | J33: =($A$16*$H33+$B$23*I33-SUM(OFFSET($H33,1,0,$A$16,1)))/$A$16 -> 0.5490219743 | K33: =0.04*$J33*$J33+0.96*K34 -> 2.997304651 | L33: =IF(A33>LogicallyAvailableRows-1,0,J33/SQRT(K33)) -> 0.317120475 | M33: =($A$16*$H33-SUM(OFFSET($H33,1,0,$A$16,1)))/$A$16 -> 4.269339761 | N33: =0.04*$M33*$M33+0.96*N34 -> 22.98620736 | O33: =IF(A33>LogicallyAvailableRows-1,0,M33/SQRT(N33)) -> 0.8904859219 | P33: =IF(AND($R$4=1,$L33>=0),$BB$34,NA()) ->  | Q33: =IF(AND($R$4=1,$L33<0),$BB$33,NA()) ->  | R33: =IF(AND($R$4=2,$O33>=0),$AX$34,NA()) ->  | S33: =IF(AND($R$4=2,$O33<0),$AX$33,NA()) ->  | T33: =IF(OR(AND($R$4=1,$L33>=0),AND($R$4=2,$O33>=0)),$AZ$34,NA()) ->  | U33: =IF(OR(AND($R$4=1,$L33<0),AND($R$4=2,$O33<0)),$AZ$34,NA()) ->  | AP33: =IF(G33>=D33,C33,NA()) -> 31976034 | AQ33: =IF(G33<D33,C33,NA()) ->  | AU33: =$E$27 -> 141 | AV33: 0 | AW33: =$E$27 -> 141 | AX33: -3 | AY33: =$E$27 -> 141 | AZ33: 224.7765 | BA33: =$E$27 -> 141 | BB33: -3
A34: 2 | B34: =IF(A34>$A$8,"",OFFSET(InputPriceData!B$15,$A34+$A$11,0,1,1)) -> 2019-12-13 | C34: =IF(A34>$A$8,"",OFFSET(InputPriceData!G$15,CalculationsAndCharts!$A34+$A$11,IF($C$5,8,0),1,1)) -> 81503900 | D34: =IF(A34>$A$8,"",OFFSET(InputPriceData!C$15,CalculationsAndCharts!$A34+$A$11,IF($C$5,8,0),1,1)) -> 316.87 | E34: =IF(A34>$A$8,"",OFFSET(InputPriceData!D$15,CalculationsAndCharts!$A34+$A$11,IF($C$5,8,0),1,1)) -> 318.67 | F34: =IF(A34>$A$8,"",OFFSET(InputPriceData!E$15,CalculationsAndCharts!$A34+$A$11,IF($C$5,8,0),1,1)) -> 316.02 | G34: =IF(A34>$A$8,"",OFFSET(InputPriceData!F$15,CalculationsAndCharts!$A34+$A$11,IF($C$5,8,0),1,1)) -> 317.32 | H34: 315.3736022 | I34: =(OFFSET(H34,$A$16,0,1,1)-H34)/$A$16 -> -0.3172780941 | J34: -0.002345394178 | K34: =0.04*$J34*$J34+0.96*K35 -> 3.109632965 | L34: -0.00133002951 | M34: 3.329074594 | N34: =0.04*$M34*$M34+0.96*N35 -> 23.18449676 | O34: 0.6913925407 | P34: =IF(AND($R$4=1,$L34>=0),$BB$34,NA()) ->  | Q34: =IF(AND($R$4=1,$L34<0),$BB$33,NA()) ->  | R34: =IF(AND($R$4=2,$O34>=0),$AX$34,NA()) ->  | S34: =IF(AND($R$4=2,$O34<0),$AX$33,NA()) ->  | T34: =IF(OR(AND($R$4=1,$L34>=0),AND($R$4=2,$O34>=0)),$AZ$34,NA()) ->  | U34: =IF(OR(AND($R$4=1,$L34<0),AND($R$4=2,$O34<0)),$AZ$34,NA()) ->  | AP34: =IF(G34>=D34,C34,NA()) -> 81503900 | AQ34: =IF(G34<D34,C34,NA()) ->  | AU34: =$E$27 -> 141 | AV34: =CEILING(AV32,10^INT(LOG10(AV32))/8) -> 262500000 | AW34: =$E$27 -> 141 | AX34: 2 | AY34: =$E$27 -> 141 | AZ34: 328.0615 | BA34: =$E$27 -> 141 | BB34: 3
A35: 3 | B35: =IF(A35>$A$8,"",OFFSET(InputPriceData!B$15,$A35+$A$11,0,1,1)) -> 2019-12-12 | C35: =IF(A35>$A$8,"",OFFSET(InputPriceData!G$15,CalculationsAndCharts!$A35+$A$11,IF($C$5,8,0),1,1)) -> 96389600 | D35: =IF(A35>$A$8,"",OFFSET(InputPriceData!C$15,CalculationsAndCharts!$A35+$A$11,IF($C$5,8,0),1,1)) -> 314.43 | E35: =IF(A35>$A$8,"",OFFSET(InputPriceData!D$15,CalculationsAndCharts!$A35+$A$11,IF($C$5,8,0),1,1)) -> 317.99 | F35: =IF(A35>$A$8,"",OFFSET(InputPriceData!E$15,CalculationsAndCharts!$A35+$A$11,IF($C$5,8,0),1,1)) -> 314.17 | G35: =IF(A35>$A$8,"",OFFSET(InputPriceData!F$15,CalculationsAndCharts!$A35+$A$11,IF($C$5,8,0),1,1)) -> 317.13 | H35: 314.3479587 | I35: -0.2782921293 | J35: -0.340344042 | K35: 3.239200776 | L35: -0.1891033482 | M35: 2.581723316 | N35: 23.68873672 | O35: 0.5304430291 | AP35: =IF(G35>=D35,C35,NA()) -> 96389600 | AQ35: =IF(G35<D35,C35,NA()) -> 
A36: 4 | B36: =IF(A36>$A$8,"",OFFSET(InputPriceData!B$15,$A36+$A$11,0,1,1)) -> 2019-12-11 | C36: =IF(A36>$A$8,"",OFFSET(InputPriceData!G$15,CalculationsAndCharts!$A36+$A$11,IF($C$5,8,0),1,1)) -> 53429100 | D36: =IF(A36>$A$8,"",OFFSET(InputPriceData!C$15,CalculationsAndCharts!$A36+$A$11,IF($C$5,8,0),1,1)) -> 314.03 | E36: =IF(A36>$A$8,"",OFFSET(InputPriceData!D$15,CalculationsAndCharts!$A36+$A$11,IF($C$5,8,0),1,1)) -> 314.7 | F36: =IF(A36>$A$8,"",OFFSET(InputPriceData!E$15,CalculationsAndCharts!$A36+$A$11,IF($C$5,8,0),1,1)) -> 313.44 | G36: =IF(A36>$A$8,"",OFFSET(InputPriceData!F$15,CalculationsAndCharts!$A36+$A$11,IF($C$5,8,0),1,1)) -> 314.42 | H36: 313.624969 | I36: -0.2553327882 | J36: -0.5669278886 | K36: 3.369341055 | L36: -0.3088554965 | M36: 2.114066388 | N36: 24.39804678 | O36: 0.4279973613 | AP36: =IF(G36>=D36,C36,NA()) -> 53429100 | AQ36: =IF(G36<D36,C36,NA()) -> 
A37: 5 | B37: =IF(A37>$A$8,"",OFFSET(InputPriceData!B$15,$A37+$A$11,0,1,1)) -> 2019-12-10 | C37: =IF(A37>$A$8,"",OFFSET(InputPriceData!G$15,CalculationsAndCharts!$A37+$A$11,IF($C$5,8,0),1,1)) -> 52649800 | D37: =IF(A37>$A$8,"",OFFSET(InputPriceData!C$15,CalculationsAndCharts!$A37+$A$11,IF($C$5,8,0),1,1)) -> 313.82 | E37: =IF(A37>$A$8,"",OFFSET(InputPriceData!D$15,CalculationsAndCharts!$A37+$A$11,IF($C$5,8,0),1,1)) -> 314.55 | F37: =IF(A37>$A$8,"",OFFSET(InputPriceData!E$15,CalculationsAndCharts!$A37+$A$11,IF($C$5,8,0),1,1)) -> 312.81 | G37: =IF(A37>$A$8,"",OFFSET(InputPriceData!F$15,CalculationsAndCharts!$A37+$A$11,IF($C$5,8,0),1,1)) -> 313.53 | H37: 313.190389 | I37: -0.249311969 | J37: -0.6889773368 | K37: 3.496338298 | L37: -0.3684666728 | M37: 1.928798338 | N37: 25.2284122 | O37: 0.3840094076 | AQ37: 52649800
A38: 6 | B38: =IF(A38>$A$8,"",OFFSET(InputPriceData!B$15,$A38+$A$11,0,1,1)) -> 2019-12-09 | C38: =IF(A38>$A$8,"",OFFSET(InputPriceData!G$15,CalculationsAndCharts!$A38+$A$11,IF($C$5,8,0),1,1)) -> 34838500 | D38: =IF(A38>$A$8,"",OFFSET(InputPriceData!C$15,CalculationsAndCharts!$A38+$A$11,IF($C$5,8,0),1,1)) -> 314.44 | E38: =IF(A38>$A$8,"",OFFSET(InputPriceData!D$15,CalculationsAndCharts!$A38+$A$11,IF($C$5,8,0),1,1)) -> 315.18 | F38: =IF(A38>$A$8,"",OFFSET(InputPriceData!E$15,CalculationsAndCharts!$A38+$A$11,IF($C$5,8,0),1,1)) -> 313.8 | G38: =IF(A38>$A$8,"",OFFSET(InputPriceData!F$15,CalculationsAndCharts!$A38+$A$11,IF($C$5,8,0),1,1)) -> 313.88 | H38: 312.6166724 | I38: -0.2443286351 | J38: -0.9660402952 | K38: 3.62224032 | L38: -0.5075824665 | M38: 1.599410374 | N38: 26.12458508 | O38: 0.312921359 | AQ38: 34838500
A39: 7 | B39: =IF(A39>$A$8,"",OFFSET(InputPriceData!B$15,$A39+$A$11,0,1,1)) -> 2019-12-06 | C39: =IF(A39>$A$8,"",OFFSET(InputPriceData!G$15,CalculationsAndCharts!$A39+$A$11,IF($C$5,8,0),1,1)) -> 48927000 | D39: =IF(A39>$A$8,"",OFFSET(InputPriceData!C$15,CalculationsAndCharts!$A39+$A$11,IF($C$5,8,0),1,1)) -> 314.12 | E39: =IF(A39>$A$8,"",OFFSET(InputPriceData!D$15,CalculationsAndCharts!$A39+$A$11,IF($C$5,8,0),1,1)) -> 315.31 | F39: =IF(A39>$A$8,"",OFFSET(InputPriceData!E$15,CalculationsAndCharts!$A39+$A$11,IF($C$5,8,0),1,1)) -> 314.11 | G39: =IF(A39>$A$8,"",OFFSET(InputPriceData!F$15,CalculationsAndCharts!$A39+$A$11,IF($C$5,8,0),1,1)) -> 314.87 | H39: 311.8915923 | I39: -0.2375493179 | J39: -1.38238825 | K39: 3.734282256 | L39: -0.7153629825 | M39: 1.111879588 | N39: 27.10652139 | O39: 0.2135604678 | AP39: 48927000
A40: 8 | B40: =IF(A40>$A$8,"",OFFSET(InputPriceData!B$15,$A40+$A$11,0,1,1)) -> 2019-12-05 | C40: =IF(A40>$A$8,"",OFFSET(InputPriceData!G$15,CalculationsAndCharts!$A40+$A$11,IF($C$5,8,0),1,1)) -> 40709000 | D40: =IF(A40>$A$8,"",OFFSET(InputPriceData!C$15,CalculationsAndCharts!$A40+$A$11,IF($C$5,8,0),1,1)) -> 312.23 | E40: =IF(A40>$A$8,"",OFFSET(InputPriceData!D$15,CalculationsAndCharts!$A40+$A$11,IF($C$5,8,0),1,1)) -> 312.25 | F40: =IF(A40>$A$8,"",OFFSET(InputPriceData!E$15,CalculationsAndCharts!$A40+$A$11,IF($C$5,8,0),1,1)) -> 310.58 | G40: =IF(A40>$A$8,"",OFFSET(InputPriceData!F$15,CalculationsAndCharts!$A40+$A$11,IF($C$5,8,0),1,1)) -> 312.02 | H40: 311.6571092 | I40: -0.2538092751 | J40: -1.533791649 | K40: 3.810252464 | L40: -0.7857592323 | M40: 1.13120574 | N40: 28.18444828 | O40: 0.2130771265 | AQ40: 40709000
A41: 9 | B41: =IF(A41>$A$8,"",OFFSET(InputPriceData!B$15,$A41+$A$11,0,1,1)) -> 2019-12-04 | C41: =IF(A41>$A$8,"",OFFSET(InputPriceData!G$15,CalculationsAndCharts!$A41+$A$11,IF($C$5,8,0),1,1)) -> 49080000 | D41: =IF(A41>$A$8,"",OFFSET(InputPriceData!C$15,CalculationsAndCharts!$A41+$A$11,IF($C$5,8,0),1,1)) -> 310.7 | E41: =IF(A41>$A$8,"",OFFSET(InputPriceData!D$15,CalculationsAndCharts!$A41+$A$11,IF($C$5,8,0),1,1)) -> 312.12 | F41: =IF(A41>$A$8,"",OFFSET(InputPriceData!E$15,CalculationsAndCharts!$A41+$A$11,IF($C$5,8,0),1,1)) -> 310.32 | G41: =IF(A41>$A$8,"",OFFSET(InputPriceData!F$15,CalculationsAndCharts!$A41+$A$11,IF($C$5,8,0),1,1)) -> 311.46 | H41: 312.1873726 | I41: -0.315770486 | J41: -1.338350463 | K41: 3.870991449 | L41: -0.6802346457 | M41: 1.977239639 | N41: 29.30548252 | O41: 0.3652454969 | AP41: 49080000
A42: 10 | B42: =IF(A42>$A$8,"",OFFSET(InputPriceData!B$15,$A42+$A$11,0,1,1)) -> 2019-12-03 | C42: =IF(A42>$A$8,"",OFFSET(InputPriceData!G$15,CalculationsAndCharts!$A42+$A$11,IF($C$5,8,0),1,1)) -> 73941700 | D42: =IF(A42>$A$8,"",OFFSET(InputPriceData!C$15,CalculationsAndCharts!$A42+$A$11,IF($C$5,8,0),1,1)) -> 308.65 | E42: =IF(A42>$A$8,"",OFFSET(InputPriceData!D$15,CalculationsAndCharts!$A42+$A$11,IF($C$5,8,0),1,1)) -> 309.64 | F42: =IF(A42>$A$8,"",OFFSET(InputPriceData!E$15,CalculationsAndCharts!$A42+$A$11,IF($C$5,8,0),1,1)) -> 307.13 | G42: =IF(A42>$A$8,"",OFFSET(InputPriceData!F$15,CalculationsAndCharts!$A42+$A$11,IF($C$5,8,0),1,1)) -> 309.55 | H42: 313.2012841 | I42: -0.4159390786 | J42: -0.9602701443 | K42: 3.957650177 | L42: -0.4826971389 | M42: 3.407090181 | N42: 30.36364943 | O42: 0.6183105327 | AP42: 73941700
A43: 11 | B43: =IF(A43>$A$8,"",OFFSET(InputPriceData!B$15,$A43+$A$11,0,1,1)) -> 2019-12-02 | C43: =IF(A43>$A$8,"",OFFSET(InputPriceData!G$15,CalculationsAndCharts!$A43+$A$11,IF($C$5,8,0),1,1)) -> 75767800 | D43: =IF(A43>$A$8,"",OFFSET(InputPriceData!C$15,CalculationsAndCharts!$A43+$A$11,IF($C$5,8,0),1,1)) -> 314.59 | E43: =IF(A43>$A$8,"",OFFSET(InputPriceData!D$15,CalculationsAndCharts!$A43+$A$11,IF($C$5,8,0),1,1)) -> 314.66 | F43: =IF(A43>$A$8,"",OFFSET(InputPriceData!E$15,CalculationsAndCharts!$A43+$A$11,IF($C$5,8,0),1,1)) -> 311.17 | G43: =IF(A43>$A$8,"",OFFSET(InputPriceData!F$15,CalculationsAndCharts!$A43+$A$11,IF($C$5,8,0),1,1)) -> 311.64 | H43: 314.0069979 | I43: -0.505194376 | J43: -0.5865425715 | K43: 4.084130653 | L43: -0.290234961 | M43: 4.717998376 | N43: 31.14512385 | O43: 0.8454009976 | AQ43: 75767800
A44: 12 | B44: =IF(A44>$A$8,"",OFFSET(InputPriceData!B$15,$A44+$A$11,0,1,1)) -> 2019-11-29 | C44: =IF(A44>$A$8,"",OFFSET(InputPriceData!G$15,CalculationsAndCharts!$A44+$A$11,IF($C$5,8,0),1,1)) -> 36592700 | D44: =IF(A44>$A$8,"",OFFSET(InputPriceData!C$15,CalculationsAndCharts!$A44+$A$11,IF($C$5,8,0),1,1)) -> 314.86 | E44: =IF(A44>$A$8,"",OFFSET(InputPriceData!D$15,CalculationsAndCharts!$A44+$A$11,IF($C$5,8,0),1,1)) -> 315.13 | F44: =IF(A44>$A$8,"",OFFSET(InputPriceData!E$15,CalculationsAndCharts!$A44+$A$11,IF($C$5,8,0),1,1)) -> 314.06 | G44: =IF(A44>$A$8,"",OFFSET(InputPriceData!F$15,CalculationsAndCharts!$A44+$A$11,IF($C$5,8,0),1,1)) -> 314.31 | H44: 313.8660208 | I44: -0.5294463667 | J44: -0.4527191996 | K44: 4.239968089 | L44: -0.2198607064 | M44: 5.106467651 | N44: 31.51535781 | O44: 0.9096188756 | AQ44: 36592700
A45: 13 | B45: =IF(A45>$A$8,"",OFFSET(InputPriceData!B$15,$A45+$A$11,0,1,1)) -> 2019-11-27 | C45: =IF(A45>$A$8,"",OFFSET(InputPriceData!G$15,CalculationsAndCharts!$A45+$A$11,IF($C$5,8,0),1,1)) -> 44444600 | D45: =IF(A45>$A$8,"",OFFSET(InputPriceData!C$15,CalculationsAndCharts!$A45+$A$11,IF($C$5,8,0),1,1)) -> 314.61 | E45: =IF(A45>$A$8,"",OFFSET(InputPriceData!D$15,CalculationsAndCharts!$A45+$A$11,IF($C$5,8,0),1,1)) -> 315.48 | F45: =IF(A45>$A$8,"",OFFSET(InputPriceData!E$15,CalculationsAndCharts!$A45+$A$11,IF($C$5,8,0),1,1)) -> 314.37 | G45: =IF(A45>$A$8,"",OFFSET(InputPriceData!F$15,CalculationsAndCharts!$A45+$A$11,IF($C$5,8,0),1,1)) -> 315.48 | H45: 312.9748718 | I45: -0.5161278991 | J45: -0.6878963679 | K45: 4.408093648 | L45: -0.3276405227 | M45: 4.731446573 | N45: 31.74199723 | O45: 0.8398018283 | AP45: 44444600
A46: 14 | B46: =IF(A46>$A$8,"",OFFSET(InputPriceData!B$15,$A46+$A$11,0,1,1)) -> 2019-11-26 | C46: =IF(A46>$A$8,"",OFFSET(InputPriceData!G$15,CalculationsAndCharts!$A46+$A$11,IF($C$5,8,0),1,1)) -> 37569000 | D46: =IF(A46>$A$8,"",OFFSET(InputPriceData!C$15,CalculationsAndCharts!$A46+$A$11,IF($C$5,8,0),1,1)) -> 313.41 | E46: =IF(A46>$A$8,"",OFFSET(InputPriceData!D$15,CalculationsAndCharts!$A46+$A$11,IF($C$5,8,0),1,1)) -> 314.28 | F46: =IF(A46>$A$8,"",OFFSET(InputPriceData!E$15,CalculationsAndCharts!$A46+$A$11,IF($C$5,8,0),1,1)) -> 313.06 | G46: =IF(A46>$A$8,"",OFFSET(InputPriceData!F$15,CalculationsAndCharts!$A46+$A$11,IF($C$5,8,0),1,1)) -> 314.08 | H46: 311.989944 | I46: -0.5095166962 | J46: -1.093889819 | K46: 4.572047492 | L46: -0.5115854851 | M46: 4.25603549 | N46: 32.131806 | O46: 0.7508231812 | AP46: 37569000
A47: 15 | B47: =IF(A47>$A$8,"",OFFSET(InputPriceData!B$15,$A47+$A$11,0,1,1)) -> 2019-11-25 | C47: =IF(A47>$A$8,"",OFFSET(InputPriceData!G$15,CalculationsAndCharts!$A47+$A$11,IF($C$5,8,0),1,1)) -> 48647200 | D47: =IF(A47>$A$8,"",OFFSET(InputPriceData!C$15,CalculationsAndCharts!$A47+$A$11,IF($C$5,8,0),1,1)) -> 311.98 | E47: =IF(A47>$A$8,"",OFFSET(InputPriceData!D$15,CalculationsAndCharts!$A47+$A$11,IF($C$5,8,0),1,1)) -> 313.37 | F47: =IF(A47>$A$8,"",OFFSET(InputPriceData!E$15,CalculationsAndCharts!$A47+$A$11,IF($C$5,8,0),1,1)) -> 311.98 | G47: =IF(A47>$A$8,"",OFFSET(InputPriceData!F$15,CalculationsAndCharts!$A47+$A$11,IF($C$5,8,0),1,1)) -> 313.37 | H47: 311.3124121 | I47: -0.5215895394 | J47: -1.376597109 | K47: 4.712691348 | L47: -0.6341213197 | M47: 4.100093054 | N47: 32.715888 | O47: 0.7168270032 | AP47: 48647200
A48: 16 | B48: =IF(A48>$A$8,"",OFFSET(InputPriceData!B$15,$A48+$A$11,0,1,1)) -> 2019-11-22 | C48: =IF(A48>$A$8,"",OFFSET(InputPriceData!G$15,CalculationsAndCharts!$A48+$A$11,IF($C$5,8,0),1,1)) -> 44850200 | D48: =IF(A48>$A$8,"",OFFSET(InputPriceData!C$15,CalculationsAndCharts!$A48+$A$11,IF($C$5,8,0),1,1)) -> 311.09 | E48: =IF(A48>$A$8,"",OFFSET(InputPriceData!D$15,CalculationsAndCharts!$A48+$A$11,IF($C$5,8,0),1,1)) -> 311.24 | F48: =IF(A48>$A$8,"",OFFSET(InputPriceData!E$15,CalculationsAndCharts!$A48+$A$11,IF($C$5,8,0),1,1)) -> 309.85 | G48: =IF(A48>$A$8,"",OFFSET(InputPriceData!F$15,CalculationsAndCharts!$A48+$A$11,IF($C$5,8,0),1,1)) -> 310.96 | H48: 311.149948 | I48: -0.5521185298 | J48: -1.307497028 | K48: 4.830094337 | L48: -0.5949259377 | M48: 4.489747535 | N48: 33.37860154 | O48: 0.7771195813 | AQ48: 44850200
A49: 17 | B49: =IF(A49>$A$8,"",OFFSET(InputPriceData!B$15,$A49+$A$11,0,1,1)) -> 2019-11-21 | C49: =IF(A49>$A$8,"",OFFSET(InputPriceData!G$15,CalculationsAndCharts!$A49+$A$11,IF($C$5,8,0),1,1)) -> 54664700 | D49: =IF(A49>$A$8,"",OFFSET(InputPriceData!C$15,CalculationsAndCharts!$A49+$A$11,IF($C$5,8,0),1,1)) -> 310.89 | E49: =IF(A49>$A$8,"",OFFSET(InputPriceData!D$15,CalculationsAndCharts!$A49+$A$11,IF($C$5,8,0),1,1)) -> 311.01 | F49: =IF(A49>$A$8,"",OFFSET(InputPriceData!E$15,CalculationsAndCharts!$A49+$A$11,IF($C$5,8,0),1,1)) -> 309.39 | G49: =IF(A49>$A$8,"",OFFSET(InputPriceData!F$15,CalculationsAndCharts!$A49+$A$11,IF($C$5,8,0),1,1)) -> 310.27 | H49: 311.3796645 | I49: -0.5854978388 | J49: -0.8427654488 | K49: 4.960117082 | L49: -0.3784083913 | M49: 5.304961859 | N49: 33.92946689 | O49: 0.9107386085 | AQ49: 54664700
A50: 18 | B50: =IF(A50>$A$8,"",OFFSET(InputPriceData!B$15,$A50+$A$11,0,1,1)) -> 2019-11-20 | C50: =IF(A50>$A$8,"",OFFSET(InputPriceData!G$15,CalculationsAndCharts!$A50+$A$11,IF($C$5,8,0),1,1)) -> 79406200 | D50: =IF(A50>$A$8,"",OFFSET(InputPriceData!C$15,CalculationsAndCharts!$A50+$A$11,IF($C$5,8,0),1,1)) -> 311.28 | E50: =IF(A50>$A$8,"",OFFSET(InputPriceData!D$15,CalculationsAndCharts!$A50+$A$11,IF($C$5,8,0),1,1)) -> 311.85 | F50: =IF(A50>$A$8,"",OFFSET(InputPriceData!E$15,CalculationsAndCharts!$A50+$A$11,IF($C$5,8,0),1,1)) -> 309.06 | G50: =IF(A50>$A$8,"",OFFSET(InputPriceData!F$15,CalculationsAndCharts!$A50+$A$11,IF($C$5,8,0),1,1)) -> 310.77 | H50: 311.4675645 | I50: -0.602647985 | J50: -0.3322940013 | K50: 5.137194727 | L50: -0.1466086137 | M50: 5.995509841 | N50: 34.1705855 | O50: 1.025651714 | AQ50: 79406200
A51: 19 | B51: =IF(A51>$A$8,"",OFFSET(InputPriceData!B$15,$A51+$A$11,0,1,1)) -> 2019-11-19 | C51: =IF(A51>$A$8,"",OFFSET(InputPriceData!G$15,CalculationsAndCharts!$A51+$A$11,IF($C$5,8,0),1,1)) -> 67804700 | D51: =IF(A51>$A$8,"",OFFSET(InputPriceData!C$15,CalculationsAndCharts!$A51+$A$11,IF($C$5,8,0),1,1)) -> 312.68 | E51: =IF(A51>$A$8,"",OFFSET(InputPriceData!D$15,CalculationsAndCharts!$A51+$A$11,IF($C$5,8,0),1,1)) -> 312.69 | F51: =IF(A51>$A$8,"",OFFSET(InputPriceData!E$15,CalculationsAndCharts!$A51+$A$11,IF($C$5,8,0),1,1)) -> 311.22 | G51: =IF(A51>$A$8,"",OFFSET(InputPriceData!F$15,CalculationsAndCharts!$A51+$A$11,IF($C$5,8,0),1,1)) -> 311.93 | H51: 311.0980932 | I51: -0.5933255955 | J51: -0.01055461902 | K51: 5.346643703 | L51: -0.004564591736 | M51: 6.219364134 | N51: 34.09660414 | O51: 1.065100089 | AQ51: 67804700
A52: 20 | B52: =IF(A52>$A$8,"",OFFSET(InputPriceData!B$15,$A52+$A$11,0,1,1)) -> 2019-11-18 | C52: =IF(A52>$A$8,"",OFFSET(InputPriceData!G$15,CalculationsAndCharts!$A52+$A$11,IF($C$5,8,0),1,1)) -> 49228000 | D52: =IF(A52>$A$8,"",OFFSET(InputPriceData!C$15,CalculationsAndCharts!$A52+$A$11,IF($C$5,8,0),1,1)) -> 311.53 | E52: =IF(A52>$A$8,"",OFFSET(InputPriceData!D$15,CalculationsAndCharts!$A52+$A$11,IF($C$5,8,0),1,1)) -> 312.28 | F52: =IF(A52>$A$8,"",OFFSET(InputPriceData!E$15,CalculationsAndCharts!$A52+$A$11,IF($C$5,8,0),1,1)) -> 311.03 | G52: =IF(A52>$A$8,"",OFFSET(InputPriceData!F$15,CalculationsAndCharts!$A52+$A$11,IF($C$5,8,0),1,1)) -> 312.02 | H52: 310.354821 | I52: -0.5718440904 | J52: 0.04357308647 | K52: 5.569415882 | L52: 0.01846347742 | M52: 6.047936036 | N52: 33.90560888 | O52: 1.038655237 | AP52: 49228000
A53: 21 | B53: =IF(A53>$A$8,"",OFFSET(InputPriceData!B$15,$A53+$A$11,0,1,1)) -> 2019-11-15 | C53: =IF(A53>$A$8,"",OFFSET(InputPriceData!G$15,CalculationsAndCharts!$A53+$A$11,IF($C$5,8,0),1,1)) -> 62023600 | D53: =IF(A53>$A$8,"",OFFSET(InputPriceData!C$15,CalculationsAndCharts!$A53+$A$11,IF($C$5,8,0),1,1)) -> 311.02 | E53: =IF(A53>$A$8,"",OFFSET(InputPriceData!D$15,CalculationsAndCharts!$A53+$A$11,IF($C$5,8,0),1,1)) -> 311.84 | F53: =IF(A53>$A$8,"",OFFSET(InputPriceData!E$15,CalculationsAndCharts!$A53+$A$11,IF($C$5,8,0),1,1)) -> 310.26 | G53: =IF(A53>$A$8,"",OFFSET(InputPriceData!F$15,CalculationsAndCharts!$A53+$A$11,IF($C$5,8,0),1,1)) -> 311.79 | H53: 309.5448258 | I53: -0.5515611573 | J53: -0.001890137009 | K53: 5.801395768 | L53: -0.0007847422563 | M53: 5.789502015 | N53: 33.79427882 | O53: 0.9959089102 | AP53: 62023600
A54: 22 | B54: =IF(A54>$A$8,"",OFFSET(InputPriceData!B$15,$A54+$A$11,0,1,1)) -> 2019-11-14 | C54: =IF(A54>$A$8,"",OFFSET(InputPriceData!G$15,CalculationsAndCharts!$A54+$A$11,IF($C$5,8,0),1,1)) -> 51219900 | D54: =IF(A54>$A$8,"",OFFSET(InputPriceData!C$15,CalculationsAndCharts!$A54+$A$11,IF($C$5,8,0),1,1)) -> 308.79 | E54: =IF(A54>$A$8,"",OFFSET(InputPriceData!D$15,CalculationsAndCharts!$A54+$A$11,IF($C$5,8,0),1,1)) -> 309.64 | F54: =IF(A54>$A$8,"",OFFSET(InputPriceData!E$15,CalculationsAndCharts!$A54+$A$11,IF($C$5,8,0),1,1)) -> 308.09 | G54: =IF(A54>$A$8,"",OFFSET(InputPriceData!F$15,CalculationsAndCharts!$A54+$A$11,IF($C$5,8,0),1,1)) -> 309.55 | H54: 309.0280403 | I54: -0.5605234541 | J54: -0.05225634904 | K54: 6.043120443 | L54: -0.0212573165 | M54: 5.833239919 | N54: 33.80577654 | O54: 1.003262041 | AP54: 51219900
A55: 23 | B55: =IF(A55>$A$8,"",OFFSET(InputPriceData!B$15,$A55+$A$11,0,1,1)) -> 2019-11-13 | C55: =IF(A55>$A$8,"",OFFSET(InputPriceData!G$15,CalculationsAndCharts!$A55+$A$11,IF($C$5,8,0),1,1)) -> 53917700 | D55: =IF(A55>$A$8,"",OFFSET(InputPriceData!C$15,CalculationsAndCharts!$A55+$A$11,IF($C$5,8,0),1,1)) -> 307.91 | E55: =IF(A55>$A$8,"",OFFSET(InputPriceData!D$15,CalculationsAndCharts!$A55+$A$11,IF($C$5,8,0),1,1)) -> 309.54 | F55: =IF(A55>$A$8,"",OFFSET(InputPriceData!E$15,CalculationsAndCharts!$A55+$A$11,IF($C$5,8,0),1,1)) -> 307.66 | G55: =IF(A55>$A$8,"",OFFSET(InputPriceData!F$15,CalculationsAndCharts!$A55+$A$11,IF($C$5,8,0),1,1)) -> 309.1 | H55: 308.7821162 | I55: -0.6079947739 | J55: -0.1886345449 | K55: 6.294803348 | L55: -0.07518481666 | M55: 6.195310582 | N55: 33.7965719 | O55: 1.065679859 | AP55: 53917700
A56: 24 | B56: =IF(A56>$A$8,"",OFFSET(InputPriceData!B$15,$A56+$A$11,0,1,1)) -> 2019-11-12 | C56: =IF(A56>$A$8,"",OFFSET(InputPriceData!G$15,CalculationsAndCharts!$A56+$A$11,IF($C$5,8,0),1,1)) -> 46484600 | D56: =IF(A56>$A$8,"",OFFSET(InputPriceData!C$15,CalculationsAndCharts!$A56+$A$11,IF($C$5,8,0),1,1)) -> 308.75 | E56: =IF(A56>$A$8,"",OFFSET(InputPriceData!D$15,CalculationsAndCharts!$A56+$A$11,IF($C$5,8,0),1,1)) -> 309.99 | F56: =IF(A56>$A$8,"",OFFSET(InputPriceData!E$15,CalculationsAndCharts!$A56+$A$11,IF($C$5,8,0),1,1)) -> 308.15 | G56: =IF(A56>$A$8,"",OFFSET(InputPriceData!F$15,CalculationsAndCharts!$A56+$A$11,IF($C$5,8,0),1,1)) -> 309 | H56: 308.5183133 | I56: -0.6718722935 | J56: -0.4512791008 | K56: 6.555604196 | L56: -0.1762539502 | M56: 6.603379981 | N56: 33.60551768 | O56: 1.139097749 | AP56: 46484600
A57: 25 | B57: =IF(A57>$A$8,"",OFFSET(InputPriceData!B$15,$A57+$A$11,0,1,1)) -> 2019-11-11 | C57: =IF(A57>$A$8,"",OFFSET(InputPriceData!G$15,CalculationsAndCharts!$A57+$A$11,IF($C$5,8,0),1,1)) -> 35797300 | D57: =IF(A57>$A$8,"",OFFSET(InputPriceData!C$15,CalculationsAndCharts!$A57+$A$11,IF($C$5,8,0),1,1)) -> 307.42 | E57: =IF(A57>$A$8,"",OFFSET(InputPriceData!D$15,CalculationsAndCharts!$A57+$A$11,IF($C$5,8,0),1,1)) -> 308.54 | F57: =IF(A57>$A$8,"",OFFSET(InputPriceData!E$15,CalculationsAndCharts!$A57+$A$11,IF($C$5,8,0),1,1)) -> 307.27 | G57: =IF(A57>$A$8,"",OFFSET(InputPriceData!F$15,CalculationsAndCharts!$A57+$A$11,IF($C$5,8,0),1,1)) -> 308.35 | H57: 308.2041496 | I57: -0.7340169658 | J57: -0.6839448286 | K57: 6.820268836 | L57: -0.2618908489 | M57: 7.023233312 | N57: 33.18888812 | O57: 1.219103967 | AP57: 35797300
A58: 26 | B58: =IF(A58>$A$8,"",OFFSET(InputPriceData!B$15,$A58+$A$11,0,1,1)) -> 2019-11-08 | C58: =IF(A58>$A$8,"",OFFSET(InputPriceData!G$15,CalculationsAndCharts!$A58+$A$11,IF($C$5,8,0),1,1)) -> 49032100 | D58: =IF(A58>$A$8,"",OFFSET(InputPriceData!C$15,CalculationsAndCharts!$A58+$A$11,IF($C$5,8,0),1,1)) -> 307.8 | E58: =IF(A58>$A$8,"",OFFSET(InputPriceData!D$15,CalculationsAndCharts!$A58+$A$11,IF($C$5,8,0),1,1)) -> 309 | F58: =IF(A58>$A$8,"",OFFSET(InputPriceData!E$15,CalculationsAndCharts!$A58+$A$11,IF($C$5,8,0),1,1)) -> 307.03 | G58: =IF(A58>$A$8,"",OFFSET(InputPriceData!F$15,CalculationsAndCharts!$A58+$A$11,IF($C$5,8,0),1,1)) -> 308.94 | H58: 307.7300997 | I58: -0.779858029 | J58: -0.8594678854 | K58: 7.084955849 | L58: -0.3228948212 | M58: 7.329041419 | N58: 32.51651653 | O58: 1.285272363 | AP58: 49032100
A59: 27 | B59: =IF(A59>$A$8,"",OFFSET(InputPriceData!B$15,$A59+$A$11,0,1,1)) -> 2019-11-07 | C59: =IF(A59>$A$8,"",OFFSET(InputPriceData!G$15,CalculationsAndCharts!$A59+$A$11,IF($C$5,8,0),1,1)) -> 54272300 | D59: =IF(A59>$A$8,"",OFFSET(InputPriceData!C$15,CalculationsAndCharts!$A59+$A$11,IF($C$5,8,0),1,1)) -> 308.57 | E59: =IF(A59>$A$8,"",OFFSET(InputPriceData!D$15,CalculationsAndCharts!$A59+$A$11,IF($C$5,8,0),1,1)) -> 309.65 | F59: =IF(A59>$A$8,"",OFFSET(InputPriceData!E$15,CalculationsAndCharts!$A59+$A$11,IF($C$5,8,0),1,1)) -> 307.66 | G59: =IF(A59>$A$8,"",OFFSET(InputPriceData!F$15,CalculationsAndCharts!$A59+$A$11,IF($C$5,8,0),1,1)) -> 308.18 | H59: 307.1406059 | I59: -0.7969278133 | J59: -0.8312665659 | K59: 7.349383799 | L59: -0.3066301457 | M59: 7.536475474 | N59: 31.63325272 | O59: 1.339973978 | AQ59: 54272300
A60: 28 | B60: =IF(A60>$A$8,"",OFFSET(InputPriceData!B$15,$A60+$A$11,0,1,1)) -> 2019-11-06 | C60: =IF(A60>$A$8,"",OFFSET(InputPriceData!G$15,CalculationsAndCharts!$A60+$A$11,IF($C$5,8,0),1,1)) -> 46487100 | D60: =IF(A60>$A$8,"",OFFSET(InputPriceData!C$15,CalculationsAndCharts!$A60+$A$11,IF($C$5,8,0),1,1)) -> 307.03 | E60: =IF(A60>$A$8,"",OFFSET(InputPriceData!D$15,CalculationsAndCharts!$A60+$A$11,IF($C$5,8,0),1,1)) -> 307.4 | F60: =IF(A60>$A$8,"",OFFSET(InputPriceData!E$15,CalculationsAndCharts!$A60+$A$11,IF($C$5,8,0),1,1)) -> 306.06 | G60: =IF(A60>$A$8,"",OFFSET(InputPriceData!F$15,CalculationsAndCharts!$A60+$A$11,IF($C$5,8,0),1,1)) -> 307.1 | H60: 306.5809237 | I60: -0.7726206893 | J60: -0.3631033425 | K60: 7.626816287 | L60: -0.1314796696 | M60: 7.749413895 | N60: 30.58470231 | O60: 1.401253558 | AP60: 46487100
A61: 29 | B61: =IF(A61>$A$8,"",OFFSET(InputPriceData!B$15,$A61+$A$11,0,1,1)) -> 2019-11-05 | C61: =IF(A61>$A$8,"",OFFSET(InputPriceData!G$15,CalculationsAndCharts!$A61+$A$11,IF($C$5,8,0),1,1)) -> 42933200 | D61: =IF(A61>$A$8,"",OFFSET(InputPriceData!C$15,CalculationsAndCharts!$A61+$A$11,IF($C$5,8,0),1,1)) -> 307.59 | E61: =IF(A61>$A$8,"",OFFSET(InputPriceData!D$15,CalculationsAndCharts!$A61+$A$11,IF($C$5,8,0),1,1)) -> 307.92 | F61: =IF(A61>$A$8,"",OFFSET(InputPriceData!E$15,CalculationsAndCharts!$A61+$A$11,IF($C$5,8,0),1,1)) -> 306.71 | G61: =IF(A61>$A$8,"",OFFSET(InputPriceData!F$15,CalculationsAndCharts!$A61+$A$11,IF($C$5,8,0),1,1)) -> 307.03 | H61: 305.8719629 | I61: -0.7114472975 | J61: 0.2817037656 | K61: 7.939106797 | L61: 0.09997854919 | M61: 7.751900389 | N61: 29.35683925 | O61: 1.430716336 | AQ61: 42933200
A62: 30 | B62: =IF(A62>$A$8,"",OFFSET(InputPriceData!B$15,$A62+$A$11,0,1,1)) -> 2019-11-04 | C62: =IF(A62>$A$8,"",OFFSET(InputPriceData!G$15,CalculationsAndCharts!$A62+$A$11,IF($C$5,8,0),1,1)) -> 60606900 | D62: =IF(A62>$A$8,"",OFFSET(InputPriceData!C$15,CalculationsAndCharts!$A62+$A$11,IF($C$5,8,0),1,1)) -> 307.85 | E62: =IF(A62>$A$8,"",OFFSET(InputPriceData!D$15,CalculationsAndCharts!$A62+$A$11,IF($C$5,8,0),1,1)) -> 308 | F62: =IF(A62>$A$8,"",OFFSET(InputPriceData!E$15,CalculationsAndCharts!$A62+$A$11,IF($C$5,8,0),1,1)) -> 306.96 | G62: =IF(A62>$A$8,"",OFFSET(InputPriceData!F$15,CalculationsAndCharts!$A62+$A$11,IF($C$5,8,0),1,1)) -> 307.37 | H62: 304.8825025 | I62: -0.6530648874 | J62: 0.558323569 | K62: 8.266596371 | L62: 0.1941880922 | M62: 7.415504887 | N62: 28.07620923 | O62: 1.399495448 | AQ62: 60606900
A63: 31 | B63: =IF(A63>$A$8,"",OFFSET(InputPriceData!B$15,$A63+$A$11,0,1,1)) -> 2019-11-01 | C63: =IF(A63>$A$8,"",OFFSET(InputPriceData!G$15,CalculationsAndCharts!$A63+$A$11,IF($C$5,8,0),1,1)) -> 71141500 | D63: =IF(A63>$A$8,"",OFFSET(InputPriceData!C$15,CalculationsAndCharts!$A63+$A$11,IF($C$5,8,0),1,1)) -> 304.92 | E63: =IF(A63>$A$8,"",OFFSET(InputPriceData!D$15,CalculationsAndCharts!$A63+$A$11,IF($C$5,8,0),1,1)) -> 306.19 | F63: =IF(A63>$A$8,"",OFFSET(InputPriceData!E$15,CalculationsAndCharts!$A63+$A$11,IF($C$5,8,0),1,1)) -> 304.74 | G63: =IF(A63>$A$8,"",OFFSET(InputPriceData!F$15,CalculationsAndCharts!$A63+$A$11,IF($C$5,8,0),1,1)) -> 306.14 | H63: 303.9031104 | I63: -0.6137050881 | J63: 0.6059144217 | K63: 8.598049336 | L63: 0.2066385392 | M63: 7.049817847 | N63: 26.95481325 | O63: 1.357874811 | AP63: 71141500
A64: 32 | B64: =IF(A64>$A$8,"",OFFSET(InputPriceData!B$15,$A64+$A$11,0,1,1)) -> 2019-10-31 | C64: =IF(A64>$A$8,"",OFFSET(InputPriceData!G$15,CalculationsAndCharts!$A64+$A$11,IF($C$5,8,0),1,1)) -> 69053800 | D64: =IF(A64>$A$8,"",OFFSET(InputPriceData!C$15,CalculationsAndCharts!$A64+$A$11,IF($C$5,8,0),1,1)) -> 304.13 | E64: =IF(A64>$A$8,"",OFFSET(InputPriceData!D$15,CalculationsAndCharts!$A64+$A$11,IF($C$5,8,0),1,1)) -> 304.13 | F64: =IF(A64>$A$8,"",OFFSET(InputPriceData!E$15,CalculationsAndCharts!$A64+$A$11,IF($C$5,8,0),1,1)) -> 301.73 | G64: =IF(A64>$A$8,"",OFFSET(InputPriceData!F$15,CalculationsAndCharts!$A64+$A$11,IF($C$5,8,0),1,1)) -> 303.33 | H64: 303.2770935 | I64: -0.5415769535 | J64: 1.278819883 | K64: 8.941004214 | L64: 0.42767733 | M64: 6.965377894 | N64: 26.00709998 | O64: 1.365836516 | AQ64: 69053800
A65: 33 | B65: =IF(A65>$A$8,"",OFFSET(InputPriceData!B$15,$A65+$A$11,0,1,1)) -> 2019-10-30 | C65: =IF(A65>$A$8,"",OFFSET(InputPriceData!G$15,CalculationsAndCharts!$A65+$A$11,IF($C$5,8,0),1,1)) -> 49643900 | D65: =IF(A65>$A$8,"",OFFSET(InputPriceData!C$15,CalculationsAndCharts!$A65+$A$11,IF($C$5,8,0),1,1)) -> 303.43 | E65: =IF(A65>$A$8,"",OFFSET(InputPriceData!D$15,CalculationsAndCharts!$A65+$A$11,IF($C$5,8,0),1,1)) -> 304.55 | F65: =IF(A65>$A$8,"",OFFSET(InputPriceData!E$15,CalculationsAndCharts!$A65+$A$11,IF($C$5,8,0),1,1)) -> 301.99 | G65: =IF(A65>$A$8,"",OFFSET(InputPriceData!F$15,CalculationsAndCharts!$A65+$A$11,IF($C$5,8,0),1,1)) -> 304.14 | H65: 302.6523138 | I65: -0.4129363984 | J65: 2.417702483 | K65: 9.24540521 | L65: 0.795133189 | M65: 6.753534666 | N65: 25.06920877 | O65: 1.348841191 | AP65: 49643900
A66: 34 | B66: =IF(A66>$A$8,"",OFFSET(InputPriceData!B$15,$A66+$A$11,0,1,1)) -> 2019-10-29 | C66: =IF(A66>$A$8,"",OFFSET(InputPriceData!G$15,CalculationsAndCharts!$A66+$A$11,IF($C$5,8,0),1,1)) -> 44284900 | D66: =IF(A66>$A$8,"",OFFSET(InputPriceData!C$15,CalculationsAndCharts!$A66+$A$11,IF($C$5,8,0),1,1)) -> 303 | E66: =IF(A66>$A$8,"",OFFSET(InputPriceData!D$15,CalculationsAndCharts!$A66+$A$11,IF($C$5,8,0),1,1)) -> 304.23 | F66: =IF(A66>$A$8,"",OFFSET(InputPriceData!E$15,CalculationsAndCharts!$A66+$A$11,IF($C$5,8,0),1,1)) -> 302.86 | G66: =IF(A66>$A$8,"",OFFSET(InputPriceData!F$15,CalculationsAndCharts!$A66+$A$11,IF($C$5,8,0),1,1)) -> 303.21 | H66: 301.7996101 | I66: -0.2920756605 | J66: 3.126112172 | K66: 9.387076873 | L66: 1.020326979 | M66: 6.192906608 | N66: 24.21333286 | O66: 1.258540641 | AP66: 44284900
A67: 35 | B67: =IF(A67>$A$8,"",OFFSET(InputPriceData!B$15,$A67+$A$11,0,1,1)) -> 2019-10-28 | C67: =IF(A67>$A$8,"",OFFSET(InputPriceData!G$15,CalculationsAndCharts!$A67+$A$11,IF($C$5,8,0),1,1)) -> 42147000 | D67: =IF(A67>$A$8,"",OFFSET(InputPriceData!C$15,CalculationsAndCharts!$A67+$A$11,IF($C$5,8,0),1,1)) -> 302.94 | E67: =IF(A67>$A$8,"",OFFSET(InputPriceData!D$15,CalculationsAndCharts!$A67+$A$11,IF($C$5,8,0),1,1)) -> 303.85 | F67: =IF(A67>$A$8,"",OFFSET(InputPriceData!E$15,CalculationsAndCharts!$A67+$A$11,IF($C$5,8,0),1,1)) -> 302.91 | G67: =IF(A67>$A$8,"",OFFSET(InputPriceData!F$15,CalculationsAndCharts!$A67+$A$11,IF($C$5,8,0),1,1)) -> 303.3 | H67: 300.8806213 | I67: -0.2192788408 | J67: 3.19076878 | K67: 9.371014355 | L67: 1.042322307 | M67: 5.493196609 | N67: 23.62421789 | O67: 1.130176893 | AP67: 42147000
A68: 36 | B68: =IF(A68>$A$8,"",OFFSET(InputPriceData!B$15,$A68+$A$11,0,1,1)) -> 2019-10-25 | C68: =IF(A68>$A$8,"",OFFSET(InputPriceData!G$15,CalculationsAndCharts!$A68+$A$11,IF($C$5,8,0),1,1)) -> 45205400 | D68: =IF(A68>$A$8,"",OFFSET(InputPriceData!C$15,CalculationsAndCharts!$A68+$A$11,IF($C$5,8,0),1,1)) -> 299.74 | E68: =IF(A68>$A$8,"",OFFSET(InputPriceData!D$15,CalculationsAndCharts!$A68+$A$11,IF($C$5,8,0),1,1)) -> 302.2 | F68: =IF(A68>$A$8,"",OFFSET(InputPriceData!E$15,CalculationsAndCharts!$A68+$A$11,IF($C$5,8,0),1,1)) -> 299.68 | G68: =IF(A68>$A$8,"",OFFSET(InputPriceData!F$15,CalculationsAndCharts!$A68+$A$11,IF($C$5,8,0),1,1)) -> 301.6 | H68: 300.1075774 | I68: -0.1612045353 | J68: 3.188709665 | K68: 9.337264728 | L68: 1.043530488 | M68: 4.881357287 | N68: 23.35125992 | O68: 1.010148998 | AP68: 45205400
A69: 37 | B69: =IF(A69>$A$8,"",OFFSET(InputPriceData!B$15,$A69+$A$11,0,1,1)) -> 2019-10-24 | C69: =IF(A69>$A$8,"",OFFSET(InputPriceData!G$15,CalculationsAndCharts!$A69+$A$11,IF($C$5,8,0),1,1)) -> 35453100 | D69: =IF(A69>$A$8,"",OFFSET(InputPriceData!C$15,CalculationsAndCharts!$A69+$A$11,IF($C$5,8,0),1,1)) -> 300.91 | E69: =IF(A69>$A$8,"",OFFSET(InputPriceData!D$15,CalculationsAndCharts!$A69+$A$11,IF($C$5,8,0),1,1)) -> 301.07 | F69: =IF(A69>$A$8,"",OFFSET(InputPriceData!E$15,CalculationsAndCharts!$A69+$A$11,IF($C$5,8,0),1,1)) -> 299.46 | G69: =IF(A69>$A$8,"",OFFSET(InputPriceData!F$15,CalculationsAndCharts!$A69+$A$11,IF($C$5,8,0),1,1)) -> 300.37 | H69: 299.6697077 | I69: -0.1166610456 | J69: 3.335207658 | K69: 9.302656203 | L69: 1.093501527 | M69: 4.560148637 | N69: 23.33141038 | O69: 0.9440793585 | AQ69: 35453100
A70: 38 | B70: =IF(A70>$A$8,"",OFFSET(InputPriceData!B$15,$A70+$A$11,0,1,1)) -> 2019-10-23 | C70: =IF(A70>$A$8,"",OFFSET(InputPriceData!G$15,CalculationsAndCharts!$A70+$A$11,IF($C$5,8,0),1,1)) -> 34352200 | D70: =IF(A70>$A$8,"",OFFSET(InputPriceData!C$15,CalculationsAndCharts!$A70+$A$11,IF($C$5,8,0),1,1)) -> 298.73 | E70: =IF(A70>$A$8,"",OFFSET(InputPriceData!D$15,CalculationsAndCharts!$A70+$A$11,IF($C$5,8,0),1,1)) -> 299.94 | F70: =IF(A70>$A$8,"",OFFSET(InputPriceData!E$15,CalculationsAndCharts!$A70+$A$11,IF($C$5,8,0),1,1)) -> 298.5 | G70: =IF(A70>$A$8,"",OFFSET(InputPriceData!F$15,CalculationsAndCharts!$A70+$A$11,IF($C$5,8,0),1,1)) -> 299.88 | H70: 299.4146048 | I70: -0.08380903315 | J70: 3.508859896 | K70: 9.226783123 | L70: 1.15515662 | M70: 4.388854744 | N70: 23.437096 | O70: 0.9065657512 | AP70: 34352200
A71: 39 | B71: =IF(A71>$A$8,"",OFFSET(InputPriceData!B$15,$A71+$A$11,0,1,1)) -> 2019-10-22 | C71: =IF(A71>$A$8,"",OFFSET(InputPriceData!G$15,CalculationsAndCharts!$A71+$A$11,IF($C$5,8,0),1,1)) -> 48594700 | D71: =IF(A71>$A$8,"",OFFSET(InputPriceData!C$15,CalculationsAndCharts!$A71+$A$11,IF($C$5,8,0),1,1)) -> 300.58 | E71: =IF(A71>$A$8,"",OFFSET(InputPriceData!D$15,CalculationsAndCharts!$A71+$A$11,IF($C$5,8,0),1,1)) -> 300.9 | F71: =IF(A71>$A$8,"",OFFSET(InputPriceData!E$15,CalculationsAndCharts!$A71+$A$11,IF($C$5,8,0),1,1)) -> 298.91 | G71: =IF(A71>$A$8,"",OFFSET(InputPriceData!F$15,CalculationsAndCharts!$A71+$A$11,IF($C$5,8,0),1,1)) -> 299.01 | H71: 299.2315813 | I71: -0.03897940055 | J71: 3.835526925 | K71: 9.098228346 | L71: 1.271588582 | M71: 4.244810631 | N71: 23.61105642 | O71: 0.8735758327 | AQ71: 48594700
A72: 40 | B72: =IF(A72>$A$8,"",OFFSET(InputPriceData!B$15,$A72+$A$11,0,1,1)) -> 2019-10-21 | C72: =IF(A72>$A$8,"",OFFSET(InputPriceData!G$15,CalculationsAndCharts!$A72+$A$11,IF($C$5,8,0),1,1)) -> 39048600 | D72: =IF(A72>$A$8,"",OFFSET(InputPriceData!C$15,CalculationsAndCharts!$A72+$A$11,IF($C$5,8,0),1,1)) -> 299.42 | E72: =IF(A72>$A$8,"",OFFSET(InputPriceData!D$15,CalculationsAndCharts!$A72+$A$11,IF($C$5,8,0),1,1)) -> 300.21 | F72: =IF(A72>$A$8,"",OFFSET(InputPriceData!E$15,CalculationsAndCharts!$A72+$A$11,IF($C$5,8,0),1,1)) -> 298.94 | G72: =IF(A72>$A$8,"",OFFSET(InputPriceData!F$15,CalculationsAndCharts!$A72+$A$11,IF($C$5,8,0),1,1)) -> 299.99 | H72: 298.9179392 | I72: 0.01092002628 | J72: 4.034908794 | K72: 8.864351744 | L72: 1.355221341 | M72: 3.920248518 | N72: 23.84408305 | O72: 0.8028294338 | AP72: 39048600
A73: 41 | B73: =IF(A73>$A$8,"",OFFSET(InputPriceData!B$15,$A73+$A$11,0,1,1)) -> 2019-10-18 | C73: =IF(A73>$A$8,"",OFFSET(InputPriceData!G$15,CalculationsAndCharts!$A73+$A$11,IF($C$5,8,0),1,1)) -> 64304000 | D73: =IF(A73>$A$8,"",OFFSET(InputPriceData!C$15,CalculationsAndCharts!$A73+$A$11,IF($C$5,8,0),1,1)) -> 298.69 | E73: =IF(A73>$A$8,"",OFFSET(InputPriceData!D$15,CalculationsAndCharts!$A73+$A$11,IF($C$5,8,0),1,1)) -> 299.4 | F73: =IF(A73>$A$8,"",OFFSET(InputPriceData!E$15,CalculationsAndCharts!$A73+$A$11,IF($C$5,8,0),1,1)) -> 297.03 | G73: =IF(A73>$A$8,"",OFFSET(InputPriceData!F$15,CalculationsAndCharts!$A73+$A$11,IF($C$5,8,0),1,1)) -> 297.97 | H73: 298.5136027 | I73: 0.0498203432 | J73: 3.989205262 | K73: 8.555346026 | L73: 1.363853095 | M73: 3.466091659 | N73: 24.19723865 | O73: 0.7046235258 | AQ73: 64304000
A74: 42 | B74: =IF(A74>$A$8,"",OFFSET(InputPriceData!B$15,$A74+$A$11,0,1,1)) -> 2019-10-17 | C74: =IF(A74>$A$8,"",OFFSET(InputPriceData!G$15,CalculationsAndCharts!$A74+$A$11,IF($C$5,8,0),1,1)) -> 45736600 | D74: =IF(A74>$A$8,"",OFFSET(InputPriceData!C$15,CalculationsAndCharts!$A74+$A$11,IF($C$5,8,0),1,1)) -> 299.68 | E74: =IF(A74>$A$8,"",OFFSET(InputPriceData!D$15,CalculationsAndCharts!$A74+$A$11,IF($C$5,8,0),1,1)) -> 300.24 | F74: =IF(A74>$A$8,"",OFFSET(InputPriceData!E$15,CalculationsAndCharts!$A74+$A$11,IF($C$5,8,0),1,1)) -> 298.52 | G74: =IF(A74>$A$8,"",OFFSET(InputPriceData!F$15,CalculationsAndCharts!$A74+$A$11,IF($C$5,8,0),1,1)) -> 299.28 | H74: 297.8175712 | I74: 0.09111982457 | J74: 3.635698507 | K74: 8.248745501 | L74: 1.265883997 | M74: 2.678940349 | N74: 24.70488229 | O74: 0.5389787575 | AQ74: 45736600
A75: 43 | B75: =IF(A75>$A$8,"",OFFSET(InputPriceData!B$15,$A75+$A$11,0,1,1)) -> 2019-10-16 | C75: =IF(A75>$A$8,"",OFFSET(InputPriceData!G$15,CalculationsAndCharts!$A75+$A$11,IF($C$5,8,0),1,1)) -> 48928200 | D75: =IF(A75>$A$8,"",OFFSET(InputPriceData!C$15,CalculationsAndCharts!$A75+$A$11,IF($C$5,8,0),1,1)) -> 298.37 | E75: =IF(A75>$A$8,"",OFFSET(InputPriceData!D$15,CalculationsAndCharts!$A75+$A$11,IF($C$5,8,0),1,1)) -> 299.16 | F75: =IF(A75>$A$8,"",OFFSET(InputPriceData!E$15,CalculationsAndCharts!$A75+$A$11,IF($C$5,8,0),1,1)) -> 297.92 | G75: =IF(A75>$A$8,"",OFFSET(InputPriceData!F$15,CalculationsAndCharts!$A75+$A$11,IF($C$5,8,0),1,1)) -> 298.4 | H75: 296.6222207 | I75: 0.146684582 | J75: 2.87709337 | K75: 8.041680579 | L75: 1.014566567 | M75: 1.336905258 | N75: 25.43522233 | O75: 0.2650836015 | AP75: 48928200
A76: 44 | B76: =IF(A76>$A$8,"",OFFSET(InputPriceData!B$15,$A76+$A$11,0,1,1)) -> 2019-10-15 | C76: =IF(A76>$A$8,"",OFFSET(InputPriceData!G$15,CalculationsAndCharts!$A76+$A$11,IF($C$5,8,0),1,1)) -> 46754500 | D76: =IF(A76>$A$8,"",OFFSET(InputPriceData!C$15,CalculationsAndCharts!$A76+$A$11,IF($C$5,8,0),1,1)) -> 297.1 | E76: =IF(A76>$A$8,"",OFFSET(InputPriceData!D$15,CalculationsAndCharts!$A76+$A$11,IF($C$5,8,0),1,1)) -> 299.7 | F76: =IF(A76>$A$8,"",OFFSET(InputPriceData!E$15,CalculationsAndCharts!$A76+$A$11,IF($C$5,8,0),1,1)) -> 296.97 | G76: =IF(A76>$A$8,"",OFFSET(InputPriceData!F$15,CalculationsAndCharts!$A76+$A$11,IF($C$5,8,0),1,1)) -> 298.88 | H76: 295.0808674 | I76: 0.2182756139 | J76: 1.869170306 | K76: 8.031847842 | L76: 0.6595399953 | M76: -0.4227236408 | N76: 26.42055177 | O76: -0.08224047211 | AP76: 46754500
A77: 45 | B77: =IF(A77>$A$8,"",OFFSET(InputPriceData!B$15,$A77+$A$11,0,1,1)) -> 2019-10-14 | C77: =IF(A77>$A$8,"",OFFSET(InputPriceData!G$15,CalculationsAndCharts!$A77+$A$11,IF($C$5,8,0),1,1)) -> 40394800 | D77: =IF(A77>$A$8,"",OFFSET(InputPriceData!C$15,CalculationsAndCharts!$A77+$A$11,IF($C$5,8,0),1,1)) -> 295.93 | E77: =IF(A77>$A$8,"",OFFSET(InputPriceData!D$15,CalculationsAndCharts!$A77+$A$11,IF($C$5,8,0),1,1)) -> 296.67 | F77: =IF(A77>$A$8,"",OFFSET(InputPriceData!E$15,CalculationsAndCharts!$A77+$A$11,IF($C$5,8,0),1,1)) -> 295.57 | G77: =IF(A77>$A$8,"",OFFSET(InputPriceData!F$15,CalculationsAndCharts!$A77+$A$11,IF($C$5,8,0),1,1)) -> 295.95 | H77: 293.5238103 | I77: 0.2884634436 | J77: 0.7606219934 | K77: 8.220933268 | L77: 0.2652823264 | M77: -2.268244165 | N77: 27.51396246 | O77: -0.4324274275 | AP77: 40394800
A78: 46 | B78: =IF(A78>$A$8,"",OFFSET(InputPriceData!B$15,$A78+$A$11,0,1,1)) -> 2019-10-11 | C78: =IF(A78>$A$8,"",OFFSET(InputPriceData!G$15,CalculationsAndCharts!$A78+$A$11,IF($C$5,8,0),1,1)) -> 98720400 | D78: =IF(A78>$A$8,"",OFFSET(InputPriceData!C$15,CalculationsAndCharts!$A78+$A$11,IF($C$5,8,0),1,1)) -> 296.27 | E78: =IF(A78>$A$8,"",OFFSET(InputPriceData!D$15,CalculationsAndCharts!$A78+$A$11,IF($C$5,8,0),1,1)) -> 298.74 | F78: =IF(A78>$A$8,"",OFFSET(InputPriceData!E$15,CalculationsAndCharts!$A78+$A$11,IF($C$5,8,0),1,1)) -> 296.14 | G78: =IF(A78>$A$8,"",OFFSET(InputPriceData!F$15,CalculationsAndCharts!$A78+$A$11,IF($C$5,8,0),1,1)) -> 296.28 | H78: 292.1329391 | I78: 0.3352754935 | J78: -0.4739981627 | K78: 8.539366078 | L78: -0.1622048525 | M78: -3.994390845 | N78: 28.44600541 | O78: -0.7489277339 | AP78: 98720400
A79: 47 | B79: =IF(A79>$A$8,"",OFFSET(InputPriceData!B$15,$A79+$A$11,0,1,1)) -> 2019-10-10 | C79: =IF(A79>$A$8,"",OFFSET(InputPriceData!G$15,CalculationsAndCharts!$A79+$A$11,IF($C$5,8,0),1,1)) -> 55296300 | D79: =IF(A79>$A$8,"",OFFSET(InputPriceData!C$15,CalculationsAndCharts!$A79+$A$11,IF($C$5,8,0),1,1)) -> 291.18 | E79: =IF(A79>$A$8,"",OFFSET(InputPriceData!D$15,CalculationsAndCharts!$A79+$A$11,IF($C$5,8,0),1,1)) -> 294.21 | F79: =IF(A79>$A$8,"",OFFSET(InputPriceData!E$15,CalculationsAndCharts!$A79+$A$11,IF($C$5,8,0),1,1)) -> 291 | G79: =IF(A79>$A$8,"",OFFSET(InputPriceData!F$15,CalculationsAndCharts!$A79+$A$11,IF($C$5,8,0),1,1)) -> 293.24 | H79: 291.2020497 | I79: 0.3390626969 | J79: -1.704184669 | K79: 8.88581157 | L79: -0.5716998843 | M79: -5.264342986 | N79: 28.96645738 | O79: -0.9781297878 | AP79: 55296300
A80: 48 | B80: =IF(A80>$A$8,"",OFFSET(InputPriceData!B$15,$A80+$A$11,0,1,1)) -> 2019-10-09 | C80: =IF(A80>$A$8,"",OFFSET(InputPriceData!G$15,CalculationsAndCharts!$A80+$A$11,IF($C$5,8,0),1,1)) -> 62359400 | D80: =IF(A80>$A$8,"",OFFSET(InputPriceData!C$15,CalculationsAndCharts!$A80+$A$11,IF($C$5,8,0),1,1)) -> 290.75 | E80: =IF(A80>$A$8,"",OFFSET(InputPriceData!D$15,CalculationsAndCharts!$A80+$A$11,IF($C$5,8,0),1,1)) -> 292.3 | F80: =IF(A80>$A$8,"",OFFSET(InputPriceData!E$15,CalculationsAndCharts!$A80+$A$11,IF($C$5,8,0),1,1)) -> 290.06 | G80: =IF(A80>$A$8,"",OFFSET(InputPriceData!F$15,CalculationsAndCharts!$A80+$A$11,IF($C$5,8,0),1,1)) -> 291.27 | H80: 291.1285099 | I80: 0.2949949789 | J80: -2.535430474 | K80: 9.135043495 | L80: -0.8388733473 | M80: -5.632877753 | N80: 29.01867197 | O80: -1.045662563 | AP80: 62359400
A81: 49 | B81: =IF(A81>$A$8,"",OFFSET(InputPriceData!B$15,$A81+$A$11,0,1,1)) -> 2019-10-08 | C81: =IF(A81>$A$8,"",OFFSET(InputPriceData!G$15,CalculationsAndCharts!$A81+$A$11,IF($C$5,8,0),1,1)) -> 95708100 | D81: =IF(A81>$A$8,"",OFFSET(InputPriceData!C$15,CalculationsAndCharts!$A81+$A$11,IF($C$5,8,0),1,1)) -> 291.04 | E81: =IF(A81>$A$8,"",OFFSET(InputPriceData!D$15,CalculationsAndCharts!$A81+$A$11,IF($C$5,8,0),1,1)) -> 291.85 | F81: =IF(A81>$A$8,"",OFFSET(InputPriceData!E$15,CalculationsAndCharts!$A81+$A$11,IF($C$5,8,0),1,1)) -> 288.49 | G81: =IF(A81>$A$8,"",OFFSET(InputPriceData!F$15,CalculationsAndCharts!$A81+$A$11,IF($C$5,8,0),1,1)) -> 288.53 | H81: 291.6430169 | I81: 0.2258590044 | J81: -2.972710178 | K81: 9.247819987 | L81: -0.9775362839 | M81: -5.344229725 | N81: 28.90572865 | O81: -0.9940155023 | AQ81: 95708100
A82: 50 | B82: =IF(A82>$A$8,"",OFFSET(InputPriceData!B$15,$A82+$A$11,0,1,1)) -> 2019-10-07 | C82: =IF(A82>$A$8,"",OFFSET(InputPriceData!G$15,CalculationsAndCharts!$A82+$A$11,IF($C$5,8,0),1,1)) -> 59610500 | D82: =IF(A82>$A$8,"",OFFSET(InputPriceData!C$15,CalculationsAndCharts!$A82+$A$11,IF($C$5,8,0),1,1)) -> 293.47 | E82: =IF(A82>$A$8,"",OFFSET(InputPriceData!D$15,CalculationsAndCharts!$A82+$A$11,IF($C$5,8,0),1,1)) -> 295.26 | F82: =IF(A82>$A$8,"",OFFSET(InputPriceData!E$15,CalculationsAndCharts!$A82+$A$11,IF($C$5,8,0),1,1)) -> 292.77 | G82: =IF(A82>$A$8,"",OFFSET(InputPriceData!F$15,CalculationsAndCharts!$A82+$A$11,IF($C$5,8,0),1,1)) -> 293.08 | H82: 291.8212047 | I82: 0.1623267237 | J82: -3.623938038 | K82: 9.264937244 | L82: -1.190582576 | M82: -5.328368637 | N82: 28.92010104 | O82: -0.9908190783 | AP82: =IF(G82>=D82,C82,NA()) ->  | AQ82: =IF(G82<D82,C82,NA()) -> 59610500
A83: 51 | B83: =IF(A83>$A$8,"",OFFSET(InputPriceData!B$15,$A83+$A$11,0,1,1)) -> 2019-10-04 | C83: =IF(A83>$A$8,"",OFFSET(InputPriceData!G$15,CalculationsAndCharts!$A83+$A$11,IF($C$5,8,0),1,1)) -> 65091200 | D83: =IF(A83>$A$8,"",OFFSET(InputPriceData!C$15,CalculationsAndCharts!$A83+$A$11,IF($C$5,8,0),1,1)) -> 291.14 | E83: =IF(A83>$A$8,"",OFFSET(InputPriceData!D$15,CalculationsAndCharts!$A83+$A$11,IF($C$5,8,0),1,1)) -> 294.63 | F83: =IF(A83>$A$8,"",OFFSET(InputPriceData!E$15,CalculationsAndCharts!$A83+$A$11,IF($C$5,8,0),1,1)) -> 291.08 | G83: =IF(A83>$A$8,"",OFFSET(InputPriceData!F$15,CalculationsAndCharts!$A83+$A$11,IF($C$5,8,0),1,1)) -> 294.35 | H83: 291.6290086 | I83: 0.0922825469 | J83: -4.643880583 | K83: 9.103771009 | L83: -1.539112555 | M83: -5.612847326 | N83: 28.94212557 | O83: -1.043321165 | AP83: 65091200
A84: 52 | B84: =IF(A84>$A$8,"",OFFSET(InputPriceData!B$15,$A84+$A$11,0,1,1)) -> 2019-10-03 | C84: =IF(A84>$A$8,"",OFFSET(InputPriceData!G$15,CalculationsAndCharts!$A84+$A$11,IF($C$5,8,0),1,1)) -> 85278800 | D84: =IF(A84>$A$8,"",OFFSET(InputPriceData!C$15,CalculationsAndCharts!$A84+$A$11,IF($C$5,8,0),1,1)) -> 287.81 | E84: =IF(A84>$A$8,"",OFFSET(InputPriceData!D$15,CalculationsAndCharts!$A84+$A$11,IF($C$5,8,0),1,1)) -> 290.45 | F84: =IF(A84>$A$8,"",OFFSET(InputPriceData!E$15,CalculationsAndCharts!$A84+$A$11,IF($C$5,8,0),1,1)) -> 284.82 | G84: =IF(A84>$A$8,"",OFFSET(InputPriceData!F$15,CalculationsAndCharts!$A84+$A$11,IF($C$5,8,0),1,1)) -> 290.42 | H84: 292.4455544 | I84: -0.04126505925 | J84: -5.188319602 | K84: 8.584527014 | L84: -1.770796011 | M84: -4.75503648 | N84: 28.8353785 | O84: -0.8855050145 | AP84: 85278800
A85: 53 | B85: =IF(A85>$A$8,"",OFFSET(InputPriceData!B$15,$A85+$A$11,0,1,1)) -> 2019-10-02 | C85: =IF(A85>$A$8,"",OFFSET(InputPriceData!G$15,CalculationsAndCharts!$A85+$A$11,IF($C$5,8,0),1,1)) -> 122539500 | D85: =IF(A85>$A$8,"",OFFSET(InputPriceData!C$15,CalculationsAndCharts!$A85+$A$11,IF($C$5,8,0),1,1)) -> 291.5 | E85: =IF(A85>$A$8,"",OFFSET(InputPriceData!D$15,CalculationsAndCharts!$A85+$A$11,IF($C$5,8,0),1,1)) -> 291.51 | F85: =IF(A85>$A$8,"",OFFSET(InputPriceData!E$15,CalculationsAndCharts!$A85+$A$11,IF($C$5,8,0),1,1)) -> 286.64 | G85: =IF(A85>$A$8,"",OFFSET(InputPriceData!F$15,CalculationsAndCharts!$A85+$A$11,IF($C$5,8,0),1,1)) -> 288.06 | H85: 294.3935859 | I85: -0.2119370417 | J85: -4.820406901 | K85: 7.820604795 | L85: -1.723707335 | M85: -2.595067963 | N85: 29.09475378 | O85: -0.4811066868 | AQ85: 122539500
A86: 54 | B86: =IF(A86>$A$8,"",OFFSET(InputPriceData!B$15,$A86+$A$11,0,1,1)) -> 2019-10-01 | C86: =IF(A86>$A$8,"",OFFSET(InputPriceData!G$15,CalculationsAndCharts!$A86+$A$11,IF($C$5,8,0),1,1)) -> 88242400 | D86: =IF(A86>$A$8,"",OFFSET(InputPriceData!C$15,CalculationsAndCharts!$A86+$A$11,IF($C$5,8,0),1,1)) -> 297.74 | E86: =IF(A86>$A$8,"",OFFSET(InputPriceData!D$15,CalculationsAndCharts!$A86+$A$11,IF($C$5,8,0),1,1)) -> 298.46 | F86: =IF(A86>$A$8,"",OFFSET(InputPriceData!E$15,CalculationsAndCharts!$A86+$A$11,IF($C$5,8,0),1,1)) -> 293 | G86: =IF(A86>$A$8,"",OFFSET(InputPriceData!F$15,CalculationsAndCharts!$A86+$A$11,IF($C$5,8,0),1,1)) -> 293.24 | H86: 295.9580969 | I86: -0.3324407432 | J86: -4.188743985 | K86: 7.178283216 | L86: -1.563412293 | M86: -0.6981161814 | N86: 30.02643611 | O86: -0.1274018723 | AQ86: 88242400
A87: 55 | B87: =IF(A87>$A$8,"",OFFSET(InputPriceData!B$15,$A87+$A$11,0,1,1)) -> 2019-09-30 | C87: =IF(A87>$A$8,"",OFFSET(InputPriceData!G$15,CalculationsAndCharts!$A87+$A$11,IF($C$5,8,0),1,1)) -> 51662400 | D87: =IF(A87>$A$8,"",OFFSET(InputPriceData!C$15,CalculationsAndCharts!$A87+$A$11,IF($C$5,8,0),1,1)) -> 295.97 | E87: =IF(A87>$A$8,"",OFFSET(InputPriceData!D$15,CalculationsAndCharts!$A87+$A$11,IF($C$5,8,0),1,1)) -> 297.55 | F87: =IF(A87>$A$8,"",OFFSET(InputPriceData!E$15,CalculationsAndCharts!$A87+$A$11,IF($C$5,8,0),1,1)) -> 295.92 | G87: =IF(A87>$A$8,"",OFFSET(InputPriceData!F$15,CalculationsAndCharts!$A87+$A$11,IF($C$5,8,0),1,1)) -> 296.77 | H87: 296.4950445 | I87: -0.4086675956 | J87: -4.043510785 | K87: 6.746312676 | L87: -1.556773294 | M87: 0.2474989689 | N87: 31.25723069 | O87: 0.0442688403 | AP87: 51662400
A88: 56 | B88: =IF(A88>$A$8,"",OFFSET(InputPriceData!B$15,$A88+$A$11,0,1,1)) -> 2019-09-27 | C88: =IF(A88>$A$8,"",OFFSET(InputPriceData!G$15,CalculationsAndCharts!$A88+$A$11,IF($C$5,8,0),1,1)) -> 84746600 | D88: =IF(A88>$A$8,"",OFFSET(InputPriceData!C$15,CalculationsAndCharts!$A88+$A$11,IF($C$5,8,0),1,1)) -> 297.83 | E88: =IF(A88>$A$8,"",OFFSET(InputPriceData!D$15,CalculationsAndCharts!$A88+$A$11,IF($C$5,8,0),1,1)) -> 297.95 | F88: =IF(A88>$A$8,"",OFFSET(InputPriceData!E$15,CalculationsAndCharts!$A88+$A$11,IF($C$5,8,0),1,1)) -> 293.69 | G88: =IF(A88>$A$8,"",OFFSET(InputPriceData!F$15,CalculationsAndCharts!$A88+$A$11,IF($C$5,8,0),1,1)) -> 295.4 | H88: 296.8834867 | I88: -0.4886545155 | J88: -4.006276677 | K88: 6.346159893 | L88: -1.590323343 | M88: 1.124595736 | N88: 32.55706298 | O88: 0.1970941903 | AQ88: 84746600
A89: 57 | B89: =IF(A89>$A$8,"",OFFSET(InputPriceData!B$15,$A89+$A$11,0,1,1)) -> 2019-09-26 | C89: =IF(A89>$A$8,"",OFFSET(InputPriceData!G$15,CalculationsAndCharts!$A89+$A$11,IF($C$5,8,0),1,1)) -> 56179700 | D89: =IF(A89>$A$8,"",OFFSET(InputPriceData!C$15,CalculationsAndCharts!$A89+$A$11,IF($C$5,8,0),1,1)) -> 297.63 | E89: =IF(A89>$A$8,"",OFFSET(InputPriceData!D$15,CalculationsAndCharts!$A89+$A$11,IF($C$5,8,0),1,1)) -> 297.86 | F89: =IF(A89>$A$8,"",OFFSET(InputPriceData!E$15,CalculationsAndCharts!$A89+$A$11,IF($C$5,8,0),1,1)) -> 295.45 | G89: =IF(A89>$A$8,"",OFFSET(InputPriceData!F$15,CalculationsAndCharts!$A89+$A$11,IF($C$5,8,0),1,1)) -> 297 | H89: 297.3364868 | I89: -0.5334785181 | J89: -3.490450086 | K89: 5.941822688 | L89: -1.431929341 | M89: 2.111074354 | N89: 33.86091079 | O89: 0.3627890848 | AQ89: 56179700
A90: 58 | B90: =IF(A90>$A$8,"",OFFSET(InputPriceData!B$15,$A90+$A$11,0,1,1)) -> 2019-09-25 | C90: =IF(A90>$A$8,"",OFFSET(InputPriceData!G$15,CalculationsAndCharts!$A90+$A$11,IF($C$5,8,0),1,1)) -> 71854000 | D90: =IF(A90>$A$8,"",OFFSET(InputPriceData!C$15,CalculationsAndCharts!$A90+$A$11,IF($C$5,8,0),1,1)) -> 295.96 | E90: =IF(A90>$A$8,"",OFFSET(InputPriceData!D$15,CalculationsAndCharts!$A90+$A$11,IF($C$5,8,0),1,1)) -> 298.11 | F90: =IF(A90>$A$8,"",OFFSET(InputPriceData!E$15,CalculationsAndCharts!$A90+$A$11,IF($C$5,8,0),1,1)) -> 294.33 | G90: =IF(A90>$A$8,"",OFFSET(InputPriceData!F$15,CalculationsAndCharts!$A90+$A$11,IF($C$5,8,0),1,1)) -> 297.62 | H90: 297.7384241 | I90: -0.5233830104 | J90: -2.459126922 | K90: 5.681763558 | L90: -1.031666589 | M90: 3.036394687 | N90: 35.08608895 | O90: 0.5126143303 | AP90: 71854000
A91: 59 | B91: =IF(A91>$A$8,"",OFFSET(InputPriceData!B$15,$A91+$A$11,0,1,1)) -> 2019-09-24 | C91: =IF(A91>$A$8,"",OFFSET(InputPriceData!G$15,CalculationsAndCharts!$A91+$A$11,IF($C$5,8,0),1,1)) -> 94869400 | D91: =IF(A91>$A$8,"",OFFSET(InputPriceData!C$15,CalculationsAndCharts!$A91+$A$11,IF($C$5,8,0),1,1)) -> 299.41 | E91: =IF(A91>$A$8,"",OFFSET(InputPriceData!D$15,CalculationsAndCharts!$A91+$A$11,IF($C$5,8,0),1,1)) -> 299.84 | F91: =IF(A91>$A$8,"",OFFSET(InputPriceData!E$15,CalculationsAndCharts!$A91+$A$11,IF($C$5,8,0),1,1)) -> 294.81 | G91: =IF(A91>$A$8,"",OFFSET(InputPriceData!F$15,CalculationsAndCharts!$A91+$A$11,IF($C$5,8,0),1,1)) -> 295.87 | H91: 298.4519933 | I91: -0.5076796796 | J91: -1.072993131 | K91: 5.666532656 | L91: -0.4507526033 | M91: 4.257643505 | N91: 36.16385546 | O91: 0.7079978397 | AQ91: 94869400
A92: 60 | B92: =IF(A92>$A$8,"",OFFSET(InputPriceData!B$15,$A92+$A$11,0,1,1)) -> 2019-09-23 | C92: =IF(A92>$A$8,"",OFFSET(InputPriceData!G$15,CalculationsAndCharts!$A92+$A$11,IF($C$5,8,0),1,1)) -> 43476800 | D92: =IF(A92>$A$8,"",OFFSET(InputPriceData!C$15,CalculationsAndCharts!$A92+$A$11,IF($C$5,8,0),1,1)) -> 297.55 | E92: =IF(A92>$A$8,"",OFFSET(InputPriceData!D$15,CalculationsAndCharts!$A92+$A$11,IF($C$5,8,0),1,1)) -> 299 | F92: =IF(A92>$A$8,"",OFFSET(InputPriceData!E$15,CalculationsAndCharts!$A92+$A$11,IF($C$5,8,0),1,1)) -> 297.27 | G92: =IF(A92>$A$8,"",OFFSET(InputPriceData!F$15,CalculationsAndCharts!$A92+$A$11,IF($C$5,8,0),1,1)) -> 298.21 | H92: 299.1363397 | I92: -0.4841599531 | J92: 0.3424704012 | K92: 5.854666756 | L92: 0.1415376408 | M92: 5.426149909 | N92: 36.9153691 | O92: 0.8930755102 | AP92: 43476800
A93: 61 | B93: =IF(A93>$A$8,"",OFFSET(InputPriceData!B$15,$A93+$A$11,0,1,1)) -> 2019-09-20 | C93: =IF(A93>$A$8,"",OFFSET(InputPriceData!G$15,CalculationsAndCharts!$A93+$A$11,IF($C$5,8,0),1,1)) -> 89565000 | D93: =IF(A93>$A$8,"",OFFSET(InputPriceData!C$15,CalculationsAndCharts!$A93+$A$11,IF($C$5,8,0),1,1)) -> 300.36 | E93: =IF(A93>$A$8,"",OFFSET(InputPriceData!D$15,CalculationsAndCharts!$A93+$A$11,IF($C$5,8,0),1,1)) -> 300.67 | F93: =IF(A93>$A$8,"",OFFSET(InputPriceData!E$15,CalculationsAndCharts!$A93+$A$11,IF($C$5,8,0),1,1)) -> 297.41 | G93: =IF(A93>$A$8,"",OFFSET(InputPriceData!F$15,CalculationsAndCharts!$A93+$A$11,IF($C$5,8,0),1,1)) -> 298.28 | H93: 299.5100095 | I93: -0.4961160788 | J93: 1.086716982 | K93: 6.093724288 | L93: 0.4402253563 | M93: 6.295935809 | N93: 37.22671352 | O93: 1.031888905 | AQ93: 89565000
A94: 62 | B94: =IF(A94>$A$8,"",OFFSET(InputPriceData!B$15,$A94+$A$11,0,1,1)) -> 2019-09-19 | C94: =IF(A94>$A$8,"",OFFSET(InputPriceData!G$15,CalculationsAndCharts!$A94+$A$11,IF($C$5,8,0),1,1)) -> 76560500 | D94: =IF(A94>$A$8,"",OFFSET(InputPriceData!C$15,CalculationsAndCharts!$A94+$A$11,IF($C$5,8,0),1,1)) -> 300.14 | E94: =IF(A94>$A$8,"",OFFSET(InputPriceData!D$15,CalculationsAndCharts!$A94+$A$11,IF($C$5,8,0),1,1)) -> 301.24 | F94: =IF(A94>$A$8,"",OFFSET(InputPriceData!E$15,CalculationsAndCharts!$A94+$A$11,IF($C$5,8,0),1,1)) -> 299.33 | G94: =IF(A94>$A$8,"",OFFSET(InputPriceData!F$15,CalculationsAndCharts!$A94+$A$11,IF($C$5,8,0),1,1)) -> 299.7 | H94: 299.6399677 | I94: -0.5572717149 | J94: 1.13181266 | K94: 6.298423058 | L94: 0.4509814028 | M94: 6.983165666 | N94: 37.1262096 | O94: 1.146072361 | AQ94: 76560500
A95: 63 | B95: =IF(A95>$A$8,"",OFFSET(InputPriceData!B$15,$A95+$A$11,0,1,1)) -> 2019-09-18 | C95: =IF(A95>$A$8,"",OFFSET(InputPriceData!G$15,CalculationsAndCharts!$A95+$A$11,IF($C$5,8,0),1,1)) -> 73375800 | D95: =IF(A95>$A$8,"",OFFSET(InputPriceData!C$15,CalculationsAndCharts!$A95+$A$11,IF($C$5,8,0),1,1)) -> 299.11 | E95: =IF(A95>$A$8,"",OFFSET(InputPriceData!D$15,CalculationsAndCharts!$A95+$A$11,IF($C$5,8,0),1,1)) -> 299.84 | F95: =IF(A95>$A$8,"",OFFSET(InputPriceData!E$15,CalculationsAndCharts!$A95+$A$11,IF($C$5,8,0),1,1)) -> 296.87 | G95: =IF(A95>$A$8,"",OFFSET(InputPriceData!F$15,CalculationsAndCharts!$A95+$A$11,IF($C$5,8,0),1,1)) -> 299.72 | H95: 299.5559123 | I95: -0.6068597514 | J95: 1.133942668 | K95: 6.507482357 | L95: 0.4445131342 | M95: 7.505970059 | N95: 36.64127655 | O95: 1.239999556 | AP95: 73375800
A96: 64 | B96: =IF(A96>$A$8,"",OFFSET(InputPriceData!B$15,$A96+$A$11,0,1,1)) -> 2019-09-17 | C96: =IF(A96>$A$8,"",OFFSET(InputPriceData!G$15,CalculationsAndCharts!$A96+$A$11,IF($C$5,8,0),1,1)) -> 41475500 | D96: =IF(A96>$A$8,"",OFFSET(InputPriceData!C$15,CalculationsAndCharts!$A96+$A$11,IF($C$5,8,0),1,1)) -> 298.56 | E96: =IF(A96>$A$8,"",OFFSET(InputPriceData!D$15,CalculationsAndCharts!$A96+$A$11,IF($C$5,8,0),1,1)) -> 299.64 | F96: =IF(A96>$A$8,"",OFFSET(InputPriceData!E$15,CalculationsAndCharts!$A96+$A$11,IF($C$5,8,0),1,1)) -> 298.37 | G96: =IF(A96>$A$8,"",OFFSET(InputPriceData!F$15,CalculationsAndCharts!$A96+$A$11,IF($C$5,8,0),1,1)) -> 299.54 | H96: 299.4463797 | I96: -0.6547335314 | J96: 1.176468863 | K96: 6.725051373 | L96: 0.4536622416 | M96: 8.051170943 | N96: 35.82051364 | O96: 1.345219466 | AP96: 41475500
A97: 65 | B97: =IF(A97>$A$8,"",OFFSET(InputPriceData!B$15,$A97+$A$11,0,1,1)) -> 2019-09-16 | C97: =IF(A97>$A$8,"",OFFSET(InputPriceData!G$15,CalculationsAndCharts!$A97+$A$11,IF($C$5,8,0),1,1)) -> 58191200 | D97: =IF(A97>$A$8,"",OFFSET(InputPriceData!C$15,CalculationsAndCharts!$A97+$A$11,IF($C$5,8,0),1,1)) -> 298.46 | E97: =IF(A97>$A$8,"",OFFSET(InputPriceData!D$15,CalculationsAndCharts!$A97+$A$11,IF($C$5,8,0),1,1)) -> 299.76 | F97: =IF(A97>$A$8,"",OFFSET(InputPriceData!E$15,CalculationsAndCharts!$A97+$A$11,IF($C$5,8,0),1,1)) -> 298.07 | G97: =IF(A97>$A$8,"",OFFSET(InputPriceData!F$15,CalculationsAndCharts!$A97+$A$11,IF($C$5,8,0),1,1)) -> 298.78 | H97: =IF(A97>LogicallyAvailableRows-1,0,$D$20*(G97+G98)/2+$D$21*H98+$D$22*H99) -> 299.2930792 | I97: -0.6683596174 | J97: =($A$16*$H97+$B$23*I97-SUM(OFFSET($H97,1,0,$A$16,1)))/$A$16 -> 1.548454091 | K97: 6.947591889 | L97: =IF(A97>LogicallyAvailableRows-1,0,J97/SQRT(K97)) -> 0.5874639 | M97: =($A$16*$H97-SUM(OFFSET($H97,1,0,$A$16,1)))/$A$16 -> 8.566230074 | N97: 34.61214531 | O97: =IF(A97>LogicallyAvailableRows-1,0,M97/SQRT(N97)) -> 1.456047273 | AP97: 58191200
A98: 66 | B98: =IF(A98>$A$8,"",OFFSET(InputPriceData!B$15,$A98+$A$11,0,1,1)) -> 2019-09-13 | C98: =IF(A98>$A$8,"",OFFSET(InputPriceData!G$15,CalculationsAndCharts!$A98+$A$11,IF($C$5,8,0),1,1)) -> 62104800 | D98: =IF(A98>$A$8,"",OFFSET(InputPriceData!C$15,CalculationsAndCharts!$A98+$A$11,IF($C$5,8,0),1,1)) -> 300.39 | E98: =IF(A98>$A$8,"",OFFSET(InputPriceData!D$15,CalculationsAndCharts!$A98+$A$11,IF($C$5,8,0),1,1)) -> 300.78 | F98: =IF(A98>$A$8,"",OFFSET(InputPriceData!E$15,CalculationsAndCharts!$A98+$A$11,IF($C$5,8,0),1,1)) -> 299.3 | G98: =IF(A98>$A$8,"",OFFSET(InputPriceData!F$15,CalculationsAndCharts!$A98+$A$11,IF($C$5,8,0),1,1)) -> 299.71 | H98: 298.838449 | I98: =(OFFSET(H98,$A$16,0,1,1)-H98)/$A$16 -> -0.5949475789 | J98: 2.459597886 | K98: =0.04*$J98*$J98+0.96*K99 -> 7.137170298 | L98: 0.9206638298 | M98: 8.706547464 | N98: =0.04*$M98*$M98+0.96*N99 -> 32.99680563 | O98: 1.515688735 | P98: =IF(AND($R$4=1,$L98>=0),$BB$34,NA()) ->  | Q98: =IF(AND($R$4=1,$L98<0),$BB$33,NA()) ->  | R98: =IF(AND($R$4=2,$O98>=0),$AX$34,NA()) ->  | S98: =IF(AND($R$4=2,$O98<0),$AX$33,NA()) ->  | T98: =IF(OR(AND($R$4=1,$L98>=0),AND($R$4=2,$O98>=0)),$AZ$34,NA()) ->  | U98: =IF(OR(AND($R$4=1,$L98<0),AND($R$4=2,$O98<0)),$AZ$34,NA()) ->  | AQ98: 62104800
A99: 67 | B99: =IF(A99>$A$8,"",OFFSET(InputPriceData!B$15,$A99+$A$11,0,1,1)) -> 2019-09-12 | C99: =IF(A99>$A$8,"",OFFSET(InputPriceData!G$15,CalculationsAndCharts!$A99+$A$11,IF($C$5,8,0),1,1)) -> 72908700 | D99: =IF(A99>$A$8,"",OFFSET(InputPriceData!C$15,CalculationsAndCharts!$A99+$A$11,IF($C$5,8,0),1,1)) -> 299.87 | E99: =IF(A99>$A$8,"",OFFSET(InputPriceData!D$15,CalculationsAndCharts!$A99+$A$11,IF($C$5,8,0),1,1)) -> 301.07 | F99: =IF(A99>$A$8,"",OFFSET(InputPriceData!E$15,CalculationsAndCharts!$A99+$A$11,IF($C$5,8,0),1,1)) -> 299.03 | G99: =IF(A99>$A$8,"",OFFSET(InputPriceData!F$15,CalculationsAndCharts!$A99+$A$11,IF($C$5,8,0),1,1)) -> 299.91 | H99: 297.9833036 | I99: -0.4754203358 | J99: 3.334908897 | K99: 7.18248482 | L99: 1.244361644 | M99: 8.326822422 | N99: 31.21317383 | O99: 1.490425723 | AP99: 72908700
A100: 68 | B100: =IF(A100>$A$8,"",OFFSET(InputPriceData!B$15,$A100+$A$11,0,1,1)) -> 2019-09-11 | C100: =IF(A100>$A$8,"",OFFSET(InputPriceData!G$15,CalculationsAndCharts!$A100+$A$11,IF($C$5,8,0),1,1)) -> 68821100 | D100: =IF(A100>$A$8,"",OFFSET(InputPriceData!C$15,CalculationsAndCharts!$A100+$A$11,IF($C$5,8,0),1,1)) -> 297.1 | E100: =IF(A100>$A$8,"",OFFSET(InputPriceData!D$15,CalculationsAndCharts!$A100+$A$11,IF($C$5,8,0),1,1)) -> 298.96 | F100: =IF(A100>$A$8,"",OFFSET(InputPriceData!E$15,CalculationsAndCharts!$A100+$A$11,IF($C$5,8,0),1,1)) -> 296.38 | G100: =IF(A100>$A$8,"",OFFSET(InputPriceData!F$15,CalculationsAndCharts!$A100+$A$11,IF($C$5,8,0),1,1)) -> 298.87 | H100: 297.0284095 | I100: -0.4105772249 | J100: 3.471444639 | K100: 7.018354298 | L100: 1.310365951 | M100: 7.7825055 | N100: 29.62472392 | O100: 1.429855929 | AP100: 68821100
A101: 69 | B101: =IF(A101>$A$8,"",OFFSET(InputPriceData!B$15,$A101+$A$11,0,1,1)) -> 2019-09-10 | C101: =IF(A101>$A$8,"",OFFSET(InputPriceData!G$15,CalculationsAndCharts!$A101+$A$11,IF($C$5,8,0),1,1)) -> 57947100 | D101: =IF(A101>$A$8,"",OFFSET(InputPriceData!C$15,CalculationsAndCharts!$A101+$A$11,IF($C$5,8,0),1,1)) -> 295.99 | E101: =IF(A101>$A$8,"",OFFSET(InputPriceData!D$15,CalculationsAndCharts!$A101+$A$11,IF($C$5,8,0),1,1)) -> 296.83 | F101: =IF(A101>$A$8,"",OFFSET(InputPriceData!E$15,CalculationsAndCharts!$A101+$A$11,IF($C$5,8,0),1,1)) -> 294.61 | G101: =IF(A101>$A$8,"",OFFSET(InputPriceData!F$15,CalculationsAndCharts!$A101+$A$11,IF($C$5,8,0),1,1)) -> 296.76 | H101: 296.160197 | I101: -0.38458206 | J101: 3.260763473 | K101: 6.808663732 | L101: 1.249649888 | M101: 7.298875103 | N101: 28.33544609 | O101: 1.371168745 | AP101: 57947100
A102: 70 | B102: =IF(A102>$A$8,"",OFFSET(InputPriceData!B$15,$A102+$A$11,0,1,1)) -> 2019-09-09 | C102: =IF(A102>$A$8,"",OFFSET(InputPriceData!G$15,CalculationsAndCharts!$A102+$A$11,IF($C$5,8,0),1,1)) -> 51260300 | D102: =IF(A102>$A$8,"",OFFSET(InputPriceData!C$15,CalculationsAndCharts!$A102+$A$11,IF($C$5,8,0),1,1)) -> 297.76 | E102: =IF(A102>$A$8,"",OFFSET(InputPriceData!D$15,CalculationsAndCharts!$A102+$A$11,IF($C$5,8,0),1,1)) -> 297.86 | F102: =IF(A102>$A$8,"",OFFSET(InputPriceData!E$15,CalculationsAndCharts!$A102+$A$11,IF($C$5,8,0),1,1)) -> 295.79 | G102: =IF(A102>$A$8,"",OFFSET(InputPriceData!F$15,CalculationsAndCharts!$A102+$A$11,IF($C$5,8,0),1,1)) -> 296.83 | H102: 295.0677392 | I102: -0.3565634454 | J102: 2.819064569 | K102: 6.649333953 | L102: 1.0932411 | M102: 6.562980746 | N102: 27.29635727 | O102: 1.256171058 | AQ102: 51260300
A103: 71 | B103: =IF(A103>$A$8,"",OFFSET(InputPriceData!B$15,$A103+$A$11,0,1,1)) -> 2019-09-06 | C103: =IF(A103>$A$8,"",OFFSET(InputPriceData!G$15,CalculationsAndCharts!$A103+$A$11,IF($C$5,8,0),1,1)) -> 49584300 | D103: =IF(A103>$A$8,"",OFFSET(InputPriceData!C$15,CalculationsAndCharts!$A103+$A$11,IF($C$5,8,0),1,1)) -> 296.8 | E103: =IF(A103>$A$8,"",OFFSET(InputPriceData!D$15,CalculationsAndCharts!$A103+$A$11,IF($C$5,8,0),1,1)) -> 297.39 | F103: =IF(A103>$A$8,"",OFFSET(InputPriceData!E$15,CalculationsAndCharts!$A103+$A$11,IF($C$5,8,0),1,1)) -> 296.05 | G103: =IF(A103>$A$8,"",OFFSET(InputPriceData!F$15,CalculationsAndCharts!$A103+$A$11,IF($C$5,8,0),1,1)) -> 296.68 | H103: 293.4746595 | I103: -0.3237904578 | J103: 1.893891719 | K103: 6.595259325 | L103: 0.7374612527 | M103: 5.293691525 | N103: 26.63900898 | O103: 1.025650978 | AQ103: 49584300
A104: 72 | B104: =IF(A104>$A$8,"",OFFSET(InputPriceData!B$15,$A104+$A$11,0,1,1)) -> 2019-09-05 | C104: =IF(A104>$A$8,"",OFFSET(InputPriceData!G$15,CalculationsAndCharts!$A104+$A$11,IF($C$5,8,0),1,1)) -> 83258100 | D104: =IF(A104>$A$8,"",OFFSET(InputPriceData!C$15,CalculationsAndCharts!$A104+$A$11,IF($C$5,8,0),1,1)) -> 295.43 | E104: =IF(A104>$A$8,"",OFFSET(InputPriceData!D$15,CalculationsAndCharts!$A104+$A$11,IF($C$5,8,0),1,1)) -> 297.46 | F104: =IF(A104>$A$8,"",OFFSET(InputPriceData!E$15,CalculationsAndCharts!$A104+$A$11,IF($C$5,8,0),1,1)) -> 292.65 | G104: =IF(A104>$A$8,"",OFFSET(InputPriceData!F$15,CalculationsAndCharts!$A104+$A$11,IF($C$5,8,0),1,1)) -> 296.45 | H104: 291.6202532 | I104: -0.2134642629 | J104: 1.411374691 | K104: 6.72061072 | L104: 0.5444248689 | M104: 3.652749452 | N104: 26.5813356 | O104: 0.708486346 | AP104: 83258100
A105: 73 | B105: =IF(A105>$A$8,"",OFFSET(InputPriceData!B$15,$A105+$A$11,0,1,1)) -> 2019-09-04 | C105: =IF(A105>$A$8,"",OFFSET(InputPriceData!G$15,CalculationsAndCharts!$A105+$A$11,IF($C$5,8,0),1,1)) -> 46887300 | D105: =IF(A105>$A$8,"",OFFSET(InputPriceData!C$15,CalculationsAndCharts!$A105+$A$11,IF($C$5,8,0),1,1)) -> 291.79 | E105: =IF(A105>$A$8,"",OFFSET(InputPriceData!D$15,CalculationsAndCharts!$A105+$A$11,IF($C$5,8,0),1,1)) -> 292.71 | F105: =IF(A105>$A$8,"",OFFSET(InputPriceData!E$15,CalculationsAndCharts!$A105+$A$11,IF($C$5,8,0),1,1)) -> 290.97 | G105: =IF(A105>$A$8,"",OFFSET(InputPriceData!F$15,CalculationsAndCharts!$A105+$A$11,IF($C$5,8,0),1,1)) -> 292.69 | H105: 290.154845 | I105: -0.03248696282 | J105: 1.878715131 | K105: 6.917637061 | L105: 0.7143022972 | M105: 2.219828241 | N105: 27.13295048 | O105: 0.4261582115 | AP105: 46887300
A106: 74 | B106: =IF(A106>$A$8,"",OFFSET(InputPriceData!B$15,$A106+$A$11,0,1,1)) -> 2019-09-03 | C106: =IF(A106>$A$8,"",OFFSET(InputPriceData!G$15,CalculationsAndCharts!$A106+$A$11,IF($C$5,8,0),1,1)) -> 69101400 | D106: =IF(A106>$A$8,"",OFFSET(InputPriceData!C$15,CalculationsAndCharts!$A106+$A$11,IF($C$5,8,0),1,1)) -> 289.23 | E106: =IF(A106>$A$8,"",OFFSET(InputPriceData!D$15,CalculationsAndCharts!$A106+$A$11,IF($C$5,8,0),1,1)) -> 290.24 | F106: =IF(A106>$A$8,"",OFFSET(InputPriceData!E$15,CalculationsAndCharts!$A106+$A$11,IF($C$5,8,0),1,1)) -> 287.94 | G106: =IF(A106>$A$8,"",OFFSET(InputPriceData!F$15,CalculationsAndCharts!$A106+$A$11,IF($C$5,8,0),1,1)) -> 289.4 | H106: 289.309282 | I106: 0.1811876565 | J106: 3.095547986 | K106: 7.0588065 | L106: 1.16512334 | M106: 1.193077593 | N106: 28.05817186 | O106: 0.2252366213 | AP106: 69101400
A107: 75 | B107: =IF(A107>$A$8,"",OFFSET(InputPriceData!B$15,$A107+$A$11,0,1,1)) -> 2019-08-30 | C107: =IF(A107>$A$8,"",OFFSET(InputPriceData!G$15,CalculationsAndCharts!$A107+$A$11,IF($C$5,8,0),1,1)) -> 62901200 | D107: =IF(A107>$A$8,"",OFFSET(InputPriceData!C$15,CalculationsAndCharts!$A107+$A$11,IF($C$5,8,0),1,1)) -> 292.87 | E107: =IF(A107>$A$8,"",OFFSET(InputPriceData!D$15,CalculationsAndCharts!$A107+$A$11,IF($C$5,8,0),1,1)) -> 292.89 | F107: =IF(A107>$A$8,"",OFFSET(InputPriceData!E$15,CalculationsAndCharts!$A107+$A$11,IF($C$5,8,0),1,1)) -> 290.08 | G107: =IF(A107>$A$8,"",OFFSET(InputPriceData!F$15,CalculationsAndCharts!$A107+$A$11,IF($C$5,8,0),1,1)) -> 291.11 | H107: 288.3216925 | I107: 0.3877812587 | J107: 3.889410057 | K107: 6.953656048 | L107: 1.47494943 | M107: -0.1822931593 | N107: 29.1679526 | O107: -0.03375339013 | AQ107: 62901200
A108: 76 | B108: =IF(A108>$A$8,"",OFFSET(InputPriceData!B$15,$A108+$A$11,0,1,1)) -> 2019-08-29 | C108: =IF(A108>$A$8,"",OFFSET(InputPriceData!G$15,CalculationsAndCharts!$A108+$A$11,IF($C$5,8,0),1,1)) -> 57899400 | D108: =IF(A108>$A$8,"",OFFSET(InputPriceData!C$15,CalculationsAndCharts!$A108+$A$11,IF($C$5,8,0),1,1)) -> 290.38 | E108: =IF(A108>$A$8,"",OFFSET(InputPriceData!D$15,CalculationsAndCharts!$A108+$A$11,IF($C$5,8,0),1,1)) -> 291.81 | F108: =IF(A108>$A$8,"",OFFSET(InputPriceData!E$15,CalculationsAndCharts!$A108+$A$11,IF($C$5,8,0),1,1)) -> 289.27 | G108: =IF(A108>$A$8,"",OFFSET(InputPriceData!F$15,CalculationsAndCharts!$A108+$A$11,IF($C$5,8,0),1,1)) -> 291.24 | H108: 287.1103964 | I108: 0.5480205094 | J108: 3.812605533 | K108: 6.613078775 | L108: 1.482586447 | M108: -1.941609815 | N108: 30.38189934 | O108: -0.3522528362 | AP108: 57899400
A109: 77 | B109: =IF(A109>$A$8,"",OFFSET(InputPriceData!B$15,$A109+$A$11,0,1,1)) -> 2019-08-28 | C109: =IF(A109>$A$8,"",OFFSET(InputPriceData!G$15,CalculationsAndCharts!$A109+$A$11,IF($C$5,8,0),1,1)) -> 59696700 | D109: =IF(A109>$A$8,"",OFFSET(InputPriceData!C$15,CalculationsAndCharts!$A109+$A$11,IF($C$5,8,0),1,1)) -> 284.82 | E109: =IF(A109>$A$8,"",OFFSET(InputPriceData!D$15,CalculationsAndCharts!$A109+$A$11,IF($C$5,8,0),1,1)) -> 287.74 | F109: =IF(A109>$A$8,"",OFFSET(InputPriceData!E$15,CalculationsAndCharts!$A109+$A$11,IF($C$5,8,0),1,1)) -> 283.94 | G109: =IF(A109>$A$8,"",OFFSET(InputPriceData!F$15,CalculationsAndCharts!$A109+$A$11,IF($C$5,8,0),1,1)) -> 287.56 | H109: 286.6669164 | I109: 0.6372604754 | J109: 3.66888475 | K109: 6.282958685 | L109: 1.463699645 | M109: -3.022350242 | N109: 31.49073478 | O109: -0.5385839332 | AP109: 59696700
A110: 78 | B110: =IF(A110>$A$8,"",OFFSET(InputPriceData!B$15,$A110+$A$11,0,1,1)) -> 2019-08-27 | C110: =IF(A110>$A$8,"",OFFSET(InputPriceData!G$15,CalculationsAndCharts!$A110+$A$11,IF($C$5,8,0),1,1)) -> 66668900 | D110: =IF(A110>$A$8,"",OFFSET(InputPriceData!C$15,CalculationsAndCharts!$A110+$A$11,IF($C$5,8,0),1,1)) -> 288.21 | E110: =IF(A110>$A$8,"",OFFSET(InputPriceData!D$15,CalculationsAndCharts!$A110+$A$11,IF($C$5,8,0),1,1)) -> 288.62 | F110: =IF(A110>$A$8,"",OFFSET(InputPriceData!E$15,CalculationsAndCharts!$A110+$A$11,IF($C$5,8,0),1,1)) -> 284.72 | G110: =IF(A110>$A$8,"",OFFSET(InputPriceData!F$15,CalculationsAndCharts!$A110+$A$11,IF($C$5,8,0),1,1)) -> 285.55 | H110: 287.2707639 | I110: 0.6272765956 | J110: 3.540624892 | K110: 5.983885492 | L110: 1.447399043 | M110: -3.045779361 | N110: 32.42224036 | O110: -0.5349053345 | AQ110: 66668900
A111: 79 | B111: =IF(A111>$A$8,"",OFFSET(InputPriceData!B$15,$A111+$A$11,0,1,1)) -> 2019-08-26 | C111: =IF(A111>$A$8,"",OFFSET(InputPriceData!G$15,CalculationsAndCharts!$A111+$A$11,IF($C$5,8,0),1,1)) -> 72423800 | D111: =IF(A111>$A$8,"",OFFSET(InputPriceData!C$15,CalculationsAndCharts!$A111+$A$11,IF($C$5,8,0),1,1)) -> 285.95 | E111: =IF(A111>$A$8,"",OFFSET(InputPriceData!D$15,CalculationsAndCharts!$A111+$A$11,IF($C$5,8,0),1,1)) -> 286.68 | F111: =IF(A111>$A$8,"",OFFSET(InputPriceData!E$15,CalculationsAndCharts!$A111+$A$11,IF($C$5,8,0),1,1)) -> 284.27 | G111: =IF(A111>$A$8,"",OFFSET(InputPriceData!F$15,CalculationsAndCharts!$A111+$A$11,IF($C$5,8,0),1,1)) -> 286.68 | H111: 288.2983997 | I111: 0.5599039713 | J111: 3.30094412 | K111: 5.710879695 | L111: 1.381295722 | M111: -2.578047578 | N111: 33.38663487 | O111: -0.4461743548 | AP111: 72423800
A112: 80 | B112: =IF(A112>$A$8,"",OFFSET(InputPriceData!B$15,$A112+$A$11,0,1,1)) -> 2019-08-23 | C112: =IF(A112>$A$8,"",OFFSET(InputPriceData!G$15,CalculationsAndCharts!$A112+$A$11,IF($C$5,8,0),1,1)) -> 149161500 | D112: =IF(A112>$A$8,"",OFFSET(InputPriceData!C$15,CalculationsAndCharts!$A112+$A$11,IF($C$5,8,0),1,1)) -> 289.58 | E112: =IF(A112>$A$8,"",OFFSET(InputPriceData!D$15,CalculationsAndCharts!$A112+$A$11,IF($C$5,8,0),1,1)) -> 291.41 | F112: =IF(A112>$A$8,"",OFFSET(InputPriceData!E$15,CalculationsAndCharts!$A112+$A$11,IF($C$5,8,0),1,1)) -> 282.17 | G112: =IF(A112>$A$8,"",OFFSET(InputPriceData!F$15,CalculationsAndCharts!$A112+$A$11,IF($C$5,8,0),1,1)) -> 283.54 | H112: 289.4531407 | I112: 0.4697045591 | J112: 3.038886713 | K112: 5.494823345 | L112: 1.296395882 | M112: -1.893011157 | N112: 34.50081427 | O112: -0.3222838187 | AQ112: 149161500
A113: 81 | B113: =IF(A113>$A$8,"",OFFSET(InputPriceData!B$15,$A113+$A$11,0,1,1)) -> 2019-08-22 | C113: =IF(A113>$A$8,"",OFFSET(InputPriceData!G$15,CalculationsAndCharts!$A113+$A$11,IF($C$5,8,0),1,1)) -> 51666400 | D113: =IF(A113>$A$8,"",OFFSET(InputPriceData!C$15,CalculationsAndCharts!$A113+$A$11,IF($C$5,8,0),1,1)) -> 291.88 | E113: =IF(A113>$A$8,"",OFFSET(InputPriceData!D$15,CalculationsAndCharts!$A113+$A$11,IF($C$5,8,0),1,1)) -> 292.58 | F113: =IF(A113>$A$8,"",OFFSET(InputPriceData!E$15,CalculationsAndCharts!$A113+$A$11,IF($C$5,8,0),1,1)) -> 289.07 | G113: =IF(A113>$A$8,"",OFFSET(InputPriceData!F$15,CalculationsAndCharts!$A113+$A$11,IF($C$5,8,0),1,1)) -> 291.02 | H113: 289.587688 | I113: 0.4301408253 | J113: 2.327873992 | K113: 5.338989632 | L113: 1.007464912 | M113: -2.188604674 | N113: 35.78903607 | O113: -0.3658409546 | AQ113: 51666400
A114: 82 | B114: =IF(A114>$A$8,"",OFFSET(InputPriceData!B$15,$A114+$A$11,0,1,1)) -> 2019-08-21 | C114: =IF(A114>$A$8,"",OFFSET(InputPriceData!G$15,CalculationsAndCharts!$A114+$A$11,IF($C$5,8,0),1,1)) -> 49524700 | D114: =IF(A114>$A$8,"",OFFSET(InputPriceData!C$15,CalculationsAndCharts!$A114+$A$11,IF($C$5,8,0),1,1)) -> 291.14 | E114: =IF(A114>$A$8,"",OFFSET(InputPriceData!D$15,CalculationsAndCharts!$A114+$A$11,IF($C$5,8,0),1,1)) -> 291.51 | F114: =IF(A114>$A$8,"",OFFSET(InputPriceData!E$15,CalculationsAndCharts!$A114+$A$11,IF($C$5,8,0),1,1)) -> 290.38 | G114: =IF(A114>$A$8,"",OFFSET(InputPriceData!F$15,CalculationsAndCharts!$A114+$A$11,IF($C$5,8,0),1,1)) -> 291.11 | H114: 288.4945334 | I114: 0.4489519058 | J114: 0.9832838508 | K114: 5.335655978 | L114: 0.4256817157 | M114: -3.73071116 | N114: 37.08066297 | O114: -0.6126576787 | AQ114: 49524700
A115: 83 | B115: =IF(A115>$A$8,"",OFFSET(InputPriceData!B$15,$A115+$A$11,0,1,1)) -> 2019-08-20 | C115: =IF(A115>$A$8,"",OFFSET(InputPriceData!G$15,CalculationsAndCharts!$A115+$A$11,IF($C$5,8,0),1,1)) -> 51596400 | D115: =IF(A115>$A$8,"",OFFSET(InputPriceData!C$15,CalculationsAndCharts!$A115+$A$11,IF($C$5,8,0),1,1)) -> 290.43 | E115: =IF(A115>$A$8,"",OFFSET(InputPriceData!D$15,CalculationsAndCharts!$A115+$A$11,IF($C$5,8,0),1,1)) -> 291.02 | F115: =IF(A115>$A$8,"",OFFSET(InputPriceData!E$15,CalculationsAndCharts!$A115+$A$11,IF($C$5,8,0),1,1)) -> 288.62 | G115: =IF(A115>$A$8,"",OFFSET(InputPriceData!F$15,CalculationsAndCharts!$A115+$A$11,IF($C$5,8,0),1,1)) -> 288.76 | H115: 287.4187173 | I115: 0.4728688763 | J115: -0.3142729256 | K115: 5.51768968 | L115: -0.1337914414 | M115: -5.279396126 | N115: 38.04576535 | O115: -0.8559158857 | AQ115: 51596400
A116: 84 | B116: =IF(A116>$A$8,"",OFFSET(InputPriceData!B$15,$A116+$A$11,0,1,1)) -> 2019-08-19 | C116: =IF(A116>$A$8,"",OFFSET(InputPriceData!G$15,CalculationsAndCharts!$A116+$A$11,IF($C$5,8,0),1,1)) -> 53571800 | D116: =IF(A116>$A$8,"",OFFSET(InputPriceData!C$15,CalculationsAndCharts!$A116+$A$11,IF($C$5,8,0),1,1)) -> 290.85 | E116: =IF(A116>$A$8,"",OFFSET(InputPriceData!D$15,CalculationsAndCharts!$A116+$A$11,IF($C$5,8,0),1,1)) -> 291.73 | F116: =IF(A116>$A$8,"",OFFSET(InputPriceData!E$15,CalculationsAndCharts!$A116+$A$11,IF($C$5,8,0),1,1)) -> 290.1 | G116: =IF(A116>$A$8,"",OFFSET(InputPriceData!F$15,CalculationsAndCharts!$A116+$A$11,IF($C$5,8,0),1,1)) -> 290.99 | H116: 286.351709 | I116: 0.5297150758 | J116: -1.314111153 | K116: 5.743478106 | L116: -0.5483332936 | M116: -6.876119448 | N116: 38.46967126 | O116: -1.108623741 | AP116: 53571800
A117: 85 | B117: =IF(A117>$A$8,"",OFFSET(InputPriceData!B$15,$A117+$A$11,0,1,1)) -> 2019-08-16 | C117: =IF(A117>$A$8,"",OFFSET(InputPriceData!G$15,CalculationsAndCharts!$A117+$A$11,IF($C$5,8,0),1,1)) -> 83018300 | D117: =IF(A117>$A$8,"",OFFSET(InputPriceData!C$15,CalculationsAndCharts!$A117+$A$11,IF($C$5,8,0),1,1)) -> 285.16 | E117: =IF(A117>$A$8,"",OFFSET(InputPriceData!D$15,CalculationsAndCharts!$A117+$A$11,IF($C$5,8,0),1,1)) -> 288 | F117: =IF(A117>$A$8,"",OFFSET(InputPriceData!E$15,CalculationsAndCharts!$A117+$A$11,IF($C$5,8,0),1,1)) -> 283.4 | G117: =IF(A117>$A$8,"",OFFSET(InputPriceData!F$15,CalculationsAndCharts!$A117+$A$11,IF($C$5,8,0),1,1)) -> 287.52 | H117: 285.9258868 | I117: 0.5793230516 | J117: -1.798372664 | K117: 5.910836022 | L117: -0.7396993497 | M117: -7.881264706 | N117: 38.10253179 | O117: -1.276788603 | AP117: 83018300
A118: 86 | B118: =IF(A118>$A$8,"",OFFSET(InputPriceData!B$15,$A118+$A$11,0,1,1)) -> 2019-08-15 | C118: =IF(A118>$A$8,"",OFFSET(InputPriceData!G$15,CalculationsAndCharts!$A118+$A$11,IF($C$5,8,0),1,1)) -> 99556600 | D118: =IF(A118>$A$8,"",OFFSET(InputPriceData!C$15,CalculationsAndCharts!$A118+$A$11,IF($C$5,8,0),1,1)) -> 283.57 | E118: =IF(A118>$A$8,"",OFFSET(InputPriceData!D$15,CalculationsAndCharts!$A118+$A$11,IF($C$5,8,0),1,1)) -> 284.33 | F118: =IF(A118>$A$8,"",OFFSET(InputPriceData!E$15,CalculationsAndCharts!$A118+$A$11,IF($C$5,8,0),1,1)) -> 281.09 | G118: =IF(A118>$A$8,"",OFFSET(InputPriceData!F$15,CalculationsAndCharts!$A118+$A$11,IF($C$5,8,0),1,1)) -> 283.34 | H118: 286.9394974 | I118: 0.5560286459 | J118: -1.585381989 | K118: 6.022364846 | L118: -0.6460265829 | M118: -7.423682771 | N118: 37.10204006 | O118: -1.218766506 | AQ118: 99556600
A119: 87 | B119: =IF(A119>$A$8,"",OFFSET(InputPriceData!B$15,$A119+$A$11,0,1,1)) -> 2019-08-14 | C119: =IF(A119>$A$8,"",OFFSET(InputPriceData!G$15,CalculationsAndCharts!$A119+$A$11,IF($C$5,8,0),1,1)) -> 135622100 | D119: =IF(A119>$A$8,"",OFFSET(InputPriceData!C$15,CalculationsAndCharts!$A119+$A$11,IF($C$5,8,0),1,1)) -> 286.75 | E119: =IF(A119>$A$8,"",OFFSET(InputPriceData!D$15,CalculationsAndCharts!$A119+$A$11,IF($C$5,8,0),1,1)) -> 287.41 | F119: =IF(A119>$A$8,"",OFFSET(InputPriceData!E$15,CalculationsAndCharts!$A119+$A$11,IF($C$5,8,0),1,1)) -> 282.46 | G119: =IF(A119>$A$8,"",OFFSET(InputPriceData!F$15,CalculationsAndCharts!$A119+$A$11,IF($C$5,8,0),1,1)) -> 282.59 | H119: 288.4748969 | I119: 0.5018362349 | J119: -1.120839054 | K119: 6.168570212 | L119: -0.4512851042 | M119: -6.390119521 | N119: 36.35166398 | O119: -1.059855929 | AQ119: 135622100
A120: 88 | B120: =IF(A120>$A$8,"",OFFSET(InputPriceData!B$15,$A120+$A$11,0,1,1)) -> 2019-08-13 | C120: =IF(A120>$A$8,"",OFFSET(InputPriceData!G$15,CalculationsAndCharts!$A120+$A$11,IF($C$5,8,0),1,1)) -> 94299800 | D120: =IF(A120>$A$8,"",OFFSET(InputPriceData!C$15,CalculationsAndCharts!$A120+$A$11,IF($C$5,8,0),1,1)) -> 286.42 | E120: =IF(A120>$A$8,"",OFFSET(InputPriceData!D$15,CalculationsAndCharts!$A120+$A$11,IF($C$5,8,0),1,1)) -> 292.8 | F120: =IF(A120>$A$8,"",OFFSET(InputPriceData!E$15,CalculationsAndCharts!$A120+$A$11,IF($C$5,8,0),1,1)) -> 286.04 | G120: =IF(A120>$A$8,"",OFFSET(InputPriceData!F$15,CalculationsAndCharts!$A120+$A$11,IF($C$5,8,0),1,1)) -> 291.21 | H120: 288.816865 | I120: 0.4904988873 | J120: -1.38841202 | K120: 6.373248964 | L120: -0.549968636 | M120: -6.538650337 | N120: 36.1649155 | O120: -1.087287477 | AP120: 94299800
A121: 89 | B121: =IF(A121>$A$8,"",OFFSET(InputPriceData!B$15,$A121+$A$11,0,1,1)) -> 2019-08-12 | C121: =IF(A121>$A$8,"",OFFSET(InputPriceData!G$15,CalculationsAndCharts!$A121+$A$11,IF($C$5,8,0),1,1)) -> 62629500 | D121: =IF(A121>$A$8,"",OFFSET(InputPriceData!C$15,CalculationsAndCharts!$A121+$A$11,IF($C$5,8,0),1,1)) -> 288.63 | E121: =IF(A121>$A$8,"",OFFSET(InputPriceData!D$15,CalculationsAndCharts!$A121+$A$11,IF($C$5,8,0),1,1)) -> 290.27 | F121: =IF(A121>$A$8,"",OFFSET(InputPriceData!E$15,CalculationsAndCharts!$A121+$A$11,IF($C$5,8,0),1,1)) -> 285.7 | G121: =IF(A121>$A$8,"",OFFSET(InputPriceData!F$15,CalculationsAndCharts!$A121+$A$11,IF($C$5,8,0),1,1)) -> 286.75 | H121: 288.4685558 | I121: 0.4837063334 | J121: -2.29174933 | K121: 6.558480673 | L121: -0.894881421 | M121: -7.370665831 | N121: 35.89037247 | O121: -1.230319023 | AQ121: 62629500
A122: 90 | B122: =IF(A122>$A$8,"",OFFSET(InputPriceData!B$15,$A122+$A$11,0,1,1)) -> 2019-08-09 | C122: =IF(A122>$A$8,"",OFFSET(InputPriceData!G$15,CalculationsAndCharts!$A122+$A$11,IF($C$5,8,0),1,1)) -> 93730000 | D122: =IF(A122>$A$8,"",OFFSET(InputPriceData!C$15,CalculationsAndCharts!$A122+$A$11,IF($C$5,8,0),1,1)) -> 291.24 | E122: =IF(A122>$A$8,"",OFFSET(InputPriceData!D$15,CalculationsAndCharts!$A122+$A$11,IF($C$5,8,0),1,1)) -> 291.89 | F122: =IF(A122>$A$8,"",OFFSET(InputPriceData!E$15,CalculationsAndCharts!$A122+$A$11,IF($C$5,8,0),1,1)) -> 288.32 | G122: =IF(A122>$A$8,"",OFFSET(InputPriceData!F$15,CalculationsAndCharts!$A122+$A$11,IF($C$5,8,0),1,1)) -> 290.28 | H122: 287.9364703 | I122: 0.4742959685 | J122: -3.396939639 | K122: 6.612912576 | L122: -1.320965391 | M122: -8.377047308 | N122: 35.12219154 | O122: -1.413514164 | AQ122: 93730000
A123: 91 | B123: =IF(A123>$A$8,"",OFFSET(InputPriceData!B$15,$A123+$A$11,0,1,1)) -> 2019-08-08 | C123: =IF(A123>$A$8,"",OFFSET(InputPriceData!G$15,CalculationsAndCharts!$A123+$A$11,IF($C$5,8,0),1,1)) -> 87713900 | D123: =IF(A123>$A$8,"",OFFSET(InputPriceData!C$15,CalculationsAndCharts!$A123+$A$11,IF($C$5,8,0),1,1)) -> 288.29 | E123: =IF(A123>$A$8,"",OFFSET(InputPriceData!D$15,CalculationsAndCharts!$A123+$A$11,IF($C$5,8,0),1,1)) -> 292.27 | F123: =IF(A123>$A$8,"",OFFSET(InputPriceData!E$15,CalculationsAndCharts!$A123+$A$11,IF($C$5,8,0),1,1)) -> 287.68 | G123: =IF(A123>$A$8,"",OFFSET(InputPriceData!F$15,CalculationsAndCharts!$A123+$A$11,IF($C$5,8,0),1,1)) -> 292.27 | H123: 286.9988504 | I123: 0.492008105 | J123: -4.640590237 | K123: 6.407650646 | L123: -1.833258931 | M123: -9.806675339 | N123: 33.66166112 | O123: -1.690261993 | AP123: 87713900
A124: 92 | B124: =IF(A124>$A$8,"",OFFSET(InputPriceData!B$15,$A124+$A$11,0,1,1)) -> 2019-08-07 | C124: =IF(A124>$A$8,"",OFFSET(InputPriceData!G$15,CalculationsAndCharts!$A124+$A$11,IF($C$5,8,0),1,1)) -> 140572300 | D124: =IF(A124>$A$8,"",OFFSET(InputPriceData!C$15,CalculationsAndCharts!$A124+$A$11,IF($C$5,8,0),1,1)) -> 283.09 | E124: =IF(A124>$A$8,"",OFFSET(InputPriceData!D$15,CalculationsAndCharts!$A124+$A$11,IF($C$5,8,0),1,1)) -> 287.49 | F124: =IF(A124>$A$8,"",OFFSET(InputPriceData!E$15,CalculationsAndCharts!$A124+$A$11,IF($C$5,8,0),1,1)) -> 280.74 | G124: =IF(A124>$A$8,"",OFFSET(InputPriceData!F$15,CalculationsAndCharts!$A124+$A$11,IF($C$5,8,0),1,1)) -> 286.65 | H124: 287.3509679 | I124: 0.4576735055 | J124: -5.106659477 | K124: 5.777341183 | L124: -2.124579033 | M124: -9.912231285 | N124: 31.05711028 | O124: -1.778651672 | AP124: 140572300
A125: 93 | B125: =IF(A125>$A$8,"",OFFSET(InputPriceData!B$15,$A125+$A$11,0,1,1)) -> 2019-08-06 | C125: =IF(A125>$A$8,"",OFFSET(InputPriceData!G$15,CalculationsAndCharts!$A125+$A$11,IF($C$5,8,0),1,1)) -> 120711700 | D125: =IF(A125>$A$8,"",OFFSET(InputPriceData!C$15,CalculationsAndCharts!$A125+$A$11,IF($C$5,8,0),1,1)) -> 284.6 | E125: =IF(A125>$A$8,"",OFFSET(InputPriceData!D$15,CalculationsAndCharts!$A125+$A$11,IF($C$5,8,0),1,1)) -> 286.72 | F125: =IF(A125>$A$8,"",OFFSET(InputPriceData!E$15,CalculationsAndCharts!$A125+$A$11,IF($C$5,8,0),1,1)) -> 282.97 | G125: =IF(A125>$A$8,"",OFFSET(InputPriceData!F$15,CalculationsAndCharts!$A125+$A$11,IF($C$5,8,0),1,1)) -> 286.48 | H125: 289.5051058 | I125: 0.3425454298 | J125: -4.503911874 | K125: 4.931481607 | L125: -2.028155154 | M125: -8.100638887 | N125: 28.2573095 | O125: -1.523890874 | AP125: 120711700
A126: 94 | B126: =IF(A126>$A$8,"",OFFSET(InputPriceData!B$15,$A126+$A$11,0,1,1)) -> 2019-08-05 | C126: =IF(A126>$A$8,"",OFFSET(InputPriceData!G$15,CalculationsAndCharts!$A126+$A$11,IF($C$5,8,0),1,1)) -> 178745400 | D126: =IF(A126>$A$8,"",OFFSET(InputPriceData!C$15,CalculationsAndCharts!$A126+$A$11,IF($C$5,8,0),1,1)) -> 286.77 | E126: =IF(A126>$A$8,"",OFFSET(InputPriceData!D$15,CalculationsAndCharts!$A126+$A$11,IF($C$5,8,0),1,1)) -> 286.89 | F126: =IF(A126>$A$8,"",OFFSET(InputPriceData!E$15,CalculationsAndCharts!$A126+$A$11,IF($C$5,8,0),1,1)) -> 280.42 | G126: =IF(A126>$A$8,"",OFFSET(InputPriceData!F$15,CalculationsAndCharts!$A126+$A$11,IF($C$5,8,0),1,1)) -> 282.52 | H126: 292.9330352 | I126: 0.158459582 | J126: -3.167343463 | K126: 4.291742417 | L126: -1.528897379 | M126: -4.831169073 | N126: 26.70051613 | O126: -0.9349586592 | AQ126: 178745400
A127: 95 | B127: =IF(A127>$A$8,"",OFFSET(InputPriceData!B$15,$A127+$A$11,0,1,1)) -> 2019-08-02 | C127: =IF(A127>$A$8,"",OFFSET(InputPriceData!G$15,CalculationsAndCharts!$A127+$A$11,IF($C$5,8,0),1,1)) -> 116749700 | D127: =IF(A127>$A$8,"",OFFSET(InputPriceData!C$15,CalculationsAndCharts!$A127+$A$11,IF($C$5,8,0),1,1)) -> 292.5 | E127: =IF(A127>$A$8,"",OFFSET(InputPriceData!D$15,CalculationsAndCharts!$A127+$A$11,IF($C$5,8,0),1,1)) -> 292.77 | F127: =IF(A127>$A$8,"",OFFSET(InputPriceData!E$15,CalculationsAndCharts!$A127+$A$11,IF($C$5,8,0),1,1)) -> 289.56 | G127: =IF(A127>$A$8,"",OFFSET(InputPriceData!F$15,CalculationsAndCharts!$A127+$A$11,IF($C$5,8,0),1,1)) -> 291.27 | H127: 296.0773177 | I127: -0.04383079047 | J127: -2.103279032 | K127: 4.052562325 | L127: -1.044797298 | M127: -1.643055732 | N127: 26.84052953 | O127: -0.3171441866 | AQ127: 116749700
A128: 96 | B128: =IF(A128>$A$8,"",OFFSET(InputPriceData!B$15,$A128+$A$11,0,1,1)) -> 2019-08-01 | C128: =IF(A128>$A$8,"",OFFSET(InputPriceData!G$15,CalculationsAndCharts!$A128+$A$11,IF($C$5,8,0),1,1)) -> 142646600 | D128: =IF(A128>$A$8,"",OFFSET(InputPriceData!C$15,CalculationsAndCharts!$A128+$A$11,IF($C$5,8,0),1,1)) -> 296.23 | E128: =IF(A128>$A$8,"",OFFSET(InputPriceData!D$15,CalculationsAndCharts!$A128+$A$11,IF($C$5,8,0),1,1)) -> 299.49 | F128: =IF(A128>$A$8,"",OFFSET(InputPriceData!E$15,CalculationsAndCharts!$A128+$A$11,IF($C$5,8,0),1,1)) -> 292.61 | G128: =IF(A128>$A$8,"",OFFSET(InputPriceData!F$15,CalculationsAndCharts!$A128+$A$11,IF($C$5,8,0),1,1)) -> 293.48 | H128: 298.0708066 | I128: -0.2200416329 | J128: -1.739962378 | K128: 4.03709481 | L128: -0.8659750578 | M128: 0.5704747671 | N128: 27.84640025 | O128: 0.1081065254 | AQ128: 142646600
A129: 97 | B129: =IF(A129>$A$8,"",OFFSET(InputPriceData!B$15,$A129+$A$11,0,1,1)) -> 2019-07-31 | C129: =IF(A129>$A$8,"",OFFSET(InputPriceData!G$15,CalculationsAndCharts!$A129+$A$11,IF($C$5,8,0),1,1)) -> 104245200 | D129: =IF(A129>$A$8,"",OFFSET(InputPriceData!C$15,CalculationsAndCharts!$A129+$A$11,IF($C$5,8,0),1,1)) -> 299.61 | E129: =IF(A129>$A$8,"",OFFSET(InputPriceData!D$15,CalculationsAndCharts!$A129+$A$11,IF($C$5,8,0),1,1)) -> 299.82 | F129: =IF(A129>$A$8,"",OFFSET(InputPriceData!E$15,CalculationsAndCharts!$A129+$A$11,IF($C$5,8,0),1,1)) -> 293.84 | G129: =IF(A129>$A$8,"",OFFSET(InputPriceData!F$15,CalculationsAndCharts!$A129+$A$11,IF($C$5,8,0),1,1)) -> 296.06 | H129: 299.4121259 | I129: -0.3627180877 | J129: -1.534027697 | K129: 4.079162549 | L129: -0.7595348317 | M129: 2.274512224 | N129: 28.99310687 | O129: 0.4224165226 | AQ129: 104245200
A130: 98 | B130: =IF(A130>$A$8,"",OFFSET(InputPriceData!B$15,$A130+$A$11,0,1,1)) -> 2019-07-30 | C130: =IF(A130>$A$8,"",OFFSET(InputPriceData!G$15,CalculationsAndCharts!$A130+$A$11,IF($C$5,8,0),1,1)) -> 45849000 | D130: =IF(A130>$A$8,"",OFFSET(InputPriceData!C$15,CalculationsAndCharts!$A130+$A$11,IF($C$5,8,0),1,1)) -> 298.53 | E130: =IF(A130>$A$8,"",OFFSET(InputPriceData!D$15,CalculationsAndCharts!$A130+$A$11,IF($C$5,8,0),1,1)) -> 299.79 | F130: =IF(A130>$A$8,"",OFFSET(InputPriceData!E$15,CalculationsAndCharts!$A130+$A$11,IF($C$5,8,0),1,1)) -> 298.11 | G130: =IF(A130>$A$8,"",OFFSET(InputPriceData!F$15,CalculationsAndCharts!$A130+$A$11,IF($C$5,8,0),1,1)) -> 299.34 | H130: 299.8162958 | I130: -0.4408314127 | J130: -1.509216317 | K130: 4.151075948 | L130: -0.7407491337 | M130: 3.119513517 | N130: 29.98559441 | O130: 0.5696794331 | AP130: 45849000
A131: 99 | B131: =IF(A131>$A$8,"",OFFSET(InputPriceData!B$15,$A131+$A$11,0,1,1)) -> 2019-07-29 | C131: =IF(A131>$A$8,"",OFFSET(InputPriceData!G$15,CalculationsAndCharts!$A131+$A$11,IF($C$5,8,0),1,1)) -> 38126500 | D131: =IF(A131>$A$8,"",OFFSET(InputPriceData!C$15,CalculationsAndCharts!$A131+$A$11,IF($C$5,8,0),1,1)) -> 300.49 | E131: =IF(A131>$A$8,"",OFFSET(InputPriceData!D$15,CalculationsAndCharts!$A131+$A$11,IF($C$5,8,0),1,1)) -> 300.62 | F131: =IF(A131>$A$8,"",OFFSET(InputPriceData!E$15,CalculationsAndCharts!$A131+$A$11,IF($C$5,8,0),1,1)) -> 299.47 | G131: =IF(A131>$A$8,"",OFFSET(InputPriceData!F$15,CalculationsAndCharts!$A131+$A$11,IF($C$5,8,0),1,1)) -> 300.07 | H131: 299.4964791 | I131: -0.4522185401 | J131: -1.496379345 | K131: 4.229131867 | L131: -0.7276392062 | M131: 3.251915326 | N131: 30.82952065 | O131: 0.5856738624 | AQ131: 38126500
A132: 100 | B132: =IF(A132>$A$8,"",OFFSET(InputPriceData!B$15,$A132+$A$11,0,1,1)) -> 2019-07-26 | C132: =IF(A132>$A$8,"",OFFSET(InputPriceData!G$15,CalculationsAndCharts!$A132+$A$11,IF($C$5,8,0),1,1)) -> 45084100 | D132: =IF(A132>$A$8,"",OFFSET(InputPriceData!C$15,CalculationsAndCharts!$A132+$A$11,IF($C$5,8,0),1,1)) -> 299.38 | E132: =IF(A132>$A$8,"",OFFSET(InputPriceData!D$15,CalculationsAndCharts!$A132+$A$11,IF($C$5,8,0),1,1)) -> 300.84 | F132: =IF(A132>$A$8,"",OFFSET(InputPriceData!E$15,CalculationsAndCharts!$A132+$A$11,IF($C$5,8,0),1,1)) -> 299.24 | G132: =IF(A132>$A$8,"",OFFSET(InputPriceData!F$15,CalculationsAndCharts!$A132+$A$11,IF($C$5,8,0),1,1)) -> 300.62 | H132: 298.8472318 | I132: -0.4086846246 | J132: -1.279835873 | K132: 4.312047731 | L132: -0.6163288527 | M132: 3.011352686 | N132: 31.67346096 | O132: 0.5350740165 | AP132: 45084100
A133: 101 | B133: =IF(A133>$A$8,"",OFFSET(InputPriceData!B$15,$A133+$A$11,0,1,1)) -> 2019-07-25 | C133: =IF(A133>$A$8,"",OFFSET(InputPriceData!G$15,CalculationsAndCharts!$A133+$A$11,IF($C$5,8,0),1,1)) -> 55394100 | D133: =IF(A133>$A$8,"",OFFSET(InputPriceData!C$15,CalculationsAndCharts!$A133+$A$11,IF($C$5,8,0),1,1)) -> 299.56 | E133: =IF(A133>$A$8,"",OFFSET(InputPriceData!D$15,CalculationsAndCharts!$A133+$A$11,IF($C$5,8,0),1,1)) -> 299.62 | F133: =IF(A133>$A$8,"",OFFSET(InputPriceData!E$15,CalculationsAndCharts!$A133+$A$11,IF($C$5,8,0),1,1)) -> 297.74 | G133: =IF(A133>$A$8,"",OFFSET(InputPriceData!F$15,CalculationsAndCharts!$A133+$A$11,IF($C$5,8,0),1,1)) -> 298.62 | H133: 298.1905045 | I133: -0.3418068378 | J133: -0.8925396407 | K133: 4.423467225 | L133: -0.4243713993 | M133: 2.696432156 | N133: 32.61534496 | O133: 0.4721483861 | AQ133: 55394100
A134: 102 | B134: =IF(A134>$A$8,"",OFFSET(InputPriceData!B$15,$A134+$A$11,0,1,1)) -> 2019-07-24 | C134: =IF(A134>$A$8,"",OFFSET(InputPriceData!G$15,CalculationsAndCharts!$A134+$A$11,IF($C$5,8,0),1,1)) -> 47213200 | D134: =IF(A134>$A$8,"",OFFSET(InputPriceData!C$15,CalculationsAndCharts!$A134+$A$11,IF($C$5,8,0),1,1)) -> 297.81 | E134: =IF(A134>$A$8,"",OFFSET(InputPriceData!D$15,CalculationsAndCharts!$A134+$A$11,IF($C$5,8,0),1,1)) -> 300.05 | F134: =IF(A134>$A$8,"",OFFSET(InputPriceData!E$15,CalculationsAndCharts!$A134+$A$11,IF($C$5,8,0),1,1)) -> 297.72 | G134: =IF(A134>$A$8,"",OFFSET(InputPriceData!F$15,CalculationsAndCharts!$A134+$A$11,IF($C$5,8,0),1,1)) -> 300.05 | H134: 297.4735715 | I134: -0.2757961319 | J134: -0.6405640666 | K134: 4.574585568 | L134: -0.2994930129 | M134: 2.255295318 | N134: 33.6713699 | O134: 0.388662845 | AP134: 47213200
A135: 103 | B135: =IF(A135>$A$8,"",OFFSET(InputPriceData!B$15,$A135+$A$11,0,1,1)) -> 2019-07-23 | C135: =IF(A135>$A$8,"",OFFSET(InputPriceData!G$15,CalculationsAndCharts!$A135+$A$11,IF($C$5,8,0),1,1)) -> 44564500 | D135: =IF(A135>$A$8,"",OFFSET(InputPriceData!C$15,CalculationsAndCharts!$A135+$A$11,IF($C$5,8,0),1,1)) -> 297.76 | E135: =IF(A135>$A$8,"",OFFSET(InputPriceData!D$15,CalculationsAndCharts!$A135+$A$11,IF($C$5,8,0),1,1)) -> 298.65 | F135: =IF(A135>$A$8,"",OFFSET(InputPriceData!E$15,CalculationsAndCharts!$A135+$A$11,IF($C$5,8,0),1,1)) -> 296.85 | G135: =IF(A135>$A$8,"",OFFSET(InputPriceData!F$15,CalculationsAndCharts!$A135+$A$11,IF($C$5,8,0),1,1)) -> 298.65 | H135: 296.8760948 | I135: -0.2551361006 | J135: -0.7659743182 | K135: 4.748096536 | L135: -0.3515235606 | M135: 1.912954738 | N135: 34.86241211 | O135: 0.3239858017 | AP135: 44564500
A136: 104 | B136: =IF(A136>$A$8,"",OFFSET(InputPriceData!B$15,$A136+$A$11,0,1,1)) -> 2019-07-22 | C136: =IF(A136>$A$8,"",OFFSET(InputPriceData!G$15,CalculationsAndCharts!$A136+$A$11,IF($C$5,8,0),1,1)) -> 43638100 | D136: =IF(A136>$A$8,"",OFFSET(InputPriceData!C$15,CalculationsAndCharts!$A136+$A$11,IF($C$5,8,0),1,1)) -> 296.24 | E136: =IF(A136>$A$8,"",OFFSET(InputPriceData!D$15,CalculationsAndCharts!$A136+$A$11,IF($C$5,8,0),1,1)) -> 297.13 | F136: =IF(A136>$A$8,"",OFFSET(InputPriceData!E$15,CalculationsAndCharts!$A136+$A$11,IF($C$5,8,0),1,1)) -> 295.67 | G136: =IF(A136>$A$8,"",OFFSET(InputPriceData!F$15,CalculationsAndCharts!$A136+$A$11,IF($C$5,8,0),1,1)) -> 296.53 | H136: 296.9460106 | I136: -0.3092947616 | J136: -0.9554297532 | K136: 4.921487364 | L136: -0.4306759044 | M136: 2.292165244 | N136: 36.16253779 | O136: 0.3811680346 | AP136: 43638100
A137: 105 | B137: =IF(A137>$A$8,"",OFFSET(InputPriceData!B$15,$A137+$A$11,0,1,1)) -> 2019-07-19 | C137: =IF(A137>$A$8,"",OFFSET(InputPriceData!G$15,CalculationsAndCharts!$A137+$A$11,IF($C$5,8,0),1,1)) -> 58678600 | D137: =IF(A137>$A$8,"",OFFSET(InputPriceData!C$15,CalculationsAndCharts!$A137+$A$11,IF($C$5,8,0),1,1)) -> 298.66 | E137: =IF(A137>$A$8,"",OFFSET(InputPriceData!D$15,CalculationsAndCharts!$A137+$A$11,IF($C$5,8,0),1,1)) -> 298.69 | F137: =IF(A137>$A$8,"",OFFSET(InputPriceData!E$15,CalculationsAndCharts!$A137+$A$11,IF($C$5,8,0),1,1)) -> 295.61 | G137: =IF(A137>$A$8,"",OFFSET(InputPriceData!F$15,CalculationsAndCharts!$A137+$A$11,IF($C$5,8,0),1,1)) -> 295.8 | H137: 297.5123479 | I137: -0.4081721797 | J137: -1.019133153 | K137: 5.088514087 | L137: -0.4517887779 | M137: 3.266674734 | N137: 37.45039263 | O137: 0.5337989385 | AQ137: 58678600
A138: 106 | B138: =IF(A138>$A$8,"",OFFSET(InputPriceData!B$15,$A138+$A$11,0,1,1)) -> 2019-07-18 | C138: =IF(A138>$A$8,"",OFFSET(InputPriceData!G$15,CalculationsAndCharts!$A138+$A$11,IF($C$5,8,0),1,1)) -> 51392600 | D138: =IF(A138>$A$8,"",OFFSET(InputPriceData!C$15,CalculationsAndCharts!$A138+$A$11,IF($C$5,8,0),1,1)) -> 295.82 | E138: =IF(A138>$A$8,"",OFFSET(InputPriceData!D$15,CalculationsAndCharts!$A138+$A$11,IF($C$5,8,0),1,1)) -> 297.87 | F138: =IF(A138>$A$8,"",OFFSET(InputPriceData!E$15,CalculationsAndCharts!$A138+$A$11,IF($C$5,8,0),1,1)) -> 295.34 | G138: =IF(A138>$A$8,"",OFFSET(InputPriceData!F$15,CalculationsAndCharts!$A138+$A$11,IF($C$5,8,0),1,1)) -> 297.46 | H138: 298.0600703 | I138: -0.4990683923 | J138: -0.9267525262 | K138: 5.257259158 | L138: -0.4041886235 | M138: 4.313465593 | N138: 38.56619383 | O138: 0.6945810786 | AP138: 51392600
A139: 107 | B139: =IF(A139>$A$8,"",OFFSET(InputPriceData!B$15,$A139+$A$11,0,1,1)) -> 2019-07-17 | C139: =IF(A139>$A$8,"",OFFSET(InputPriceData!G$15,CalculationsAndCharts!$A139+$A$11,IF($C$5,8,0),1,1)) -> 36036300 | D139: =IF(A139>$A$8,"",OFFSET(InputPriceData!C$15,CalculationsAndCharts!$A139+$A$11,IF($C$5,8,0),1,1)) -> 298.37 | E139: =IF(A139>$A$8,"",OFFSET(InputPriceData!D$15,CalculationsAndCharts!$A139+$A$11,IF($C$5,8,0),1,1)) -> 298.55 | F139: =IF(A139>$A$8,"",OFFSET(InputPriceData!E$15,CalculationsAndCharts!$A139+$A$11,IF($C$5,8,0),1,1)) -> 296.37 | G139: =IF(A139>$A$8,"",OFFSET(InputPriceData!F$15,CalculationsAndCharts!$A139+$A$11,IF($C$5,8,0),1,1)) -> 296.37 | H139: 298.5116216 | I139: -0.5650843393 | J139: -0.6032843649 | K139: 5.440525363 | L139: -0.2586435487 | M139: 5.330101198 | N139: 39.39786918 | O139: 0.8491786913 | AQ139: 36036300
A140: 108 | B140: =IF(A140>$A$8,"",OFFSET(InputPriceData!B$15,$A140+$A$11,0,1,1)) -> 2019-07-16 | C140: =IF(A140>$A$8,"",OFFSET(InputPriceData!G$15,CalculationsAndCharts!$A140+$A$11,IF($C$5,8,0),1,1)) -> 36650100 | D140: =IF(A140>$A$8,"",OFFSET(InputPriceData!C$15,CalculationsAndCharts!$A140+$A$11,IF($C$5,8,0),1,1)) -> 299.27 | E140: =IF(A140>$A$8,"",OFFSET(InputPriceData!D$15,CalculationsAndCharts!$A140+$A$11,IF($C$5,8,0),1,1)) -> 299.5 | F140: =IF(A140>$A$8,"",OFFSET(InputPriceData!E$15,CalculationsAndCharts!$A140+$A$11,IF($C$5,8,0),1,1)) -> 298.06 | G140: =IF(A140>$A$8,"",OFFSET(InputPriceData!F$15,CalculationsAndCharts!$A140+$A$11,IF($C$5,8,0),1,1)) -> 298.4 | H140: 298.6268427 | I140: -0.5913697995 | J140: -0.1726907787 | K140: 5.652049252 | L140: -0.07263838486 | M140: 6.036692116 | N140: 39.85569795 | O140: 0.9562111798 | AQ140: 36650100
A141: 109 | B141: =IF(A141>$A$8,"",OFFSET(InputPriceData!B$15,$A141+$A$11,0,1,1)) -> 2019-07-15 | C141: =IF(A141>$A$8,"",OFFSET(InputPriceData!G$15,CalculationsAndCharts!$A141+$A$11,IF($C$5,8,0),1,1)) -> 33900000 | D141: =IF(A141>$A$8,"",OFFSET(InputPriceData!C$15,CalculationsAndCharts!$A141+$A$11,IF($C$5,8,0),1,1)) -> 299.75 | E141: =IF(A141>$A$8,"",OFFSET(InputPriceData!D$15,CalculationsAndCharts!$A141+$A$11,IF($C$5,8,0),1,1)) -> 299.75 | F141: =IF(A141>$A$8,"",OFFSET(InputPriceData!E$15,CalculationsAndCharts!$A141+$A$11,IF($C$5,8,0),1,1)) -> 298.81 | G141: =IF(A141>$A$8,"",OFFSET(InputPriceData!F$15,CalculationsAndCharts!$A141+$A$11,IF($C$5,8,0),1,1)) -> 299.37 | H141: 298.1426825 | I141: -0.5755031515 | J141: 0.08525193773 | K141: 5.886308717 | L141: 0.0351384614 | M141: 6.128035028 | N141: 39.99794987 | O141: 0.9689522448 | AQ141: 33900000
A142: 110 | B142: =IF(A142>$A$8,"",OFFSET(InputPriceData!B$15,$A142+$A$11,0,1,1)) -> 2019-07-12 | C142: =IF(A142>$A$8,"",OFFSET(InputPriceData!G$15,CalculationsAndCharts!$A142+$A$11,IF($C$5,8,0),1,1)) -> 40326000 | D142: =IF(A142>$A$8,"",OFFSET(InputPriceData!C$15,CalculationsAndCharts!$A142+$A$11,IF($C$5,8,0),1,1)) -> 298.47 | E142: =IF(A142>$A$8,"",OFFSET(InputPriceData!D$15,CalculationsAndCharts!$A142+$A$11,IF($C$5,8,0),1,1)) -> 299.35 | F142: =IF(A142>$A$8,"",OFFSET(InputPriceData!E$15,CalculationsAndCharts!$A142+$A$11,IF($C$5,8,0),1,1)) -> 298.13 | G142: =IF(A142>$A$8,"",OFFSET(InputPriceData!F$15,CalculationsAndCharts!$A142+$A$11,IF($C$5,8,0),1,1)) -> 299.27 | H142: 297.4223897 | I142: -0.5609268596 | J142: 0.07893705596 | K142: 6.131268751 | L142: 0.03187907772 | M142: 5.968669082 | N142: 40.09983056 | O142: 0.9425539816 | AP142: 40326000
A143: 111 | B143: =IF(A143>$A$8,"",OFFSET(InputPriceData!B$15,$A143+$A$11,0,1,1)) -> 2019-07-11 | C143: =IF(A143>$A$8,"",OFFSET(InputPriceData!G$15,CalculationsAndCharts!$A143+$A$11,IF($C$5,8,0),1,1)) -> 50826100 | D143: =IF(A143>$A$8,"",OFFSET(InputPriceData!C$15,CalculationsAndCharts!$A143+$A$11,IF($C$5,8,0),1,1)) -> 297.94 | E143: =IF(A143>$A$8,"",OFFSET(InputPriceData!D$15,CalculationsAndCharts!$A143+$A$11,IF($C$5,8,0),1,1)) -> 298.2 | F143: =IF(A143>$A$8,"",OFFSET(InputPriceData!E$15,CalculationsAndCharts!$A143+$A$11,IF($C$5,8,0),1,1)) -> 296.83 | G143: =IF(A143>$A$8,"",OFFSET(InputPriceData!F$15,CalculationsAndCharts!$A143+$A$11,IF($C$5,8,0),1,1)) -> 297.93 | H143: 296.8390125 | I143: -0.5687678754 | J143: -0.01800293104 | K143: 6.386478655 | L143: -0.007123812587 | M143: 5.95405976 | N143: 40.2862814 | O143: 0.9380685985 | AQ143: 50826100
A144: 112 | B144: =IF(A144>$A$8,"",OFFSET(InputPriceData!B$15,$A144+$A$11,0,1,1)) -> 2019-07-10 | C144: =IF(A144>$A$8,"",OFFSET(InputPriceData!G$15,CalculationsAndCharts!$A144+$A$11,IF($C$5,8,0),1,1)) -> 58448500 | D144: =IF(A144>$A$8,"",OFFSET(InputPriceData!C$15,CalculationsAndCharts!$A144+$A$11,IF($C$5,8,0),1,1)) -> 297 | E144: =IF(A144>$A$8,"",OFFSET(InputPriceData!D$15,CalculationsAndCharts!$A144+$A$11,IF($C$5,8,0),1,1)) -> 298.28 | F144: =IF(A144>$A$8,"",OFFSET(InputPriceData!E$15,CalculationsAndCharts!$A144+$A$11,IF($C$5,8,0),1,1)) -> 296.41 | G144: =IF(A144>$A$8,"",OFFSET(InputPriceData!F$15,CalculationsAndCharts!$A144+$A$11,IF($C$5,8,0),1,1)) -> 297.24 | H144: 296.5044381 | I144: -0.6175168901 | J144: -0.2469251245 | K144: 6.652568428 | L144: -0.09573497014 | M144: 6.237002222 | N144: 40.48775864 | O144: 0.9801984945 | AP144: 58448500
A145: 113 | B145: =IF(A145>$A$8,"",OFFSET(InputPriceData!B$15,$A145+$A$11,0,1,1)) -> 2019-07-09 | C145: =IF(A145>$A$8,"",OFFSET(InputPriceData!G$15,CalculationsAndCharts!$A145+$A$11,IF($C$5,8,0),1,1)) -> 41101300 | D145: =IF(A145>$A$8,"",OFFSET(InputPriceData!C$15,CalculationsAndCharts!$A145+$A$11,IF($C$5,8,0),1,1)) -> 294.18 | E145: =IF(A145>$A$8,"",OFFSET(InputPriceData!D$15,CalculationsAndCharts!$A145+$A$11,IF($C$5,8,0),1,1)) -> 296.15 | F145: =IF(A145>$A$8,"",OFFSET(InputPriceData!E$15,CalculationsAndCharts!$A145+$A$11,IF($C$5,8,0),1,1)) -> 294.12 | G145: =IF(A145>$A$8,"",OFFSET(InputPriceData!F$15,CalculationsAndCharts!$A145+$A$11,IF($C$5,8,0),1,1)) -> 295.82 | H145: 296.3560144 | I145: -0.71479861 | J145: -0.7020082597 | K145: 6.927218278 | L145: -0.2667244239 | M145: 6.803377145 | N145: 40.55390705 | O145: 1.068336819 | AP145: 41101300
A146: 114 | B146: =IF(A146>$A$8,"",OFFSET(InputPriceData!B$15,$A146+$A$11,0,1,1)) -> 2019-07-08 | C146: =IF(A146>$A$8,"",OFFSET(InputPriceData!G$15,CalculationsAndCharts!$A146+$A$11,IF($C$5,8,0),1,1)) -> 45841800 | D146: =IF(A146>$A$8,"",OFFSET(InputPriceData!C$15,CalculationsAndCharts!$A146+$A$11,IF($C$5,8,0),1,1)) -> 295.64 | E146: =IF(A146>$A$8,"",OFFSET(InputPriceData!D$15,CalculationsAndCharts!$A146+$A$11,IF($C$5,8,0),1,1)) -> 296.89 | F146: =IF(A146>$A$8,"",OFFSET(InputPriceData!E$15,CalculationsAndCharts!$A146+$A$11,IF($C$5,8,0),1,1)) -> 294.86 | G146: =IF(A146>$A$8,"",OFFSET(InputPriceData!F$15,CalculationsAndCharts!$A146+$A$11,IF($C$5,8,0),1,1)) -> 295.46 | H146: 296.1022268 | I146: -0.8288174733 | J146: -1.324176413 | K146: 7.19531839 | L146: -0.4936519304 | M146: 7.378407057 | N146: 40.31507232 | O146: 1.162060902 | AP146: =IF(G146>=D146,C146,NA()) ->  | AQ146: =IF(G146<D146,C146,NA()) -> 45841800
A147: 115 | B147: =IF(A147>$A$8,"",OFFSET(InputPriceData!B$15,$A147+$A$11,0,1,1)) -> 2019-07-05 | C147: =IF(A147>$A$8,"",OFFSET(InputPriceData!G$15,CalculationsAndCharts!$A147+$A$11,IF($C$5,8,0),1,1)) -> 51677300 | D147: =IF(A147>$A$8,"",OFFSET(InputPriceData!C$15,CalculationsAndCharts!$A147+$A$11,IF($C$5,8,0),1,1)) -> 296.07 | E147: =IF(A147>$A$8,"",OFFSET(InputPriceData!D$15,CalculationsAndCharts!$A147+$A$11,IF($C$5,8,0),1,1)) -> 297.27 | F147: =IF(A147>$A$8,"",OFFSET(InputPriceData!E$15,CalculationsAndCharts!$A147+$A$11,IF($C$5,8,0),1,1)) -> 294.65 | G147: =IF(A147>$A$8,"",OFFSET(InputPriceData!F$15,CalculationsAndCharts!$A147+$A$11,IF($C$5,8,0),1,1)) -> 297.09 | H147: 295.2007019 | I147: -0.9050475256 | J147: -2.121069334 | K147: 7.42206319 | L147: -0.7785608138 | M147: 7.381929685 | N147: 39.72649655 | O147: 1.171196513 | AP147: 51677300
A148: 116 | B148: =IF(A148>$A$8,"",OFFSET(InputPriceData!B$15,$A148+$A$11,0,1,1)) -> 2019-07-03 | C148: =IF(A148>$A$8,"",OFFSET(InputPriceData!G$15,CalculationsAndCharts!$A148+$A$11,IF($C$5,8,0),1,1)) -> 40898900 | D148: =IF(A148>$A$8,"",OFFSET(InputPriceData!C$15,CalculationsAndCharts!$A148+$A$11,IF($C$5,8,0),1,1)) -> 295.81 | E148: =IF(A148>$A$8,"",OFFSET(InputPriceData!D$15,CalculationsAndCharts!$A148+$A$11,IF($C$5,8,0),1,1)) -> 297.45 | F148: =IF(A148>$A$8,"",OFFSET(InputPriceData!E$15,CalculationsAndCharts!$A148+$A$11,IF($C$5,8,0),1,1)) -> 295.65 | G148: =IF(A148>$A$8,"",OFFSET(InputPriceData!F$15,CalculationsAndCharts!$A148+$A$11,IF($C$5,8,0),1,1)) -> 297.43 | H148: 293.6699739 | I148: -0.9255705716 | J148: -2.941718727 | K148: 7.543860194 | L148: -1.071036643 | M148: 6.776772275 | N148: 39.11123033 | O148: 1.083607876 | AP148: 40898900
A149: 117 | B149: =IF(A149>$A$8,"",OFFSET(InputPriceData!B$15,$A149+$A$11,0,1,1)) -> 2019-07-02 | C149: =IF(A149>$A$8,"",OFFSET(InputPriceData!G$15,CalculationsAndCharts!$A149+$A$11,IF($C$5,8,0),1,1)) -> 61504500 | D149: =IF(A149>$A$8,"",OFFSET(InputPriceData!C$15,CalculationsAndCharts!$A149+$A$11,IF($C$5,8,0),1,1)) -> 294.25 | E149: =IF(A149>$A$8,"",OFFSET(InputPriceData!D$15,CalculationsAndCharts!$A149+$A$11,IF($C$5,8,0),1,1)) -> 295.13 | F149: =IF(A149>$A$8,"",OFFSET(InputPriceData!E$15,CalculationsAndCharts!$A149+$A$11,IF($C$5,8,0),1,1)) -> 293.33 | G149: =IF(A149>$A$8,"",OFFSET(InputPriceData!F$15,CalculationsAndCharts!$A149+$A$11,IF($C$5,8,0),1,1)) -> 295.07 | H149: 292.1577642 | I149: -0.8997243115 | J149: -3.282818413 | K149: 7.49761649 | L149: -1.19890632 | M149: 6.164286858 | N149: 38.82733816 | O149: 0.9892681605 | AP149: 61504500
A150: 118 | B150: =IF(A150>$A$8,"",OFFSET(InputPriceData!B$15,$A150+$A$11,0,1,1)) -> 2019-07-01 | C150: =IF(A150>$A$8,"",OFFSET(InputPriceData!G$15,CalculationsAndCharts!$A150+$A$11,IF($C$5,8,0),1,1)) -> 79107500 | D150: =IF(A150>$A$8,"",OFFSET(InputPriceData!C$15,CalculationsAndCharts!$A150+$A$11,IF($C$5,8,0),1,1)) -> 295.32 | E150: =IF(A150>$A$8,"",OFFSET(InputPriceData!D$15,CalculationsAndCharts!$A150+$A$11,IF($C$5,8,0),1,1)) -> 295.56 | F150: =IF(A150>$A$8,"",OFFSET(InputPriceData!E$15,CalculationsAndCharts!$A150+$A$11,IF($C$5,8,0),1,1)) -> 292.98 | G150: =IF(A150>$A$8,"",OFFSET(InputPriceData!F$15,CalculationsAndCharts!$A150+$A$11,IF($C$5,8,0),1,1)) -> 294.3 | H150: 290.9996676 | I150: -0.811049853 | J150: -2.698783366 | K150: 7.360979814 | L150: -0.994718537 | M150: 5.817240091 | N150: 38.8618759 | O150: 0.933157838 | AQ150: 79107500
A151: 119 | B151: =IF(A151>$A$8,"",OFFSET(InputPriceData!B$15,$A151+$A$11,0,1,1)) -> 2019-06-28 | C151: =IF(A151>$A$8,"",OFFSET(InputPriceData!G$15,CalculationsAndCharts!$A151+$A$11,IF($C$5,8,0),1,1)) -> 59350900 | D151: =IF(A151>$A$8,"",OFFSET(InputPriceData!C$15,CalculationsAndCharts!$A151+$A$11,IF($C$5,8,0),1,1)) -> 291.24 | E151: =IF(A151>$A$8,"",OFFSET(InputPriceData!D$15,CalculationsAndCharts!$A151+$A$11,IF($C$5,8,0),1,1)) -> 292.2 | F151: =IF(A151>$A$8,"",OFFSET(InputPriceData!E$15,CalculationsAndCharts!$A151+$A$11,IF($C$5,8,0),1,1)) -> 290.67 | G151: =IF(A151>$A$8,"",OFFSET(InputPriceData!F$15,CalculationsAndCharts!$A151+$A$11,IF($C$5,8,0),1,1)) -> 291.65 | H151: 290.4521083 | I151: -0.7038958984 | J151: -1.417330221 | K151: 7.364210987 | L151: -0.5222854608 | M151: 5.973576712 | N151: 39.07110896 | O151: 0.9556669702 | AP151: 59350900
A152: 120 | B152: =IF(A152>$A$8,"",OFFSET(InputPriceData!B$15,$A152+$A$11,0,1,1)) -> 2019-06-27 | C152: =IF(A152>$A$8,"",OFFSET(InputPriceData!G$15,CalculationsAndCharts!$A152+$A$11,IF($C$5,8,0),1,1)) -> 40355200 | D152: =IF(A152>$A$8,"",OFFSET(InputPriceData!C$15,CalculationsAndCharts!$A152+$A$11,IF($C$5,8,0),1,1)) -> 289.97 | E152: =IF(A152>$A$8,"",OFFSET(InputPriceData!D$15,CalculationsAndCharts!$A152+$A$11,IF($C$5,8,0),1,1)) -> 290.72 | F152: =IF(A152>$A$8,"",OFFSET(InputPriceData!E$15,CalculationsAndCharts!$A152+$A$11,IF($C$5,8,0),1,1)) -> 289.55 | G152: =IF(A152>$A$8,"",OFFSET(InputPriceData!F$15,CalculationsAndCharts!$A152+$A$11,IF($C$5,8,0),1,1)) -> 290.16 | H152: 290.6735393 | I152: -0.6453025009 | J152: 0.06463399718 | K152: 7.587352072 | L152: 0.02346474811 | M152: 6.840310257 | N152: 39.21225439 | O152: 1.092357751 | AP152: 40355200
A153: 121 | B153: =IF(A153>$A$8,"",OFFSET(InputPriceData!B$15,$A153+$A$11,0,1,1)) -> 2019-06-26 | C153: =IF(A153>$A$8,"",OFFSET(InputPriceData!G$15,CalculationsAndCharts!$A153+$A$11,IF($C$5,8,0),1,1)) -> 51584900 | D153: =IF(A153>$A$8,"",OFFSET(InputPriceData!C$15,CalculationsAndCharts!$A153+$A$11,IF($C$5,8,0),1,1)) -> 290.41 | E153: =IF(A153>$A$8,"",OFFSET(InputPriceData!D$15,CalculationsAndCharts!$A153+$A$11,IF($C$5,8,0),1,1)) -> 290.97 | F153: =IF(A153>$A$8,"",OFFSET(InputPriceData!E$15,CalculationsAndCharts!$A153+$A$11,IF($C$5,8,0),1,1)) -> 289.02 | G153: =IF(A153>$A$8,"",OFFSET(InputPriceData!F$15,CalculationsAndCharts!$A153+$A$11,IF($C$5,8,0),1,1)) -> 289.13 | H153: 291.3543677 | I153: -0.6092839549 | J153: 1.732941054 | K153: 7.903317677 | L153: 0.6164233354 | M153: 8.130422581 | N153: 38.89652147 | O153: 1.303640178 | AQ153: 51584900
A154: 122 | B154: =IF(A154>$A$8,"",OFFSET(InputPriceData!B$15,$A154+$A$11,0,1,1)) -> 2019-06-25 | C154: =IF(A154>$A$8,"",OFFSET(InputPriceData!G$15,CalculationsAndCharts!$A154+$A$11,IF($C$5,8,0),1,1)) -> 82028700 | D154: =IF(A154>$A$8,"",OFFSET(InputPriceData!C$15,CalculationsAndCharts!$A154+$A$11,IF($C$5,8,0),1,1)) -> 292.35 | E154: =IF(A154>$A$8,"",OFFSET(InputPriceData!D$15,CalculationsAndCharts!$A154+$A$11,IF($C$5,8,0),1,1)) -> 292.38 | F154: =IF(A154>$A$8,"",OFFSET(InputPriceData!E$15,CalculationsAndCharts!$A154+$A$11,IF($C$5,8,0),1,1)) -> 289.3 | G154: =IF(A154>$A$8,"",OFFSET(InputPriceData!F$15,CalculationsAndCharts!$A154+$A$11,IF($C$5,8,0),1,1)) -> 289.42 | H154: 291.9576489 | I154: -0.5658488423 | J154: 3.358139728 | K154: 8.107494051 | L154: 1.179384575 | M154: 9.299552572 | N154: 37.76288606 | O154: 1.513315446 | AQ154: 82028700
A155: 123 | B155: =IF(A155>$A$8,"",OFFSET(InputPriceData!B$15,$A155+$A$11,0,1,1)) -> 2019-06-24 | C155: =IF(A155>$A$8,"",OFFSET(InputPriceData!G$15,CalculationsAndCharts!$A155+$A$11,IF($C$5,8,0),1,1)) -> 47582700 | D155: =IF(A155>$A$8,"",OFFSET(InputPriceData!C$15,CalculationsAndCharts!$A155+$A$11,IF($C$5,8,0),1,1)) -> 292.88 | E155: =IF(A155>$A$8,"",OFFSET(InputPriceData!D$15,CalculationsAndCharts!$A155+$A$11,IF($C$5,8,0),1,1)) -> 293.23 | F155: =IF(A155>$A$8,"",OFFSET(InputPriceData!E$15,CalculationsAndCharts!$A155+$A$11,IF($C$5,8,0),1,1)) -> 292.12 | G155: =IF(A155>$A$8,"",OFFSET(InputPriceData!F$15,CalculationsAndCharts!$A155+$A$11,IF($C$5,8,0),1,1)) -> 292.29 | H155: 291.7733728 | I155: -0.5026490925 | J155: 4.340110138 | K155: 7.975427035 | L155: 1.536822738 | M155: 9.617925609 | N155: 35.7329364 | O155: 1.608966717 | AQ155: 47582700
A156: 124 | B156: =IF(A156>$A$8,"",OFFSET(InputPriceData!B$15,$A156+$A$11,0,1,1)) -> 2019-06-21 | C156: =IF(A156>$A$8,"",OFFSET(InputPriceData!G$15,CalculationsAndCharts!$A156+$A$11,IF($C$5,8,0),1,1)) -> 83309500 | D156: =IF(A156>$A$8,"",OFFSET(InputPriceData!C$15,CalculationsAndCharts!$A156+$A$11,IF($C$5,8,0),1,1)) -> 292.78 | E156: =IF(A156>$A$8,"",OFFSET(InputPriceData!D$15,CalculationsAndCharts!$A156+$A$11,IF($C$5,8,0),1,1)) -> 294.16 | F156: =IF(A156>$A$8,"",OFFSET(InputPriceData!E$15,CalculationsAndCharts!$A156+$A$11,IF($C$5,8,0),1,1)) -> 292.41 | G156: =IF(A156>$A$8,"",OFFSET(InputPriceData!F$15,CalculationsAndCharts!$A156+$A$11,IF($C$5,8,0),1,1)) -> 292.65 | H156: 290.7601153 | I156: -0.4101353358 | J156: 4.708382443 | K156: 7.522879994 | L156: 1.716641726 | M156: 9.014803468 | N156: 33.36745487 | O156: 1.56061121 | AQ156: 83309500
A157: 125 | B157: =IF(A157>$A$8,"",OFFSET(InputPriceData!B$15,$A157+$A$11,0,1,1)) -> 2019-06-20 | C157: =IF(A157>$A$8,"",OFFSET(InputPriceData!G$15,CalculationsAndCharts!$A157+$A$11,IF($C$5,8,0),1,1)) -> 116570000 | D157: =IF(A157>$A$8,"",OFFSET(InputPriceData!C$15,CalculationsAndCharts!$A157+$A$11,IF($C$5,8,0),1,1)) -> 293.25 | E157: =IF(A157>$A$8,"",OFFSET(InputPriceData!D$15,CalculationsAndCharts!$A157+$A$11,IF($C$5,8,0),1,1)) -> 293.52 | F157: =IF(A157>$A$8,"",OFFSET(InputPriceData!E$15,CalculationsAndCharts!$A157+$A$11,IF($C$5,8,0),1,1)) -> 290.37 | G157: =IF(A157>$A$8,"",OFFSET(InputPriceData!F$15,CalculationsAndCharts!$A157+$A$11,IF($C$5,8,0),1,1)) -> 293.07 | H157: 289.3489043 | I157: -0.3226745179 | J157: 4.538184497 | K157: 6.912630609 | L157: 1.726078221 | M157: 7.926266935 | N157: 31.37165376 | O157: 1.415141892 | AQ157: 116570000
A158: 126 | B158: =IF(A158>$A$8,"",OFFSET(InputPriceData!B$15,$A158+$A$11,0,1,1)) -> 2019-06-19 | C158: =IF(A158>$A$8,"",OFFSET(InputPriceData!G$15,CalculationsAndCharts!$A158+$A$11,IF($C$5,8,0),1,1)) -> 78674400 | D158: =IF(A158>$A$8,"",OFFSET(InputPriceData!C$15,CalculationsAndCharts!$A158+$A$11,IF($C$5,8,0),1,1)) -> 289.8 | E158: =IF(A158>$A$8,"",OFFSET(InputPriceData!D$15,CalculationsAndCharts!$A158+$A$11,IF($C$5,8,0),1,1)) -> 290.89 | F158: =IF(A158>$A$8,"",OFFSET(InputPriceData!E$15,CalculationsAndCharts!$A158+$A$11,IF($C$5,8,0),1,1)) -> 288.73 | G158: =IF(A158>$A$8,"",OFFSET(InputPriceData!F$15,CalculationsAndCharts!$A158+$A$11,IF($C$5,8,0),1,1)) -> 290.3 | H158: 288.0787025 | I158: -0.2699392089 | J158: 4.091642666 | K158: 6.342526946 | L158: 1.624675151 | M158: 6.926004359 | N158: 30.06106818 | O158: 1.263224547 | AP158: 78674400
A159: 127 | B159: =IF(A159>$A$8,"",OFFSET(InputPriceData!B$15,$A159+$A$11,0,1,1)) -> 2019-06-18 | C159: =IF(A159>$A$8,"",OFFSET(InputPriceData!G$15,CalculationsAndCharts!$A159+$A$11,IF($C$5,8,0),1,1)) -> 85434800 | D159: =IF(A159>$A$8,"",OFFSET(InputPriceData!C$15,CalculationsAndCharts!$A159+$A$11,IF($C$5,8,0),1,1)) -> 288.65 | E159: =IF(A159>$A$8,"",OFFSET(InputPriceData!D$15,CalculationsAndCharts!$A159+$A$11,IF($C$5,8,0),1,1)) -> 290.81 | F159: =IF(A159>$A$8,"",OFFSET(InputPriceData!E$15,CalculationsAndCharts!$A159+$A$11,IF($C$5,8,0),1,1)) -> 288.25 | G159: =IF(A159>$A$8,"",OFFSET(InputPriceData!F$15,CalculationsAndCharts!$A159+$A$11,IF($C$5,8,0),1,1)) -> 289.65 | H159: 287.2099348 | I159: -0.2313082999 | J159: 3.859807835 | K159: 5.909234748 | L159: 1.587815591 | M159: 6.288544984 | N159: 29.31488201 | O159: 1.161464918 | AP159: 85434800
A160: 128 | B160: =IF(A160>$A$8,"",OFFSET(InputPriceData!B$15,$A160+$A$11,0,1,1)) -> 2019-06-17 | C160: =IF(A160>$A$8,"",OFFSET(InputPriceData!G$15,CalculationsAndCharts!$A160+$A$11,IF($C$5,8,0),1,1)) -> 39205700 | D160: =IF(A160>$A$8,"",OFFSET(InputPriceData!C$15,CalculationsAndCharts!$A160+$A$11,IF($C$5,8,0),1,1)) -> 286.79 | E160: =IF(A160>$A$8,"",OFFSET(InputPriceData!D$15,CalculationsAndCharts!$A160+$A$11,IF($C$5,8,0),1,1)) -> 287.49 | F160: =IF(A160>$A$8,"",OFFSET(InputPriceData!E$15,CalculationsAndCharts!$A160+$A$11,IF($C$5,8,0),1,1)) -> 286.46 | G160: =IF(A160>$A$8,"",OFFSET(InputPriceData!F$15,CalculationsAndCharts!$A160+$A$11,IF($C$5,8,0),1,1)) -> 286.65 | H160: 286.7994467 | I160: -0.2236655284 | J160: 3.753234379 | K160: 5.534698007 | L160: 1.595360082 | M160: 6.101722428 | N160: 28.88859384 | O160: 1.13524408 | AQ160: 39205700
A161: 129 | B161: =IF(A161>$A$8,"",OFFSET(InputPriceData!B$15,$A161+$A$11,0,1,1)) -> 2019-06-14 | C161: =IF(A161>$A$8,"",OFFSET(InputPriceData!G$15,CalculationsAndCharts!$A161+$A$11,IF($C$5,8,0),1,1)) -> 52314300 | D161: =IF(A161>$A$8,"",OFFSET(InputPriceData!C$15,CalculationsAndCharts!$A161+$A$11,IF($C$5,8,0),1,1)) -> 286.54 | E161: =IF(A161>$A$8,"",OFFSET(InputPriceData!D$15,CalculationsAndCharts!$A161+$A$11,IF($C$5,8,0),1,1)) -> 287.2 | F161: =IF(A161>$A$8,"",OFFSET(InputPriceData!E$15,CalculationsAndCharts!$A161+$A$11,IF($C$5,8,0),1,1)) -> 285.69 | G161: =IF(A161>$A$8,"",OFFSET(InputPriceData!F$15,CalculationsAndCharts!$A161+$A$11,IF($C$5,8,0),1,1)) -> 286.54 | H161: =IF(A161>LogicallyAvailableRows-1,0,$D$20*(G161+G162)/2+$D$21*H162+$D$22*H163) -> 286.6326195 | I161: -0.2500637705 | J161: =($A$16*$H161+$B$23*I161-SUM(OFFSET($H161,1,0,$A$16,1)))/$A$16 -> 3.559289329 | K161: 5.178361745 | L161: =IF(A161>LogicallyAvailableRows-1,0,J161/SQRT(K161)) -> 1.564109305 | M161: =($A$16*$H161-SUM(OFFSET($H161,1,0,$A$16,1)))/$A$16 -> 6.184958919 | N161: 28.54099289 | O161: =IF(A161>LogicallyAvailableRows-1,0,M161/SQRT(N161)) -> 1.157716654 | AP161: 52314300
A162: 130 | B162: =IF(A162>$A$8,"",OFFSET(InputPriceData!B$15,$A162+$A$11,0,1,1)) -> 2019-06-13 | C162: =IF(A162>$A$8,"",OFFSET(InputPriceData!G$15,CalculationsAndCharts!$A162+$A$11,IF($C$5,8,0),1,1)) -> 48945200 | D162: =IF(A162>$A$8,"",OFFSET(InputPriceData!C$15,CalculationsAndCharts!$A162+$A$11,IF($C$5,8,0),1,1)) -> 286.68 | E162: =IF(A162>$A$8,"",OFFSET(InputPriceData!D$15,CalculationsAndCharts!$A162+$A$11,IF($C$5,8,0),1,1)) -> 287.25 | F162: =IF(A162>$A$8,"",OFFSET(InputPriceData!E$15,CalculationsAndCharts!$A162+$A$11,IF($C$5,8,0),1,1)) -> 285.9 | G162: =IF(A162>$A$8,"",OFFSET(InputPriceData!F$15,CalculationsAndCharts!$A162+$A$11,IF($C$5,8,0),1,1)) -> 286.85 | H162: 286.2038525 | I162: =(OFFSET(H162,$A$16,0,1,1)-H162)/$A$16 -> -0.2380447 | J162: 3.494767301 | K162: =0.04*$J162*$J162+0.96*K163 -> 4.866270962 | L162: 1.584236882 | M162: 5.994236651 | N162: =0.04*$M162*$M162+0.96*N163 -> 28.13629606 | O162: 1.130057188 | P162: =IF(AND($R$4=1,$L162>=0),$BB$34,NA()) ->  | Q162: =IF(AND($R$4=1,$L162<0),$BB$33,NA()) ->  | R162: =IF(AND($R$4=2,$O162>=0),$AX$34,NA()) ->  | S162: =IF(AND($R$4=2,$O162<0),$AX$33,NA()) ->  | T162: =IF(OR(AND($R$4=1,$L162>=0),AND($R$4=2,$O162>=0)),$AZ$34,NA()) ->  | U162: =IF(OR(AND($R$4=1,$L162<0),AND($R$4=2,$O162<0)),$AZ$34,NA()) ->  | AP162: 48945200
A163: 131 | B163: =IF(A163>$A$8,"",OFFSET(InputPriceData!B$15,$A163+$A$11,0,1,1)) -> 2019-06-12 | C163: =IF(A163>$A$8,"",OFFSET(InputPriceData!G$15,CalculationsAndCharts!$A163+$A$11,IF($C$5,8,0),1,1)) -> 46984700 | D163: =IF(A163>$A$8,"",OFFSET(InputPriceData!C$15,CalculationsAndCharts!$A163+$A$11,IF($C$5,8,0),1,1)) -> 285.92 | E163: =IF(A163>$A$8,"",OFFSET(InputPriceData!D$15,CalculationsAndCharts!$A163+$A$11,IF($C$5,8,0),1,1)) -> 286.54 | F163: =IF(A163>$A$8,"",OFFSET(InputPriceData!E$15,CalculationsAndCharts!$A163+$A$11,IF($C$5,8,0),1,1)) -> 285.11 | G163: =IF(A163>$A$8,"",OFFSET(InputPriceData!F$15,CalculationsAndCharts!$A163+$A$11,IF($C$5,8,0),1,1)) -> 285.67 | H163: 285.463655 | I163: -0.1549421801 | J163: 3.782088428 | K163: 4.560140648 | L163: 1.771097866 | M163: 5.408981318 | N163: 27.81152202 | O163: 1.025659255 | AQ163: 46984700
A164: 132 | B164: =IF(A164>$A$8,"",OFFSET(InputPriceData!B$15,$A164+$A$11,0,1,1)) -> 2019-06-11 | C164: =IF(A164>$A$8,"",OFFSET(InputPriceData!G$15,CalculationsAndCharts!$A164+$A$11,IF($C$5,8,0),1,1)) -> 58641300 | D164: =IF(A164>$A$8,"",OFFSET(InputPriceData!C$15,CalculationsAndCharts!$A164+$A$11,IF($C$5,8,0),1,1)) -> 288.25 | E164: =IF(A164>$A$8,"",OFFSET(InputPriceData!D$15,CalculationsAndCharts!$A164+$A$11,IF($C$5,8,0),1,1)) -> 288.66 | F164: =IF(A164>$A$8,"",OFFSET(InputPriceData!E$15,CalculationsAndCharts!$A164+$A$11,IF($C$5,8,0),1,1)) -> 285.47 | G164: =IF(A164>$A$8,"",OFFSET(InputPriceData!F$15,CalculationsAndCharts!$A164+$A$11,IF($C$5,8,0),1,1)) -> 286.18 | H164: 284.1541002 | I164: -0.002317810496 | J164: 4.077407395 | K164: 4.154138472 | L164: 2.000523336 | M164: 4.101744405 | N164: 27.75129049 | O164: 0.7786225954 | AQ164: 58641300
A165: 133 | B165: =IF(A165>$A$8,"",OFFSET(InputPriceData!B$15,$A165+$A$11,0,1,1)) -> 2019-06-10 | C165: =IF(A165>$A$8,"",OFFSET(InputPriceData!G$15,CalculationsAndCharts!$A165+$A$11,IF($C$5,8,0),1,1)) -> 60799100 | D165: =IF(A165>$A$8,"",OFFSET(InputPriceData!C$15,CalculationsAndCharts!$A165+$A$11,IF($C$5,8,0),1,1)) -> 286.65 | E165: =IF(A165>$A$8,"",OFFSET(InputPriceData!D$15,CalculationsAndCharts!$A165+$A$11,IF($C$5,8,0),1,1)) -> 288.08 | F165: =IF(A165>$A$8,"",OFFSET(InputPriceData!E$15,CalculationsAndCharts!$A165+$A$11,IF($C$5,8,0),1,1)) -> 286.15 | G165: =IF(A165>$A$8,"",OFFSET(InputPriceData!F$15,CalculationsAndCharts!$A165+$A$11,IF($C$5,8,0),1,1)) -> 286.25 | H165: 282.0600422 | I165: 0.1717052132 | J165: 3.638885847 | K165: 3.634508781 | L165: 1.908734708 | M165: 1.835981108 | N165: 28.20658146 | O165: 0.3456949067 | AQ165: 60799100
A166: 134 | B166: =IF(A166>$A$8,"",OFFSET(InputPriceData!B$15,$A166+$A$11,0,1,1)) -> 2019-06-07 | C166: =IF(A166>$A$8,"",OFFSET(InputPriceData!G$15,CalculationsAndCharts!$A166+$A$11,IF($C$5,8,0),1,1)) -> 74272200 | D166: =IF(A166>$A$8,"",OFFSET(InputPriceData!C$15,CalculationsAndCharts!$A166+$A$11,IF($C$5,8,0),1,1)) -> 283.24 | E166: =IF(A166>$A$8,"",OFFSET(InputPriceData!D$15,CalculationsAndCharts!$A166+$A$11,IF($C$5,8,0),1,1)) -> 286.13 | F166: =IF(A166>$A$8,"",OFFSET(InputPriceData!E$15,CalculationsAndCharts!$A166+$A$11,IF($C$5,8,0),1,1)) -> 283.05 | G166: =IF(A166>$A$8,"",OFFSET(InputPriceData!F$15,CalculationsAndCharts!$A166+$A$11,IF($C$5,8,0),1,1)) -> 284.94 | H166: 279.5258773 | I166: 0.3534284941 | J166: 2.659386974 | K166: 3.234217888 | L166: 1.478757294 | M166: -1.051612214 | N166: 29.24140458 | O166: -0.1944717431 | AP166: 74272200
A167: 135 | B167: =IF(A167>$A$8,"",OFFSET(InputPriceData!B$15,$A167+$A$11,0,1,1)) -> 2019-06-06 | C167: =IF(A167>$A$8,"",OFFSET(InputPriceData!G$15,CalculationsAndCharts!$A167+$A$11,IF($C$5,8,0),1,1)) -> 69430400 | D167: =IF(A167>$A$8,"",OFFSET(InputPriceData!C$15,CalculationsAndCharts!$A167+$A$11,IF($C$5,8,0),1,1)) -> 280.62 | E167: =IF(A167>$A$8,"",OFFSET(InputPriceData!D$15,CalculationsAndCharts!$A167+$A$11,IF($C$5,8,0),1,1)) -> 282.86 | F167: =IF(A167>$A$8,"",OFFSET(InputPriceData!E$15,CalculationsAndCharts!$A167+$A$11,IF($C$5,8,0),1,1)) -> 279.91 | G167: =IF(A167>$A$8,"",OFFSET(InputPriceData!F$15,CalculationsAndCharts!$A167+$A$11,IF($C$5,8,0),1,1)) -> 282.12 | H167: 277.0997514 | I167: 0.5494280906 | J167: 1.741828704 | K167: 3.074296172 | L167: 0.9934192948 | M167: -4.027166248 | N167: 30.41371776 | O167: -0.7302386284 | AP167: 69430400
A168: 136 | B168: =IF(A168>$A$8,"",OFFSET(InputPriceData!B$15,$A168+$A$11,0,1,1)) -> 2019-06-05 | C168: =IF(A168>$A$8,"",OFFSET(InputPriceData!G$15,CalculationsAndCharts!$A168+$A$11,IF($C$5,8,0),1,1)) -> 71169700 | D168: =IF(A168>$A$8,"",OFFSET(InputPriceData!C$15,CalculationsAndCharts!$A168+$A$11,IF($C$5,8,0),1,1)) -> 279.67 | E168: =IF(A168>$A$8,"",OFFSET(InputPriceData!D$15,CalculationsAndCharts!$A168+$A$11,IF($C$5,8,0),1,1)) -> 280.33 | F168: =IF(A168>$A$8,"",OFFSET(InputPriceData!E$15,CalculationsAndCharts!$A168+$A$11,IF($C$5,8,0),1,1)) -> 277.68 | G168: =IF(A168>$A$8,"",OFFSET(InputPriceData!F$15,CalculationsAndCharts!$A168+$A$11,IF($C$5,8,0),1,1)) -> 280.3 | H168: 275.1585625 | I168: 0.7142845122 | J168: 0.8173477165 | K168: 3.075976545 | L168: 0.4660315766 | M168: -6.682639661 | N168: 31.00520316 | O168: -1.200136801 | AP168: 71169700
A169: 137 | B169: =IF(A169>$A$8,"",OFFSET(InputPriceData!B$15,$A169+$A$11,0,1,1)) -> 2019-06-04 | C169: =IF(A169>$A$8,"",OFFSET(InputPriceData!G$15,CalculationsAndCharts!$A169+$A$11,IF($C$5,8,0),1,1)) -> 77231900 | D169: =IF(A169>$A$8,"",OFFSET(InputPriceData!C$15,CalculationsAndCharts!$A169+$A$11,IF($C$5,8,0),1,1)) -> 274.51 | E169: =IF(A169>$A$8,"",OFFSET(InputPriceData!D$15,CalculationsAndCharts!$A169+$A$11,IF($C$5,8,0),1,1)) -> 278.04 | F169: =IF(A169>$A$8,"",OFFSET(InputPriceData!E$15,CalculationsAndCharts!$A169+$A$11,IF($C$5,8,0),1,1)) -> 274.02 | G169: =IF(A169>$A$8,"",OFFSET(InputPriceData!F$15,CalculationsAndCharts!$A169+$A$11,IF($C$5,8,0),1,1)) -> 277.89 | H169: 274.163278 | I169: 0.7927391509 | J169: -0.1469022552 | K169: 3.176306514 | L169: -0.08242657614 | M169: -8.47066334 | N169: 30.43635026 | O169: -1.53539858 | AP169: 77231900
A170: 138 | B170: =IF(A170>$A$8,"",OFFSET(InputPriceData!B$15,$A170+$A$11,0,1,1)) -> 2019-06-03 | C170: =IF(A170>$A$8,"",OFFSET(InputPriceData!G$15,CalculationsAndCharts!$A170+$A$11,IF($C$5,8,0),1,1)) -> 96428000 | D170: =IF(A170>$A$8,"",OFFSET(InputPriceData!C$15,CalculationsAndCharts!$A170+$A$11,IF($C$5,8,0),1,1)) -> 272.72 | E170: =IF(A170>$A$8,"",OFFSET(InputPriceData!D$15,CalculationsAndCharts!$A170+$A$11,IF($C$5,8,0),1,1)) -> 273.95 | F170: =IF(A170>$A$8,"",OFFSET(InputPriceData!E$15,CalculationsAndCharts!$A170+$A$11,IF($C$5,8,0),1,1)) -> 270.52 | G170: =IF(A170>$A$8,"",OFFSET(InputPriceData!F$15,CalculationsAndCharts!$A170+$A$11,IF($C$5,8,0),1,1)) -> 271.99 | H170: 274.7786705 | I170: 0.7585458397 | J170: -0.6490853124 | K170: 3.30775344 | L170: -0.3568906885 | M170: -8.613816629 | N170: 28.71485913 | O170: -1.607467782 | AQ170: 96428000
A171: 139 | B171: =IF(A171>$A$8,"",OFFSET(InputPriceData!B$15,$A171+$A$11,0,1,1)) -> 2019-05-31 | C171: =IF(A171>$A$8,"",OFFSET(InputPriceData!G$15,CalculationsAndCharts!$A171+$A$11,IF($C$5,8,0),1,1)) -> 86862800 | D171: =IF(A171>$A$8,"",OFFSET(InputPriceData!C$15,CalculationsAndCharts!$A171+$A$11,IF($C$5,8,0),1,1)) -> 273.6 | E171: =IF(A171>$A$8,"",OFFSET(InputPriceData!D$15,CalculationsAndCharts!$A171+$A$11,IF($C$5,8,0),1,1)) -> 274.51 | F171: =IF(A171>$A$8,"",OFFSET(InputPriceData!E$15,CalculationsAndCharts!$A171+$A$11,IF($C$5,8,0),1,1)) -> 272.65 | G171: =IF(A171>$A$8,"",OFFSET(InputPriceData!F$15,CalculationsAndCharts!$A171+$A$11,IF($C$5,8,0),1,1)) -> 272.68 | H171: 276.3741903 | I171: 0.6923071662 | J171: -0.4413787355 | K171: 3.428021844 | L171: -0.2383908685 | M171: -7.71060398 | N171: 26.81973505 | O171: -1.488885007 | AQ171: 86862800
A172: 140 | B172: =IF(A172>$A$8,"",OFFSET(InputPriceData!B$15,$A172+$A$11,0,1,1)) -> 2019-05-30 | C172: =IF(A172>$A$8,"",OFFSET(InputPriceData!G$15,CalculationsAndCharts!$A172+$A$11,IF($C$5,8,0),1,1)) -> 62523800 | D172: =IF(A172>$A$8,"",OFFSET(InputPriceData!C$15,CalculationsAndCharts!$A172+$A$11,IF($C$5,8,0),1,1)) -> 276.48 | E172: =IF(A172>$A$8,"",OFFSET(InputPriceData!D$15,CalculationsAndCharts!$A172+$A$11,IF($C$5,8,0),1,1)) -> 277.4 | F172: =IF(A172>$A$8,"",OFFSET(InputPriceData!E$15,CalculationsAndCharts!$A172+$A$11,IF($C$5,8,0),1,1)) -> 275.19 | G172: =IF(A172>$A$8,"",OFFSET(InputPriceData!F$15,CalculationsAndCharts!$A172+$A$11,IF($C$5,8,0),1,1)) -> 276.4 | H172: 277.7674893 | I172: 0.6441597941 | J172: -0.1977869432 | K172: 3.562738788 | L172: -0.1047865706 | M172: -6.961464781 | N172: 25.45999844 | O172: -1.379658001 | AQ172: 62523800
A173: 141 | B173: =IF(A173>$A$8,"",OFFSET(InputPriceData!B$15,$A173+$A$11,0,1,1)) -> 2019-05-29 | C173: =IF(A173>$A$8,"",OFFSET(InputPriceData!G$15,CalculationsAndCharts!$A173+$A$11,IF($C$5,8,0),1,1)) -> 104972900 | D173: =IF(A173>$A$8,"",OFFSET(InputPriceData!C$15,CalculationsAndCharts!$A173+$A$11,IF($C$5,8,0),1,1)) -> 276.28 | E173: =IF(A173>$A$8,"",OFFSET(InputPriceData!D$15,CalculationsAndCharts!$A173+$A$11,IF($C$5,8,0),1,1)) -> 276.73 | F173: =IF(A173>$A$8,"",OFFSET(InputPriceData!E$15,CalculationsAndCharts!$A173+$A$11,IF($C$5,8,0),1,1)) -> 274.1 | G173: =IF(A173>$A$8,"",OFFSET(InputPriceData!F$15,CalculationsAndCharts!$A173+$A$11,IF($C$5,8,0),1,1)) -> 275.65 | H173: 279.1686886 | I173: 0.5679267829 | J173: -0.1649610537 | K173: 3.709556251 | L173: -0.08564863412 | M173: -6.128192274 | N173: 24.50158205 | O173: -1.238041832 | AQ173: 104972900
A174: 142 | B174: =IF(A174>$A$8,"",OFFSET(InputPriceData!B$15,$A174+$A$11,0,1,1)) -> 2019-05-28 | C174: =IF(A174>$A$8,"",OFFSET(InputPriceData!G$15,CalculationsAndCharts!$A174+$A$11,IF($C$5,8,0),1,1)) -> 70029400 | D174: =IF(A174>$A$8,"",OFFSET(InputPriceData!C$15,CalculationsAndCharts!$A174+$A$11,IF($C$5,8,0),1,1)) -> 280.42 | E174: =IF(A174>$A$8,"",OFFSET(InputPriceData!D$15,CalculationsAndCharts!$A174+$A$11,IF($C$5,8,0),1,1)) -> 281.47 | F174: =IF(A174>$A$8,"",OFFSET(InputPriceData!E$15,CalculationsAndCharts!$A174+$A$11,IF($C$5,8,0),1,1)) -> 277.49 | G174: =IF(A174>$A$8,"",OFFSET(InputPriceData!F$15,CalculationsAndCharts!$A174+$A$11,IF($C$5,8,0),1,1)) -> 277.51 | H174: 280.640672 | I174: 0.4678644213 | J174: -0.2114968707 | K174: 3.862987256 | L174: -0.1076074422 | M174: -5.124073294 | N174: 23.95770044 | O174: -1.046870033 | AQ174: 70029400
A175: 143 | B175: =IF(A175>$A$8,"",OFFSET(InputPriceData!B$15,$A175+$A$11,0,1,1)) -> 2019-05-24 | C175: =IF(A175>$A$8,"",OFFSET(InputPriceData!G$15,CalculationsAndCharts!$A175+$A$11,IF($C$5,8,0),1,1)) -> 55268100 | D175: =IF(A175>$A$8,"",OFFSET(InputPriceData!C$15,CalculationsAndCharts!$A175+$A$11,IF($C$5,8,0),1,1)) -> 281.07 | E175: =IF(A175>$A$8,"",OFFSET(InputPriceData!D$15,CalculationsAndCharts!$A175+$A$11,IF($C$5,8,0),1,1)) -> 281.52 | F175: =IF(A175>$A$8,"",OFFSET(InputPriceData!E$15,CalculationsAndCharts!$A175+$A$11,IF($C$5,8,0),1,1)) -> 279.43 | G175: =IF(A175>$A$8,"",OFFSET(InputPriceData!F$15,CalculationsAndCharts!$A175+$A$11,IF($C$5,8,0),1,1)) -> 280.12 | H175: 281.720391 | I175: 0.3857583821 | J175: -0.3796497236 | K175: 4.022081269 | L175: -0.1893030744 | M175: -4.430112736 | N175: 23.86193267 | O175: -0.9069053632 | AQ175: 55268100
A176: 144 | B176: =IF(A176>$A$8,"",OFFSET(InputPriceData!B$15,$A176+$A$11,0,1,1)) -> 2019-05-23 | C176: =IF(A176>$A$8,"",OFFSET(InputPriceData!G$15,CalculationsAndCharts!$A176+$A$11,IF($C$5,8,0),1,1)) -> 98733800 | D176: =IF(A176>$A$8,"",OFFSET(InputPriceData!C$15,CalculationsAndCharts!$A176+$A$11,IF($C$5,8,0),1,1)) -> 280.49 | E176: =IF(A176>$A$8,"",OFFSET(InputPriceData!D$15,CalculationsAndCharts!$A176+$A$11,IF($C$5,8,0),1,1)) -> 280.54 | F176: =IF(A176>$A$8,"",OFFSET(InputPriceData!E$15,CalculationsAndCharts!$A176+$A$11,IF($C$5,8,0),1,1)) -> 277.93 | G176: =IF(A176>$A$8,"",OFFSET(InputPriceData!F$15,CalculationsAndCharts!$A176+$A$11,IF($C$5,8,0),1,1)) -> 279.48 | H176: 282.5574086 | I176: 0.3198337834 | J176: -0.5546741364 | K176: 4.183662409 | L176: -0.2711812132 | M176: -3.912928862 | N176: 24.03843407 | O176: -0.7980844808 | AQ176: 98733800
A177: 145 | B177: =IF(A177>$A$8,"",OFFSET(InputPriceData!B$15,$A177+$A$11,0,1,1)) -> 2019-05-22 | C177: =IF(A177>$A$8,"",OFFSET(InputPriceData!G$15,CalculationsAndCharts!$A177+$A$11,IF($C$5,8,0),1,1)) -> 49482500 | D177: =IF(A177>$A$8,"",OFFSET(InputPriceData!C$15,CalculationsAndCharts!$A177+$A$11,IF($C$5,8,0),1,1)) -> 282.76 | E177: =IF(A177>$A$8,"",OFFSET(InputPriceData!D$15,CalculationsAndCharts!$A177+$A$11,IF($C$5,8,0),1,1)) -> 283.99 | F177: =IF(A177>$A$8,"",OFFSET(InputPriceData!E$15,CalculationsAndCharts!$A177+$A$11,IF($C$5,8,0),1,1)) -> 282.42 | G177: =IF(A177>$A$8,"",OFFSET(InputPriceData!F$15,CalculationsAndCharts!$A177+$A$11,IF($C$5,8,0),1,1)) -> 282.94 | H177: 282.8954139 | I177: 0.2758186703 | J177: -0.9546461869 | K177: 4.345162368 | L177: -0.4579725388 | M177: -3.850742225 | N177: 24.40207665 | O177: -0.7795268053 | AP177: 49482500
A178: 146 | B178: =IF(A178>$A$8,"",OFFSET(InputPriceData!B$15,$A178+$A$11,0,1,1)) -> 2019-05-21 | C178: =IF(A178>$A$8,"",OFFSET(InputPriceData!G$15,CalculationsAndCharts!$A178+$A$11,IF($C$5,8,0),1,1)) -> 46847100 | D178: =IF(A178>$A$8,"",OFFSET(InputPriceData!C$15,CalculationsAndCharts!$A178+$A$11,IF($C$5,8,0),1,1)) -> 283.14 | E178: =IF(A178>$A$8,"",OFFSET(InputPriceData!D$15,CalculationsAndCharts!$A178+$A$11,IF($C$5,8,0),1,1)) -> 284.23 | F178: =IF(A178>$A$8,"",OFFSET(InputPriceData!E$15,CalculationsAndCharts!$A178+$A$11,IF($C$5,8,0),1,1)) -> 282.86 | G178: =IF(A178>$A$8,"",OFFSET(InputPriceData!F$15,CalculationsAndCharts!$A178+$A$11,IF($C$5,8,0),1,1)) -> 283.81 | H178: 282.6799183 | I178: 0.2507704821 | J178: -1.683918251 | K178: 4.488237911 | L178: -0.7948461392 | M178: -4.317008312 | N178: 24.80098752 | O178: -0.8668588711 | AP178: 46847100
A179: 147 | B179: =IF(A179>$A$8,"",OFFSET(InputPriceData!B$15,$A179+$A$11,0,1,1)) -> 2019-05-20 | C179: =IF(A179>$A$8,"",OFFSET(InputPriceData!G$15,CalculationsAndCharts!$A179+$A$11,IF($C$5,8,0),1,1)) -> 62877600 | D179: =IF(A179>$A$8,"",OFFSET(InputPriceData!C$15,CalculationsAndCharts!$A179+$A$11,IF($C$5,8,0),1,1)) -> 281.39 | E179: =IF(A179>$A$8,"",OFFSET(InputPriceData!D$15,CalculationsAndCharts!$A179+$A$11,IF($C$5,8,0),1,1)) -> 283.27 | F179: =IF(A179>$A$8,"",OFFSET(InputPriceData!E$15,CalculationsAndCharts!$A179+$A$11,IF($C$5,8,0),1,1)) -> 280.45 | G179: =IF(A179>$A$8,"",OFFSET(InputPriceData!F$15,CalculationsAndCharts!$A179+$A$11,IF($C$5,8,0),1,1)) -> 281.28 | H179: 282.5837688 | I179: 0.2332470049 | J179: -2.197311261 | K179: 4.557098629 | L179: -1.029312785 | M179: -4.646404812 | N179: 25.05783864 | O179: -0.9282078572 | AQ179: 62877600
A180: 148 | B180: =IF(A180>$A$8,"",OFFSET(InputPriceData!B$15,$A180+$A$11,0,1,1)) -> 2019-05-17 | C180: =IF(A180>$A$8,"",OFFSET(InputPriceData!G$15,CalculationsAndCharts!$A180+$A$11,IF($C$5,8,0),1,1)) -> 100353000 | D180: =IF(A180>$A$8,"",OFFSET(InputPriceData!C$15,CalculationsAndCharts!$A180+$A$11,IF($C$5,8,0),1,1)) -> 282.46 | E180: =IF(A180>$A$8,"",OFFSET(InputPriceData!D$15,CalculationsAndCharts!$A180+$A$11,IF($C$5,8,0),1,1)) -> 285.88 | F180: =IF(A180>$A$8,"",OFFSET(InputPriceData!E$15,CalculationsAndCharts!$A180+$A$11,IF($C$5,8,0),1,1)) -> 282.44 | G180: =IF(A180>$A$8,"",OFFSET(InputPriceData!F$15,CalculationsAndCharts!$A180+$A$11,IF($C$5,8,0),1,1)) -> 283.15 | H180: 282.3261362 | I180: 0.2404954133 | J180: -2.619331041 | K180: 4.545803706 | L180: -1.228527975 | M180: -5.144532881 | N180: 25.20237034 | O180: -1.024767286 | AP180: 100353000
A181: 149 | B181: =IF(A181>$A$8,"",OFFSET(InputPriceData!B$15,$A181+$A$11,0,1,1)) -> 2019-05-16 | C181: =IF(A181>$A$8,"",OFFSET(InputPriceData!G$15,CalculationsAndCharts!$A181+$A$11,IF($C$5,8,0),1,1)) -> 76749600 | D181: =IF(A181>$A$8,"",OFFSET(InputPriceData!C$15,CalculationsAndCharts!$A181+$A$11,IF($C$5,8,0),1,1)) -> 283.15 | E181: =IF(A181>$A$8,"",OFFSET(InputPriceData!D$15,CalculationsAndCharts!$A181+$A$11,IF($C$5,8,0),1,1)) -> 286.49 | F181: =IF(A181>$A$8,"",OFFSET(InputPriceData!E$15,CalculationsAndCharts!$A181+$A$11,IF($C$5,8,0),1,1)) -> 283.07 | G181: =IF(A181>$A$8,"",OFFSET(InputPriceData!F$15,CalculationsAndCharts!$A181+$A$11,IF($C$5,8,0),1,1)) -> 284.99 | H181: 281.631344 | I181: 0.2701230081 | J181: -3.273156424 | K181: 4.449341565 | L181: -1.551739757 | M181: -6.109448009 | N181: 25.14971 | O181: -1.21824737 | AP181: 76749600
A182: 150 | B182: =IF(A182>$A$8,"",OFFSET(InputPriceData!B$15,$A182+$A$11,0,1,1)) -> 2019-05-15 | C182: =IF(A182>$A$8,"",OFFSET(InputPriceData!G$15,CalculationsAndCharts!$A182+$A$11,IF($C$5,8,0),1,1)) -> 73956400 | D182: =IF(A182>$A$8,"",OFFSET(InputPriceData!C$15,CalculationsAndCharts!$A182+$A$11,IF($C$5,8,0),1,1)) -> 278.94 | E182: =IF(A182>$A$8,"",OFFSET(InputPriceData!D$15,CalculationsAndCharts!$A182+$A$11,IF($C$5,8,0),1,1)) -> 283.08 | F182: =IF(A182>$A$8,"",OFFSET(InputPriceData!E$15,CalculationsAndCharts!$A182+$A$11,IF($C$5,8,0),1,1)) -> 278.71 | G182: =IF(A182>$A$8,"",OFFSET(InputPriceData!F$15,CalculationsAndCharts!$A182+$A$11,IF($C$5,8,0),1,1)) -> 282.38 | H182: 281.4429585 | I182: 0.2662268615 | J182: -3.768678383 | K182: 4.188332756 | L182: -1.84148628 | M182: -6.564060429 | N182: 24.64239146 | O182: -1.322303491 | AP182: 73956400
A183: 151 | B183: =IF(A183>$A$8,"",OFFSET(InputPriceData!B$15,$A183+$A$11,0,1,1)) -> 2019-05-14 | C183: =IF(A183>$A$8,"",OFFSET(InputPriceData!G$15,CalculationsAndCharts!$A183+$A$11,IF($C$5,8,0),1,1)) -> 77003200 | D183: =IF(A183>$A$8,"",OFFSET(InputPriceData!C$15,CalculationsAndCharts!$A183+$A$11,IF($C$5,8,0),1,1)) -> 279.34 | E183: =IF(A183>$A$8,"",OFFSET(InputPriceData!D$15,CalculationsAndCharts!$A183+$A$11,IF($C$5,8,0),1,1)) -> 282.42 | F183: =IF(A183>$A$8,"",OFFSET(InputPriceData!E$15,CalculationsAndCharts!$A183+$A$11,IF($C$5,8,0),1,1)) -> 279.2 | G183: =IF(A183>$A$8,"",OFFSET(InputPriceData!F$15,CalculationsAndCharts!$A183+$A$11,IF($C$5,8,0),1,1)) -> 280.73 | H183: 282.3648114 | I183: 0.1972226949 | J183: -3.768591942 | K183: 3.771057589 | L183: -1.940651413 | M183: -5.839430239 | N183: 23.87387072 | O183: -1.195113234 | AP183: 77003200
A184: 152 | B184: =IF(A184>$A$8,"",OFFSET(InputPriceData!B$15,$A184+$A$11,0,1,1)) -> 2019-05-13 | C184: =IF(A184>$A$8,"",OFFSET(InputPriceData!G$15,CalculationsAndCharts!$A184+$A$11,IF($C$5,8,0),1,1)) -> 127290500 | D184: =IF(A184>$A$8,"",OFFSET(InputPriceData!C$15,CalculationsAndCharts!$A184+$A$11,IF($C$5,8,0),1,1)) -> 279.76 | E184: =IF(A184>$A$8,"",OFFSET(InputPriceData!D$15,CalculationsAndCharts!$A184+$A$11,IF($C$5,8,0),1,1)) -> 280.82 | F184: =IF(A184>$A$8,"",OFFSET(InputPriceData!E$15,CalculationsAndCharts!$A184+$A$11,IF($C$5,8,0),1,1)) -> 277.29 | G184: =IF(A184>$A$8,"",OFFSET(InputPriceData!F$15,CalculationsAndCharts!$A184+$A$11,IF($C$5,8,0),1,1)) -> 278.22 | H184: 284.107744 | I184: 0.08593519579 | J184: -3.28011321 | K184: 3.336423104 | L184: -1.795759916 | M184: -4.182432766 | N184: 23.44782593 | O184: -0.8637293503 | AQ184: 127290500
A185: 153 | B185: =IF(A185>$A$8,"",OFFSET(InputPriceData!B$15,$A185+$A$11,0,1,1)) -> 2019-05-10 | C185: =IF(A185>$A$8,"",OFFSET(InputPriceData!G$15,CalculationsAndCharts!$A185+$A$11,IF($C$5,8,0),1,1)) -> 112429300 | D185: =IF(A185>$A$8,"",OFFSET(InputPriceData!C$15,CalculationsAndCharts!$A185+$A$11,IF($C$5,8,0),1,1)) -> 282.93 | E185: =IF(A185>$A$8,"",OFFSET(InputPriceData!D$15,CalculationsAndCharts!$A185+$A$11,IF($C$5,8,0),1,1)) -> 286.22 | F185: =IF(A185>$A$8,"",OFFSET(InputPriceData!E$15,CalculationsAndCharts!$A185+$A$11,IF($C$5,8,0),1,1)) -> 279.64 | G185: =IF(A185>$A$8,"",OFFSET(InputPriceData!F$15,CalculationsAndCharts!$A185+$A$11,IF($C$5,8,0),1,1)) -> 285.39 | H185: 285.4941464 | I185: 0.004342946049 | J185: -2.754772389 | K185: 3.027143122 | L185: -1.583321992 | M185: -2.800373323 | N185: 23.69595435 | O185: -0.5752794088 | AP185: 112429300
A186: 154 | B186: =IF(A186>$A$8,"",OFFSET(InputPriceData!B$15,$A186+$A$11,0,1,1)) -> 2019-05-09 | C186: =IF(A186>$A$8,"",OFFSET(InputPriceData!G$15,CalculationsAndCharts!$A186+$A$11,IF($C$5,8,0),1,1)) -> 103471100 | D186: =IF(A186>$A$8,"",OFFSET(InputPriceData!C$15,CalculationsAndCharts!$A186+$A$11,IF($C$5,8,0),1,1)) -> 282.54 | E186: =IF(A186>$A$8,"",OFFSET(InputPriceData!D$15,CalculationsAndCharts!$A186+$A$11,IF($C$5,8,0),1,1)) -> 284.62 | F186: =IF(A186>$A$8,"",OFFSET(InputPriceData!E$15,CalculationsAndCharts!$A186+$A$11,IF($C$5,8,0),1,1)) -> 280.63 | G186: =IF(A186>$A$8,"",OFFSET(InputPriceData!F$15,CalculationsAndCharts!$A186+$A$11,IF($C$5,8,0),1,1)) -> 283.96 | H186: 286.5944472 | I186: -0.05330673581 | J186: -2.206486522 | K186: 2.837075297 | L186: -1.309983567 | M186: -1.646765796 | N186: 24.35653201 | O186: -0.3336753405 | AP186: 103471100
A187: 155 | B187: =IF(A187>$A$8,"",OFFSET(InputPriceData!B$15,$A187+$A$11,0,1,1)) -> 2019-05-08 | C187: =IF(A187>$A$8,"",OFFSET(InputPriceData!G$15,CalculationsAndCharts!$A187+$A$11,IF($C$5,8,0),1,1)) -> 91568300 | D187: =IF(A187>$A$8,"",OFFSET(InputPriceData!C$15,CalculationsAndCharts!$A187+$A$11,IF($C$5,8,0),1,1)) -> 284.82 | E187: =IF(A187>$A$8,"",OFFSET(InputPriceData!D$15,CalculationsAndCharts!$A187+$A$11,IF($C$5,8,0),1,1)) -> 286.71 | F187: =IF(A187>$A$8,"",OFFSET(InputPriceData!E$15,CalculationsAndCharts!$A187+$A$11,IF($C$5,8,0),1,1)) -> 284.17 | G187: =IF(A187>$A$8,"",OFFSET(InputPriceData!F$15,CalculationsAndCharts!$A187+$A$11,IF($C$5,8,0),1,1)) -> 284.82 | H187: 288.0883132 | I187: -0.1340460874 | J187: -1.42633764 | K187: 2.752429153 | L187: -0.8597343292 | M187: -0.01885372206 | N187: 25.25839427 | O187: -0.003751407406 | AP187: 91568300
A188: 156 | B188: =IF(A188>$A$8,"",OFFSET(InputPriceData!B$15,$A188+$A$11,0,1,1)) -> 2019-05-07 | C188: =IF(A188>$A$8,"",OFFSET(InputPriceData!G$15,CalculationsAndCharts!$A188+$A$11,IF($C$5,8,0),1,1)) -> 144729900 | D188: =IF(A188>$A$8,"",OFFSET(InputPriceData!C$15,CalculationsAndCharts!$A188+$A$11,IF($C$5,8,0),1,1)) -> 287.42 | E188: =IF(A188>$A$8,"",OFFSET(InputPriceData!D$15,CalculationsAndCharts!$A188+$A$11,IF($C$5,8,0),1,1)) -> 288.07 | F188: =IF(A188>$A$8,"",OFFSET(InputPriceData!E$15,CalculationsAndCharts!$A188+$A$11,IF($C$5,8,0),1,1)) -> 283.12 | G188: =IF(A188>$A$8,"",OFFSET(InputPriceData!F$15,CalculationsAndCharts!$A188+$A$11,IF($C$5,8,0),1,1)) -> 285.22 | H188: 289.4442527 | I188: -0.2261562599 | J188: -0.8113986618 | K188: 2.782345406 | L188: -0.4864394239 | M188: 1.563242068 | N188: 26.31081256 | O188: 0.3047607989 | AQ188: 144729900
A189: 157 | B189: =IF(A189>$A$8,"",OFFSET(InputPriceData!B$15,$A189+$A$11,0,1,1)) -> 2019-05-06 | C189: =IF(A189>$A$8,"",OFFSET(InputPriceData!G$15,CalculationsAndCharts!$A189+$A$11,IF($C$5,8,0),1,1)) -> 107198100 | D189: =IF(A189>$A$8,"",OFFSET(InputPriceData!C$15,CalculationsAndCharts!$A189+$A$11,IF($C$5,8,0),1,1)) -> 286.53 | E189: =IF(A189>$A$8,"",OFFSET(InputPriceData!D$15,CalculationsAndCharts!$A189+$A$11,IF($C$5,8,0),1,1)) -> 290.55 | F189: =IF(A189>$A$8,"",OFFSET(InputPriceData!E$15,CalculationsAndCharts!$A189+$A$11,IF($C$5,8,0),1,1)) -> 286.18 | G189: =IF(A189>$A$8,"",OFFSET(InputPriceData!F$15,CalculationsAndCharts!$A189+$A$11,IF($C$5,8,0),1,1)) -> 290.06 | H189: 290.018061 | I189: -0.3010703916 | J189: -0.7231184054 | K189: 2.870844474 | L189: -0.4267805148 | M189: 2.438120706 | N189: 27.30527451 | O189: 0.4665862426 | AP189: 107198100
A190: 158 | B190: =IF(A190>$A$8,"",OFFSET(InputPriceData!B$15,$A190+$A$11,0,1,1)) -> 2019-05-03 | C190: =IF(A190>$A$8,"",OFFSET(InputPriceData!G$15,CalculationsAndCharts!$A190+$A$11,IF($C$5,8,0),1,1)) -> 56543700 | D190: =IF(A190>$A$8,"",OFFSET(InputPriceData!C$15,CalculationsAndCharts!$A190+$A$11,IF($C$5,8,0),1,1)) -> 290.06 | E190: =IF(A190>$A$8,"",OFFSET(InputPriceData!D$15,CalculationsAndCharts!$A190+$A$11,IF($C$5,8,0),1,1)) -> 291.57 | F190: =IF(A190>$A$8,"",OFFSET(InputPriceData!E$15,CalculationsAndCharts!$A190+$A$11,IF($C$5,8,0),1,1)) -> 288.56 | G190: =IF(A190>$A$8,"",OFFSET(InputPriceData!F$15,CalculationsAndCharts!$A190+$A$11,IF($C$5,8,0),1,1)) -> 291.26 | H190: 289.9495873 | I190: -0.3496144031 | J190: -0.9516897965 | K190: 2.968675484 | L190: -0.5523496079 | M190: 2.719261436 | N190: 28.19530959 | O190: 0.5121091432 | AP190: 56543700
A191: 159 | B191: =IF(A191>$A$8,"",OFFSET(InputPriceData!B$15,$A191+$A$11,0,1,1)) -> 2019-05-02 | C191: =IF(A191>$A$8,"",OFFSET(InputPriceData!G$15,CalculationsAndCharts!$A191+$A$11,IF($C$5,8,0),1,1)) -> 65030200 | D191: =IF(A191>$A$8,"",OFFSET(InputPriceData!C$15,CalculationsAndCharts!$A191+$A$11,IF($C$5,8,0),1,1)) -> 288.93 | E191: =IF(A191>$A$8,"",OFFSET(InputPriceData!D$15,CalculationsAndCharts!$A191+$A$11,IF($C$5,8,0),1,1)) -> 289.94 | F191: =IF(A191>$A$8,"",OFFSET(InputPriceData!E$15,CalculationsAndCharts!$A191+$A$11,IF($C$5,8,0),1,1)) -> 286.79 | G191: =IF(A191>$A$8,"",OFFSET(InputPriceData!F$15,CalculationsAndCharts!$A191+$A$11,IF($C$5,8,0),1,1)) -> 288.44 | H191: 290.2203337 | I191: -0.4215654947 | J191: -1.014864419 | K191: 3.054632235 | L191: -0.5806688932 | M191: 3.411573275 | N191: 29.06201487 | O191: 0.6328369712 | AQ191: 65030200
A192: 160 | B192: =IF(A192>$A$8,"",OFFSET(InputPriceData!B$15,$A192+$A$11,0,1,1)) -> 2019-05-01 | C192: =IF(A192>$A$8,"",OFFSET(InputPriceData!G$15,CalculationsAndCharts!$A192+$A$11,IF($C$5,8,0),1,1)) -> 71671900 | D192: =IF(A192>$A$8,"",OFFSET(InputPriceData!C$15,CalculationsAndCharts!$A192+$A$11,IF($C$5,8,0),1,1)) -> 291.95 | E192: =IF(A192>$A$8,"",OFFSET(InputPriceData!D$15,CalculationsAndCharts!$A192+$A$11,IF($C$5,8,0),1,1)) -> 292.17 | F192: =IF(A192>$A$8,"",OFFSET(InputPriceData!E$15,CalculationsAndCharts!$A192+$A$11,IF($C$5,8,0),1,1)) -> 289.05 | G192: =IF(A192>$A$8,"",OFFSET(InputPriceData!F$15,CalculationsAndCharts!$A192+$A$11,IF($C$5,8,0),1,1)) -> 289.06 | H192: 290.6506852 | I192: -0.5139913689 | J192: -1.040993178 | K192: 3.138994003 | L192: -0.5875605659 | M192: 4.355916195 | N192: 29.78798082 | O192: 0.7981030728 | AQ192: 71671900
A193: 161 | B193: =IF(A193>$A$8,"",OFFSET(InputPriceData!B$15,$A193+$A$11,0,1,1)) -> 2019-04-30 | C193: =IF(A193>$A$8,"",OFFSET(InputPriceData!G$15,CalculationsAndCharts!$A193+$A$11,IF($C$5,8,0),1,1)) -> 81111700 | D193: =IF(A193>$A$8,"",OFFSET(InputPriceData!C$15,CalculationsAndCharts!$A193+$A$11,IF($C$5,8,0),1,1)) -> 290.73 | E193: =IF(A193>$A$8,"",OFFSET(InputPriceData!D$15,CalculationsAndCharts!$A193+$A$11,IF($C$5,8,0),1,1)) -> 291.57 | F193: =IF(A193>$A$8,"",OFFSET(InputPriceData!E$15,CalculationsAndCharts!$A193+$A$11,IF($C$5,8,0),1,1)) -> 289.17 | G193: =IF(A193>$A$8,"",OFFSET(InputPriceData!F$15,CalculationsAndCharts!$A193+$A$11,IF($C$5,8,0),1,1)) -> 291.25 | H193: 290.5272243 | I193: -0.583927712 | J193: -1.314858002 | K193: 3.224632637 | L193: -0.7322151849 | M193: 4.816382974 | N193: 30.2385631 | O193: 0.8758715853 | AP193: 81111700
A194: 162 | B194: =IF(A194>$A$8,"",OFFSET(InputPriceData!B$15,$A194+$A$11,0,1,1)) -> 2019-04-29 | C194: =IF(A194>$A$8,"",OFFSET(InputPriceData!G$15,CalculationsAndCharts!$A194+$A$11,IF($C$5,8,0),1,1)) -> 57197700 | D194: =IF(A194>$A$8,"",OFFSET(InputPriceData!C$15,CalculationsAndCharts!$A194+$A$11,IF($C$5,8,0),1,1)) -> 290.75 | E194: =IF(A194>$A$8,"",OFFSET(InputPriceData!D$15,CalculationsAndCharts!$A194+$A$11,IF($C$5,8,0),1,1)) -> 291.68 | F194: =IF(A194>$A$8,"",OFFSET(InputPriceData!E$15,CalculationsAndCharts!$A194+$A$11,IF($C$5,8,0),1,1)) -> 290.65 | G194: =IF(A194>$A$8,"",OFFSET(InputPriceData!F$15,CalculationsAndCharts!$A194+$A$11,IF($C$5,8,0),1,1)) -> 291.1 | H194: 289.9979604 | I194: -0.6083015485 | J194: -1.491745568 | K194: 3.286956848 | L194: -0.8228065778 | M194: 4.895420691 | N194: 30.53193886 | O194: 0.8859573738 | AP194: 57197700
A195: 163 | B195: =IF(A195>$A$8,"",OFFSET(InputPriceData!B$15,$A195+$A$11,0,1,1)) -> 2019-04-26 | C195: =IF(A195>$A$8,"",OFFSET(InputPriceData!G$15,CalculationsAndCharts!$A195+$A$11,IF($C$5,8,0),1,1)) -> 50916400 | D195: =IF(A195>$A$8,"",OFFSET(InputPriceData!C$15,CalculationsAndCharts!$A195+$A$11,IF($C$5,8,0),1,1)) -> 289.35 | E195: =IF(A195>$A$8,"",OFFSET(InputPriceData!D$15,CalculationsAndCharts!$A195+$A$11,IF($C$5,8,0),1,1)) -> 290.73 | F195: =IF(A195>$A$8,"",OFFSET(InputPriceData!E$15,CalculationsAndCharts!$A195+$A$11,IF($C$5,8,0),1,1)) -> 288.5 | G195: =IF(A195>$A$8,"",OFFSET(InputPriceData!F$15,CalculationsAndCharts!$A195+$A$11,IF($C$5,8,0),1,1)) -> 290.65 | H195: 289.4355586 | I195: -0.5915218471 | J195: -1.2864387 | K195: 3.331192348 | L195: -0.7048378881 | M195: 4.924540695 | N195: 30.80555532 | O195: 0.8872606269 | AP195: 50916400
A196: 164 | B196: =IF(A196>$A$8,"",OFFSET(InputPriceData!B$15,$A196+$A$11,0,1,1)) -> 2019-04-25 | C196: =IF(A196>$A$8,"",OFFSET(InputPriceData!G$15,CalculationsAndCharts!$A196+$A$11,IF($C$5,8,0),1,1)) -> 57770900 | D196: =IF(A196>$A$8,"",OFFSET(InputPriceData!C$15,CalculationsAndCharts!$A196+$A$11,IF($C$5,8,0),1,1)) -> 289.37 | E196: =IF(A196>$A$8,"",OFFSET(InputPriceData!D$15,CalculationsAndCharts!$A196+$A$11,IF($C$5,8,0),1,1)) -> 290.02 | F196: =IF(A196>$A$8,"",OFFSET(InputPriceData!E$15,CalculationsAndCharts!$A196+$A$11,IF($C$5,8,0),1,1)) -> 287.99 | G196: =IF(A196>$A$8,"",OFFSET(InputPriceData!F$15,CalculationsAndCharts!$A196+$A$11,IF($C$5,8,0),1,1)) -> 289.3 | H196: 288.9540843 | I196: -0.5537885374 | J196: -0.8179247277 | K196: 3.401036841 | L196: -0.4435143437 | M196: 4.996854915 | N196: 31.07865758 | O196: 0.8963252151 | AQ196: 57770900
A197: 165 | B197: =IF(A197>$A$8,"",OFFSET(InputPriceData!B$15,$A197+$A$11,0,1,1)) -> 2019-04-24 | C197: =IF(A197>$A$8,"",OFFSET(InputPriceData!G$15,CalculationsAndCharts!$A197+$A$11,IF($C$5,8,0),1,1)) -> 50392900 | D197: =IF(A197>$A$8,"",OFFSET(InputPriceData!C$15,CalculationsAndCharts!$A197+$A$11,IF($C$5,8,0),1,1)) -> 290.03 | E197: =IF(A197>$A$8,"",OFFSET(InputPriceData!D$15,CalculationsAndCharts!$A197+$A$11,IF($C$5,8,0),1,1)) -> 290.4 | F197: =IF(A197>$A$8,"",OFFSET(InputPriceData!E$15,CalculationsAndCharts!$A197+$A$11,IF($C$5,8,0),1,1)) -> 289.32 | G197: =IF(A197>$A$8,"",OFFSET(InputPriceData!F$15,CalculationsAndCharts!$A197+$A$11,IF($C$5,8,0),1,1)) -> 289.48 | H197: 288.4117873 | I197: -0.5037195998 | J197: -0.3307782377 | K197: 3.514871674 | L197: -0.1764339642 | M197: 4.95827756 | N197: 31.33324502 | O197: 0.8857846441 | AQ197: 50392900
A198: 166 | B198: =IF(A198>$A$8,"",OFFSET(InputPriceData!B$15,$A198+$A$11,0,1,1)) -> 2019-04-23 | C198: =IF(A198>$A$8,"",OFFSET(InputPriceData!G$15,CalculationsAndCharts!$A198+$A$11,IF($C$5,8,0),1,1)) -> 52246600 | D198: =IF(A198>$A$8,"",OFFSET(InputPriceData!C$15,CalculationsAndCharts!$A198+$A$11,IF($C$5,8,0),1,1)) -> 287.94 | E198: =IF(A198>$A$8,"",OFFSET(InputPriceData!D$15,CalculationsAndCharts!$A198+$A$11,IF($C$5,8,0),1,1)) -> 290.38 | F198: =IF(A198>$A$8,"",OFFSET(InputPriceData!E$15,CalculationsAndCharts!$A198+$A$11,IF($C$5,8,0),1,1)) -> 287.69 | G198: =IF(A198>$A$8,"",OFFSET(InputPriceData!F$15,CalculationsAndCharts!$A198+$A$11,IF($C$5,8,0),1,1)) -> 290.12 | H198: 287.695328 | I198: -0.4303171617 | J198: 0.1538051542 | K198: 3.656765733 | L198: 0.08043078738 | M198: 4.672135352 | N198: 31.61444205 | O198: 0.8309457197 | AP198: 52246600
A199: 167 | B199: =IF(A199>$A$8,"",OFFSET(InputPriceData!B$15,$A199+$A$11,0,1,1)) -> 2019-04-22 | C199: =IF(A199>$A$8,"",OFFSET(InputPriceData!G$15,CalculationsAndCharts!$A199+$A$11,IF($C$5,8,0),1,1)) -> 40160100 | D199: =IF(A199>$A$8,"",OFFSET(InputPriceData!C$15,CalculationsAndCharts!$A199+$A$11,IF($C$5,8,0),1,1)) -> 286.45 | E199: =IF(A199>$A$8,"",OFFSET(InputPriceData!D$15,CalculationsAndCharts!$A199+$A$11,IF($C$5,8,0),1,1)) -> 287.71 | F199: =IF(A199>$A$8,"",OFFSET(InputPriceData!E$15,CalculationsAndCharts!$A199+$A$11,IF($C$5,8,0),1,1)) -> 286.35 | G199: =IF(A199>$A$8,"",OFFSET(InputPriceData!F$15,CalculationsAndCharts!$A199+$A$11,IF($C$5,8,0),1,1)) -> 287.54 | H199: 287.2487089 | I199: -0.3673617889 | J199: 0.7355793196 | K199: 3.808145304 | L199: 0.3769404592 | M199: 4.592878103 | N199: 32.0221751 | O199: 0.8116326423 | AP199: 40160100
A200: 168 | B200: =IF(A200>$A$8,"",OFFSET(InputPriceData!B$15,$A200+$A$11,0,1,1)) -> 2019-04-18 | C200: =IF(A200>$A$8,"",OFFSET(InputPriceData!G$15,CalculationsAndCharts!$A200+$A$11,IF($C$5,8,0),1,1)) -> 68708500 | D200: =IF(A200>$A$8,"",OFFSET(InputPriceData!C$15,CalculationsAndCharts!$A200+$A$11,IF($C$5,8,0),1,1)) -> 287.37 | E200: =IF(A200>$A$8,"",OFFSET(InputPriceData!D$15,CalculationsAndCharts!$A200+$A$11,IF($C$5,8,0),1,1)) -> 287.59 | F200: =IF(A200>$A$8,"",OFFSET(InputPriceData!E$15,CalculationsAndCharts!$A200+$A$11,IF($C$5,8,0),1,1)) -> 285.94 | G200: =IF(A200>$A$8,"",OFFSET(InputPriceData!F$15,CalculationsAndCharts!$A200+$A$11,IF($C$5,8,0),1,1)) -> 287.29 | H200: 287.1360444 | I200: -0.3671683815 | J200: 0.9921139918 | K200: 3.944273153 | L200: 0.4995489872 | M200: 4.847381998 | N200: 32.47749368 | O200: 0.8505816165 | AQ200: 68708500
A201: 169 | B201: =IF(A201>$A$8,"",OFFSET(InputPriceData!B$15,$A201+$A$11,0,1,1)) -> 2019-04-17 | C201: =IF(A201>$A$8,"",OFFSET(InputPriceData!G$15,CalculationsAndCharts!$A201+$A$11,IF($C$5,8,0),1,1)) -> 58268300 | D201: =IF(A201>$A$8,"",OFFSET(InputPriceData!C$15,CalculationsAndCharts!$A201+$A$11,IF($C$5,8,0),1,1)) -> 288.66 | E201: =IF(A201>$A$8,"",OFFSET(InputPriceData!D$15,CalculationsAndCharts!$A201+$A$11,IF($C$5,8,0),1,1)) -> 288.69 | F201: =IF(A201>$A$8,"",OFFSET(InputPriceData!E$15,CalculationsAndCharts!$A201+$A$11,IF($C$5,8,0),1,1)) -> 286.27 | G201: =IF(A201>$A$8,"",OFFSET(InputPriceData!F$15,CalculationsAndCharts!$A201+$A$11,IF($C$5,8,0),1,1)) -> 286.72 | H201: 287.0338042 | I201: -0.389366453 | J201: 1.046160469 | K201: 4.067605777 | L201: 0.5187150846 | M201: 5.134508225 | N201: 32.85167624 | O201: 0.8958186234 | AQ201: 58268300
A202: 170 | B202: =IF(A202>$A$8,"",OFFSET(InputPriceData!B$15,$A202+$A$11,0,1,1)) -> 2019-04-16 | C202: =IF(A202>$A$8,"",OFFSET(InputPriceData!G$15,CalculationsAndCharts!$A202+$A$11,IF($C$5,8,0),1,1)) -> 52153200 | D202: =IF(A202>$A$8,"",OFFSET(InputPriceData!C$15,CalculationsAndCharts!$A202+$A$11,IF($C$5,8,0),1,1)) -> 288.21 | E202: =IF(A202>$A$8,"",OFFSET(InputPriceData!D$15,CalculationsAndCharts!$A202+$A$11,IF($C$5,8,0),1,1)) -> 288.27 | F202: =IF(A202>$A$8,"",OFFSET(InputPriceData!E$15,CalculationsAndCharts!$A202+$A$11,IF($C$5,8,0),1,1)) -> 286.77 | G202: =IF(A202>$A$8,"",OFFSET(InputPriceData!F$15,CalculationsAndCharts!$A202+$A$11,IF($C$5,8,0),1,1)) -> 287.43 | H202: 286.7674957 | I202: -0.4046458492 | J202: 1.024064169 | K202: 4.191487196 | L202: 0.5001993222 | M202: 5.272845586 | N202: 33.12203047 | O202: 0.9161921726 | AQ202: 52153200
A203: 171 | B203: =IF(A203>$A$8,"",OFFSET(InputPriceData!B$15,$A203+$A$11,0,1,1)) -> 2019-04-15 | C203: =IF(A203>$A$8,"",OFFSET(InputPriceData!G$15,CalculationsAndCharts!$A203+$A$11,IF($C$5,8,0),1,1)) -> 49596700 | D203: =IF(A203>$A$8,"",OFFSET(InputPriceData!C$15,CalculationsAndCharts!$A203+$A$11,IF($C$5,8,0),1,1)) -> 287.51 | E203: =IF(A203>$A$8,"",OFFSET(InputPriceData!D$15,CalculationsAndCharts!$A203+$A$11,IF($C$5,8,0),1,1)) -> 287.62 | F203: =IF(A203>$A$8,"",OFFSET(InputPriceData!E$15,CalculationsAndCharts!$A203+$A$11,IF($C$5,8,0),1,1)) -> 286.36 | G203: =IF(A203>$A$8,"",OFFSET(InputPriceData!F$15,CalculationsAndCharts!$A203+$A$11,IF($C$5,8,0),1,1)) -> 287.24 | H203: 286.3092653 | I203: -0.4313965673 | J203: 0.7163477487 | K203: 4.322436353 | L203: 0.3445558253 | M203: 5.246011705 | N203: 33.34366088 | O203: 0.9084951539 | AQ203: 49596700
... 961 more rows

Sheet Follow
A1: Stocks and Indexes I wish to follow
A3: To ease following a stock, enter a Yahoo Finance acceptable symbol in column "A" anywhere below cell "A9".
A4: Thereafter you may doubleclick the cell containing a symbol of interest to initiate data retrieval and charting for that symbol.
A7: Symbol
A8: To | B8: Description | C8: Last Trade as of most recent check
A9: Follow | C9: Date | D9: Time | E9: Open | F9: High | G9: Low | H9: Close | I9: Volume | J9: Change
A10: A | B10: Agilent Technolog (A) -NYSE (Daily) | C10: 2015-02-02 | D10: 16:03:00 | E10: 37.9 | F10: 38.76 | G10: 37.71 | H10: 38.69 | I10: 2508493 | J10: 0.92
A11: AA | B11: Alcoa Corporation (AA) -NYSE (Weekly) | C11: 2018-06-19 | D11: 16:04:00 | E11: 44.630001 | F11: 44.630001 | G11: 43.349998 | H11: 44.470001 | I11: 3190085 | J11: -1.309998
A12: AAL | B12: American Airlines Group Inc. (AAL) -NasdaqGS (Daily) | C12: 2019-12-16 | D12: 11:39:00 | E12: 27.620001 | F12: 28.306999 | G12: 27.610001 | H12: 28.209999 | I12: 2680563 | J12: 0.729999
A13: ADM | B13: Archer-Daniels-Midland Company (ADM) -NYSE (Weekly) | C13: 2018-07-13 | D13: 16:00:00 | E13: 47.5 | F13: 47.84 | G13: 47.169998 | H13: 47.57 | I13: 2402809 | J13: 0
A14: AMC | B14: AMC Entertainment Holdings, Inc. (AMC) -NYSE (Weekly) | C14: 2018-07-13 | D14: 16:02:00 | E14: 17.049999 | F14: 17.15 | G14: 16.525 | H14: 17.049999 | I14: 1442776 | J14: 0
A15: BSX | B15: Boston Scientific Corporation C (BSX) -NYQ (Daily) | C15: 2015-03-13 | D15: 16:01:00 | E15: 16.84 | F15: 16.91 | G15: 16.44 | H15: 16.61 | I15: 7262460 | J15: -0.28
A16: CASY | B16: Casey's General Stores, Inc. (CASY) -NasdaqGS (Daily) | C16: 2019-04-10 | D16: 16:00:00 | E16: 128.979996 | F16: 130.330002 | G16: 128.779999 | H16: 130.179993 | I16: 351300 | J16: 1.489991
A17: CAT | B17: Caterpillar Inc. (CAT) -NYSE (Daily) | C17: 2019-12-16 | D17: 11:44:00 | E17: 147.710007 | F17: 148.300003 | G17: 145.910004 | H17: 146.059998 | I17: 907705 | J17: 0.529999
A18: CSCO | B18: Cisco Systems, In (CSCO) -NasdaqNM (Daily) | C18: 2015-02-19 | D18: 16:00:00 | E18: 29.32 | F18: 29.39 | G18: 29.13 | H18: 29.31 | I18: 21469012 | J18: -0.18
A19: CVS | B19: CVS Health Corpor (CVS) -NYSE (Daily) | C19: 2015-02-02 | D19: 16:01:00 | E19: 98.34 | F19: 99.22 | G19: 97.06 | H19: 99.11 | I19: 4416094 | J19: 0.95
A20: DIS | B20: Walt Disney Compa (DIS) -NYSE (Daily) | C20: 2015-02-26 | D20: 16:00:00 | E20: 105.5 | F20: 105.71 | G20: 104.14 | H20: 104.56 | I20: 5044969 | J20: -1.01
A21: F | B21: Ford Motor Company (F) -NYSE (Daily) | C21: 2019-08-14 | D21: 10:34:00 | E21: 9.13 | F21: 9.15 | G21: 9.02 | H21: 9.12 | I21: 9151483 | J21: -0.17
A22: FAS | B22: Direxion Daily Financial Bull 3X ETF (FAS) -NYSEArca (Daily) | C22: 2017-10-13 | D22: 16:00:00 | E22: 58.099998 | F22: 58.939999 | G22: 57.43 | H22: 58.450001 | I22: 1709300 | J22: 0.07
A23: FB | B23: Facebook, Inc. (FB) -NasdaqGS (Daily) | C23: 2018-07-13 | D23: 16:00:00 | E23: 207.809998 | F23: 208.429993 | G23: 206.449997 | H23: 207.320007 | I23: 11486800 | J23: 0.400009
A24: GSK | B24: GlaxoSmithKline plc (GSK) -NYSE (Daily) | C24: 2019-08-14 | D24: 11:15:00 | E24: 40.060001 | F24: 40.209999 | G24: 39.895 | H24: 39.93 | I24: 941699 | J24: -0.310002
A25: GDX | B25: VanEck Vectors Gold Miners ETF (GDX) -PCX (Daily) | C25: 2017-02-10 | D25: 20:00:00 | E25: 24.67 | F25: 25.36 | G25: 24.6 | H25: 25.29 | I25: 65396107 | J25: 0.38
A26: HD | B26: The Home Depot, Inc. (HD) -NYSE (Daily) | C26: 2019-06-17 | D26: 15:30:00 | E26: 207 | F26: 208.789993 | G26: 206 | H26: 207.610001 | I26: 3491229 | J26: 1.839997
A27: HSY | B27: The Hershey Company (HSY) -NYSE (Daily) | C27: 2019-04-10 | D27: 16:02:00 | E27: 116.099998 | F27: 116.43 | G27: 115.75 | H27: 116.309998 | I27: 574600 | J27: 0.290001
A28: HTLD | B28: Heartland Express, Inc. (HTLD) -NasdaqGS (Daily) | C28: 2018-04-16 | D28: 13:57:00 | E28: 18.17 | F28: 18.620001 | G28: 18.129999 | H28: 18.540001 | I28: 202134 | J28: 0.540001
A29: IBM | B29: International Business Machines Corporation (IBM) -NYSE (Daily) | C29: 2019-08-14 | D29: 11:24:00 | E29: 133.910004 | F29: 134.160004 | G29: 132.130005 | H29: 132.460098 | I29: 1281528 | J29: -1.659897
A30: INTC | B30: Intel Corporation (INTC) -NasdaqGS (Daily) | C30: 2019-06-17 | D30: 15:32:00 | E30: 46.139999 | F30: 46.529999 | G30: 45.799999 | H30: 46.102501 | I30: 7977641 | J30: -0.087498
A31: JAH | B31: Jarden Corporation Common Stock (JAH) -NYQ (Daily) | C31: 2016-01-08 | D31: 16:02:00 | E31: 53.82 | F31: 53.88 | G31: 52.65 | H31: 52.73 | I31: 4519480 | J31: -0.81
A32: JNJ | B32: Johnson & Johnson (JNJ) -NYSE (Daily) | C32: 2019-08-14 | D32: 10:33:00 | E32: 132.529999 | F32: 132.539993 | G32: 131.419998 | H32: 131.759995 | I32: 870520 | J32: -0.169998
A33: KO | B33: The Coca-Cola Company (KO) -NYSE (Daily) | C33: 2019-07-19 | D33: 16:00:00 | E33: 52.139999 | F33: 52.150002 | G33: 51.369999 | H33: 51.389999 | I33: 10355500 | J33: -0.64
A34: LOW | B34: Lowe's Companies, Inc. (LOW) -NYSE (Daily) | C34: 2019-06-17 | D34: 15:29:00 | E34: 99.769997 | F34: 100.735001 | G34: 99.334999 | H34: 100.360001 | I34: 2967215 | J34: 0.730004
A35: LHO | B35: LaSalle Hotel Properties (LHO) -NYSE (Daily) | C35: 2018-07-13 | E35: 35.009998 | F35: 35.07 | G35: 34.82 | H35: 34.880001 | I35: 168400 | J35: -0.09
A36: LINE | B36: Linn Energy, LLC (LINE) -NasdaqNM (Daily) | C36: 2015-02-02 | D36: 16:00:00 | E36: 10.4 | F36: 10.78 | G36: 10.25 | H36: 10.77 | I36: 3766537 | J36: 0.51
A37: LO | B37: Lorillard, Inc Co (LO) -NYSE (Daily) | C37: 2015-02-02 | D37: 16:03:00 | E37: 65.71 | F37: 66.29 | G37: 65.43 | H37: 66.29 | I37: 1563618 | J37: 0.68
A38: MCD | B38: McDonald's Corporation (MCD) -NYSE (Daily) | C38: 2019-12-16 | D38: 11:44:00 | E38: 197.589996 | F38: 198.160004 | G38: 196.479996 | H38: 196.759995 | I38: 1016216 | J38: -0.36
A39: MDT | B39: Medtronic plc. Or (MDT) -NYSE (Daily) | C39: 2015-02-19 | D39: 16:01:00 | E39: 78.59 | F39: 78.59 | G39: 77.85 | H39: 78.13 | I39: 6900528 | J39: -0.37
A40: MGM | B40: MGM Resorts Inter (MGM) -NYSE (Daily) | C40: 2015-02-02 | D40: 16:00:00 | E40: 19.44 | F40: 19.75 | G40: 19.12 | H40: 19.74 | I40: 7570281 | J40: 0.26
A41: MO | B41: Altria Group, Inc (MO) -NYSE (Daily) | C41: 2015-02-02 | D41: 16:01:00 | E41: 53.25 | F41: 53.84 | G41: 52.98 | H41: 53.8 | I41: 9183582 | J41: 0.7
A42: MSFT | B42: Microsoft Corporation (MSFT) -NasdaqGS (Daily) | C42: 2019-04-10 | D42: 16:00:00 | E42: 119.760002 | F42: 120.349998 | G42: 119.540001 | H42: 120.190002 | I42: 16123400 | J42: 0.910003
A43: NFLX | B43: Netflix, Inc. (NFLX) -NasdaqGS (Weekly) | C43: 2018-06-19 | D43: 14:59:00 | E43: 389.5 | F43: 404.390015 | G43: 388.5 | H43: 404.100006 | I43: 13053145 | J43: 13.700012
A44: NUGT | B44: Direxion Daily Gold Miners Inde (NUGT) -PCX (Daily) | C44: 2016-04-13 | D44: 14:18:00 | E44: 81.48 | F44: 84.97 | G44: 79.59 | H44: 80.5352 | I44: 4380827 | J44: -5.6148
A45: NVS | B45: Novartis AG (NVS) -NYSE (Daily) | C45: 2018-04-13 | D45: 16:02:00 | E45: 81.150002 | F45: 81.269997 | G45: 80.699997 | H45: 81.040001 | I45: 1037000 | J45: -0.400001
A46: NVDA | B46: NVIDIA Corporation (NVDA) -NasdaqGS (Daily) | C46: 2019-12-16 | D46: 11:56:00 | E46: 225.899994 | F46: 227.729996 | G46: 224.770004 | H46: 227.114807 | I46: 4038398 | J46: 3.124802
A47: PRU | B47: Prudential Financ (PRU) -NYSE (Daily) | C47: 2015-02-23 | D47: 12:22:00 | E47: 80.25 | F47: 80.4499 | G47: 79.8 | H47: 80.12 | I47: 1604052 | J47: -0.69
A48: PSEC | B48: Prospect Capital Corporation (PSEC) -NasdaqGS (Daily) | C48: 2019-12-16 | D48: 11:48:00 | E48: 6.6 | F48: 6.675 | G48: 6.6 | H48: 6.655 | I48: 1367588 | J48: 0.055
A49: RAI | B49: Reynolds American (RAI) -NYSE (Daily) | C49: 2015-02-02 | D49: 16:03:00 | E49: 68.12 | F49: 69.06 | G49: 67.4346 | H49: 69.05 | I49: 1822013 | J49: 1.1
A50: RPM | B50: RPM International Inc. (RPM) -NYSE (Daily) | C50: 2019-12-16 | D50: 11:48:00 | E50: 75.349998 | F50: 75.669998 | G50: 75.129997 | H50: 75.169998 | I50: 75851 | J50: 0.07 | K50: Owns the Rust-Oleum brand
A51: RSP | B51: Guggenheim S&P 500 Equal Weight (RSP) -PCX (Daily) | C51: 2016-01-08 | D51: 11:33:00 | E51: 73.24 | F51: 73.47 | G51: 72.41 | H51: 72.41 | I51: 754279 | J51: -0.48
A52: SPR | B52: Spirit Aerosystems Holdings, In (SPR) -NYQ (Daily) | C52: 2017-02-08 | D52: 16:02:00 | E52: 56.31 | F52: 56.53 | G52: 55.13 | H52: 56.41 | I52: 849196 | J52: 0.06
A53: SWKS | B53: Skyworks Solution (SWKS) -NasdaqNM (Daily) | C53: 2015-02-02 | D53: 16:00:00 | E53: 83.07 | F53: 83.73 | G53: 80.15 | H53: 82.02 | I53: 4119001 | J53: -1.03
A54: TOL | B54: Toll Brothers, Inc. (TOL) -NYSE (Daily) | C54: 2019-08-09 | D54: 16:02:00 | E54: 36.259998 | F54: 36.27 | G54: 35.880001 | H54: 35.959999 | I54: 746100 | J54: -0.510002
A55: TSLA | B55: Tesla, Inc. (TSLA) -NasdaqGS (Daily) | C55: 2019-06-14 | D55: 09:56:00 | E55: 211.25 | F55: 214.160004 | G55: 210.399994 | H55: 212.816193 | I55: 1053711 | J55: -1.093811
A56: UNP | B56: Union Pacific Cor (UNP) -NYSE (Daily) | C56: 2015-02-02 | D56: 16:10:00 | E56: 118.13 | F56: 119.06 | G56: 116.7 | H56: 119.01 | I56: 3259594 | J56: 1.8
A57: VZ | B57: Verizon Communications Inc. (VZ) -NYSE (Daily) | C57: 2019-04-10 | D57: 16:00:00 | E57: 58.400002 | F57: 58.700001 | G57: 58.360001 | H57: 58.610001 | I57: 8022000 | J57: 0.209999
A58: WBA | B58: (WBA) -NasdaqNM (Daily) | C58: 2015-02-02 | D58: 16:00:00 | E58: 73.06 | F58: 74.98 | G58: 73 | H58: 74.89 | I58: 4247395 | J58: 1.14
A59: WMT | B59: Walmart Inc. (WMT) -NYSE (Daily) | C59: 2018-07-13 | D59: 16:00:00 | E59: 86.519997 | F59: 87.989998 | G59: 86.5 | H59: 87.699997 | I59: 6388600 | J59: 1.18
A61: ^NDX | B61: NASDAQ 100 (^NDX) -Nasdaq GIDS (Daily) | C61: 2019-08-12 | D61: 17:26:00 | E61: 7597.193848 | F61: 7623.435059 | G61: 7528.95166 | H61: 7561.682617 | I61: 533392657 | J61: -84.587403
A62: ^FTSE | B62: FTSE 100 (^FTSE) -FTSE (Daily) | C62: 2018-02-14 | D62: 15:51:00 | E62: 7168.009766 | F62: 7243.149902 | G62: 7145.72998 | H62: 7222.319824 | I62: 0 | J62: 54.319824
A63: ^DJI | B63: Dow Jones Industrial Average (^DJI) -DJI (Daily) | C63: 2019-09-13 | D63: 16:56:00 | E63: 27216.66992 | F63: 27277.55078 | G63: 27193.94922 | H63: 27219.51953 | I63: 255260000 | J63: 37.070312
A64: ^OEX | B64: S&P 100 INDEX (^OEX) -Chicago Options (Daily) | C64: 2019-09-13 | D64: 16:56:00 | E64: 1332.27002 | F64: 1334.420044 | G64: 1328.73999 | H64: 1330.969971 | I64: 3520060000 | J64: -1.010009
A65: SPY | B65: SPDR S&P 500 ETF Trust (SPY) -NYSEArca (Daily) | C65: 2019-12-16 | D65: 11:58:00 | E65: 319.220001 | F65: 320.059998 | G65: 319.179993 | H65: 320.029999 | I65: 31976034 | J65: 2.709992
A66: ^GSPC | B66: S&P 500 (^GSPC) -SNP (Daily) | C66: 2019-09-13 | D66: 16:56:00 | E66: 3012.209961 | F66: 3017.330078 | G66: 3002.899902 | H66: 3007.389893 | I66: 3520060000 | J66: -2.180175
A67: ^MID | B67: S&P MID CAP 400 INDEX (^MID) -NYSE (Daily) | C67: 2019-09-13 | D67: 16:07:00 | E67: 1970.180054 | F67: 1976.209961 | G67: 1961.310059 | H67: 1963.160034 | I67: 0 | J67: 0.800049
A68: IWM | B68: iShares Russell 2000 ETF (IWM) -NYSEArca (Daily) | C68: 2018-04-13 | D68: 16:00:00 | E68: 155.289993 | F68: 155.330002 | G68: 153.509995 | H68: 153.949997 | I68: 19710100 | J68: -0.809998
A69: QQQ | B69: Invesco QQQ Trust (QQQ) -NasdaqGM (Daily) | C69: 2019-08-12 | D69: 16:00:00 | E69: 185.339996 | F69: 185.889999 | G69: 183.5 | H69: 184.350006 | I69: 23162601 | J69: -2.139999
A70: ^RUT | B70: Russell 2000 (^RUT) -Chicago Options (Daily) | C70: 2019-09-13 | D70: 16:30:00 | E70: 1579.22998 | F70: 1589.449951 | G70: 1577.109985 | H70: 1578.140015 | I70: 35200600 | J70: 3.070069
A71: ^VIX | B71: VOLATILITY S&P 500 (^VIX) -WCB (Daily) | C71: 2015-12-04 | D71: 16:14:00 | E71: 17.43 | F71: 17.65 | G71: 14.69 | H71: 14.81 | I71: 0 | J71: -3.3
A72: ^NYA | B72: NYSE COMPOSITE (DJ) (^NYA) -NYSE (Daily) | C72: 2018-07-13 | D72: 16:15:00 | E72: 12744.79981 | F72: 12783.24023 | G72: 12727.75977 | H72: 12769.5 | I72: 2614000000 | J72: 8.040039
A74: ACAD | B74: ACADIA Pharmaceut (ACAD) -NasdaqNM (Daily) | C74: 2014-07-21 | D74: 16:00:00 | E74: 20.13 | F74: 20.55 | G74: 19.8101 | H74: 20.31 | I74: 691016
A75: CLDX | B75: Celldex Therapeut (CLDX) -NasdaqNM (Daily) | C75: 2015-02-02 | D75: 16:00:00 | E75: 21.47 | F75: 21.69 | G75: 20.11 | H75: 21.02 | I75: 1570418 | J75: -0.4
A76: ICPT | B76: Intercept Pharmac (ICPT) -NasdaqNM (Daily) | C76: 2014-07-21 | D76: 16:00:00 | E76: 215.97 | F76: 218.43 | G76: 213.05 | H76: 218.14 | I76: 191276
A77: INO | B77: Inovio Pharmaceut (INO) -AMEX (Daily) | C77: 2014-07-21 | D77: 16:00:00 | E77: 10.3 | F77: 11.08 | G77: 10.1 | H77: 11.01 | I77: 1800796
A78: JCP | B78: J. C. Penney Company, Inc. (JCP) -NYSE (Daily) | C78: 2017-12-07 | D78: 16:01:00 | E78: 3.34 | F78: 3.4 | G78: 3.25 | H78: 3.27 | I78: 14485464 | J78: -0.07
A79: LCI | B79: Lannett Co Inc Co (LCI) -NYSE (Daily) | C79: 2014-07-21 | D79: 16:02:00 | E79: 38.09 | F79: 38.803 | G79: 36.5101 | H79: 37.76 | I79: 611367
A80: NPSP | B80: NPS Pharmaceutica (NPSP) -NasdaqNM (Daily) | C80: 2014-07-21 | D80: 15:59:00 | E80: 28.75 | F80: 29.43 | G80: 28.31 | H80: 29.29 | I80: 1126758
A81: PBYI | B81: Puma Biotechnolog (PBYI) -NYSE (Daily) | C81: 2014-07-21 | D81: 16:02:00 | E81: 58.27 | F81: 59.46 | G81: 57.39 | H81: 58.98 | I81: 348030
